Workbook

Sheet Main
B10: 2021-11-23
B12: Sheet No. | C12: Template Name | D12: Summary
B13: 1 | C13: Future Intra | D13: For Intraday trading in F&O segment
B14: 2 | C14: Cash Intra | D14: For Intraday trading in cash market segment
B15: 3 | C15: Mid-cap Intra | D15: For Intraday trading in Mid-cap stocks
B16: 4 | C16: Bulk Deals | D16: Reveals Bulk Deals carried on NSE & BSE
B17: 5 | C17: Call Tracker
K27: `

Sheet Future Intra
M5: Back to Main Page
A6: FOR INTRA DAY TRADING | L6: =Main!B10 -> 2021-11-23
A9: Sr.no | B9: Sector | C9: Scrip | D9: Expiry Date | E9: CLOSE RATE | F9: Pivot Point | G9: Supports | J9: Resistances
E10: Point | F10: Point | G10: S1 | H10: S2 | I10: S3 | J10: R1 | K10: R2 | L10: R3 | M10: HIGH | N10: LOW | O10: OI | P10: % Change in OI
A11: 1 | B11: Index | C11: BANKNIFTY | D11: 2021-11-25 | E11: 37182.10 | F11: 37358.75 | G11: 36503.40 | H11: 35824.70 | I11: 34969.35 | J11: 38037.45 | K11: 38892.80 | L11: 39571.50 | M11: 38214.1 | N11: 36680.05 | O11: 2727300 | P11: 6.90%
A12: 2 | B12: Index | C12: NIFTY | D12: 2021-11-25 | E12: 17435.05 | F12: 17513.87 | G12: 17222.73 | H12: 17010.42 | I12: 16719.28 | J12: 17726.18 | K12: 18017.32 | L12: 18229.63 | M12: 17805 | N12: 17301.55 | O12: 12332200 | P12: 1.78%
A13: 3 | B13: Index | C13: FINNIFTY | D13: 2021-11-30 | E13: 18250.00 | F13: 18333.35 | G13: 18166.65 | H13: 18083.30 | I13: 17916.60 | J13: 18416.70 | K13: 18583.40 | L13: 18666.75 | M13: 18500.05 | N13: 18250 | O13: 1320 | P13: -17.50%
A14: 4 | B14: Chemical | C14: AARTIIND | D14: 2021-11-25 | E14: 911.85 | F14: 926.07 | G14: 883.98 | H14: 856.12 | I14: 814.03 | J14: 953.93 | K14: 996.02 | L14: 1023.88 | M14: 968.15 | N14: 898.2 | O14: 3547900 | P14: -0.41%
A15: 5 | B15: Pharma | C15: ABBOTINDIA | D15: 2021-11-25 | E15: 19490.10 | F15: 19543.68 | G15: 19400.52 | H15: 19310.93 | I15: 19167.77 | J15: 19633.27 | K15: 19776.43 | L15: 19866.02 | M15: 19686.85 | N15: 19454.1 | O15: 33750 | P15: -6.32%
A16: 6 | B16: Textile | C16: ABFRL | D16: 2021-11-25 | E16: 270.10 | F16: 272.90 | G16: 263.75 | H16: 257.40 | I16: 248.25 | J16: 279.25 | K16: 288.40 | L16: 294.75 | M16: 282.05 | N16: 266.55 | O16: 11372400 | P16: 2.51%
A17: 7 | B17: Cement | C17: ACC | D17: 2021-11-25 | E17: 2378.55 | F17: 2395.12 | G17: 2343.23 | H17: 2307.92 | I17: 2256.03 | J17: 2430.43 | K17: 2482.32 | L17: 2517.63 | M17: 2447 | N17: 2359.8 | O17: 2189000 | P17: 1.04%
A18: 8 | B18: Others | C18: ADANIENT | D18: 2021-11-25 | E18: 1674.90 | F18: 1673.33 | G18: 1642.17 | H18: 1609.43 | I18: 1578.27 | J18: 1706.07 | K18: 1737.23 | L18: 1769.97 | M18: 1704.5 | N18: 1640.6 | O18: 21640000 | P18: -3.86%
A19: 9 | B19: Others | C19: ADANIPORTS | D19: 2021-11-25 | E19: 714.80 | F19: 717.60 | G19: 700.80 | H19: 686.80 | I19: 670.00 | J19: 731.60 | K19: 748.40 | L19: 762.40 | M19: 734.4 | N19: 703.6 | O19: 92206250 | P19: -0.31%
A20: 10 | B20: Pharma | C20: ALKEM | D20: 2021-11-25 | E20: 3291.25 | F20: 3340.72 | G20: 3200.93 | H20: 3110.62 | I20: 2970.83 | J20: 3431.03 | K20: 3570.82 | L20: 3661.13 | M20: 3480.5 | N20: 3250.4 | O20: 665000 | P20: 0.03%
A21: 11 | B21: Automobile | C21: AMARAJABAT | D21: 2021-11-25 | E21: 626.05 | F21: 630.55 | G21: 615.60 | H21: 605.15 | I21: 590.20 | J21: 641.00 | K21: 655.95 | L21: 666.40 | M21: 645.5 | N21: 620.1 | O21: 11273000 | P21: 0.49%
A22: 12 | B22: Cement | C22: AMBUJACEM | D22: 2021-11-25 | E22: 389.80 | F22: 392.83 | G22: 383.07 | H22: 376.33 | I22: 366.57 | J22: 399.57 | K22: 409.33 | L22: 416.07 | M22: 402.6 | N22: 386.1 | O22: 13099500 | P22: 7.19%
A23: 13 | B23: Pharma | C23: APLLTD | D23: 2021-11-25 | E23: 734.75 | F23: 738.20 | G23: 719.40 | H23: 704.05 | I23: 685.25 | J23: 753.55 | K23: 772.35 | L23: 787.70 | M23: 757 | N23: 722.85 | O23: 2246600 | P23: -4.17%
A24: 14 | B24: Others | C24: APOLLOHOSP | D24: 2021-11-25 | E24: 5432.15 | F24: 5462.73 | G24: 5286.32 | H24: 5140.48 | I24: 4964.07 | J24: 5608.57 | K24: 5784.98 | L24: 5930.82 | M24: 5639.15 | N24: 5316.9 | O24: 2216500 | P24: -5.98%
A25: 15 | B25: Automobile | C25: APOLLOTYRE | D25: 2021-11-25 | E25: 217.15 | F25: 218.40 | G25: 213.00 | H25: 208.85 | I25: 203.45 | J25: 222.55 | K25: 227.95 | L25: 232.10 | M25: 223.8 | N25: 214.25 | O25: 13235000 | P25: -2.18%
A26: 16 | B26: Automobile | C26: ASHOKLEY | D26: 2021-11-25 | E26: 134.15 | F26: 135.28 | G26: 129.87 | H26: 125.58 | I26: 120.17 | J26: 139.57 | K26: 144.98 | L26: 149.27 | M26: 140.7 | N26: 131 | O26: 44743500 | P26: -4.72%
A27: 17 | B27: FMCG | C27: ASIANPAINT | D27: 2021-11-25 | E27: 3258.80 | F27: 3259.37 | G27: 3213.98 | H27: 3169.17 | I27: 3123.78 | J27: 3304.18 | K27: 3349.57 | L27: 3394.38 | M27: 3304.75 | N27: 3214.55 | O27: 3691500 | P27: 0.56%
A28: 18 | B28: Others | C28: ASTRAL | D28: 2021-11-25 | E28: 2225.00 | F28: 2250.60 | G28: 2186.40 | H28: 2147.80 | I28: 2083.60 | J28: 2289.20 | K28: 2353.40 | L28: 2392.00 | M28: 2314.8 | N28: 2212 | O28: 550825 | P28: -9.00%
A29: 19 | B29: Others | C29: ATUL | D29: 2021-11-25 | E29: 8356.45 | F29: 8450.97 | G29: 8182.68 | H29: 8008.92 | I29: 7740.63 | J29: 8624.73 | K29: 8893.02 | L29: 9066.78 | M29: 8719.25 | N29: 8277.2 | O29: 45750 | P29: -11.85%
A30: 20 | B30: Banking | C30: AUBANK | D30: 2021-11-25 | E30: 1190.65 | F30: 1195.87 | G30: 1163.58 | H30: 1136.52 | I30: 1104.23 | J30: 1222.93 | K30: 1255.22 | L30: 1282.28 | M30: 1228.15 | N30: 1168.8 | O30: 3886000 | P30: 0.27%
A31: 21 | B31: Pharma | C31: AUROPHARMA | D31: 2021-11-25 | E31: 627.30 | F31: 629.93 | G31: 617.42 | H31: 607.53 | I31: 595.02 | J31: 639.82 | K31: 652.33 | L31: 662.22 | M31: 642.45 | N31: 620.05 | O31: 16922600 | P31: -2.87%
A32: 22 | B32: Banking | C32: AXISBANK | D32: 2021-11-25 | E32: 686.25 | F32: 691.43 | G32: 672.17 | H32: 658.08 | I32: 638.82 | J32: 705.52 | K32: 724.78 | L32: 738.87 | M32: 710.7 | N32: 677.35 | O32: 61274400 | P32: -1.50%
A33: 23 | B33: Automobile | C33: BAJAJ-AUTO | D33: 2021-11-25 | E33: 3447.10 | F33: 3477.45 | G33: 3395.95 | H33: 3344.80 | I33: 3263.30 | J33: 3528.60 | K33: 3610.10 | L33: 3661.25 | M33: 3558.95 | N33: 3426.3 | O33: 3345000 | P33: -0.32%
A34: 24 | B34: Finance | C34: BAJAJFINSV | D34: 2021-11-25 | E34: 17083.60 | F34: 17319.70 | G34: 16581.35 | H34: 16079.10 | I34: 15340.75 | J34: 17821.95 | K34: 18560.30 | L34: 19062.55 | M34: 18058.05 | N34: 16817.45 | O34: 736925 | P34: 3.57%
A35: 25 | B35: Finance | C35: BAJFINANCE | D35: 2021-11-25 | E35: 7072.65 | F35: 7188.20 | G35: 6868.50 | H35: 6664.35 | I35: 6344.65 | J35: 7392.35 | K35: 7712.05 | L35: 7916.20 | M35: 7507.9 | N35: 6984.05 | O35: 4594250 | P35: 2.48%
A36: 26 | B36: Automobile | C36: BALKRISIND | D36: 2021-11-25 | E36: 2248.80 | F36: 2268.05 | G36: 2209.35 | H36: 2169.90 | I36: 2111.20 | J36: 2307.50 | K36: 2366.20 | L36: 2405.65 | M36: 2326.75 | N36: 2228.6 | O36: 1593600 | P36: 1.17%
A37: 27 | B37: Banking | C37: BANDHANBNK | D37: 2021-11-25 | E37: 297.20 | F37: 299.77 | G37: 290.98 | H37: 284.77 | I37: 275.98 | J37: 305.98 | K37: 314.77 | L37: 320.98 | M37: 308.55 | N37: 293.55 | O37: 22581000 | P37: -2.88%
A38: 28 | B38: Banking | C38: BANKBARODA | D38: 2021-11-25 | E38: 91.05 | F38: 92.47 | G38: 88.08 | H38: 85.12 | I38: 80.73 | J38: 95.43 | K38: 99.82 | L38: 102.78 | M38: 96.85 | N38: 89.5 | O38: 159728400 | P38: 2.86%
A39: 29 | B39: FMCG | C39: BATAINDIA | D39: 2021-11-25 | E39: 2066.65 | F39: 2080.52 | G39: 2029.48 | H39: 1992.32 | I39: 1941.28 | J39: 2117.68 | K39: 2168.72 | L39: 2205.88 | M39: 2131.55 | N39: 2043.35 | O39: 1904100 | P39: -2.23%
A40: 30 | B40: Capital_Goods | C40: BEL | D40: 2021-11-25 | E40: 203.45 | F40: 204.97 | G40: 199.68 | H40: 195.92 | I40: 190.63 | J40: 208.73 | K40: 214.02 | L40: 217.78 | M40: 210.25 | N40: 201.2 | O40: 27842600 | P40: 13.09%
A41: 31 | B41: FMCG | C41: BERGEPAINT | D41: 2021-11-25 | E41: 778.60 | F41: 783.42 | G41: 769.78 | H41: 760.97 | I41: 747.33 | J41: 792.23 | K41: 805.87 | L41: 814.68 | M41: 797.05 | N41: 774.6 | O41: 4450600 | P41: -5.18%
A42: 32 | B42: Automobile | C42: BHARATFORG | D42: 2021-11-25 | E42: 739.05 | F42: 747.45 | G42: 719.10 | H42: 699.15 | I42: 670.80 | J42: 767.40 | K42: 795.75 | L42: 815.70 | M42: 775.8 | N42: 727.5 | O42: 10126500 | P42: -4.07%
A43: 33 | B43: Telecom | C43: BHARTIARTL | D43: 2021-11-25 | E43: 741.10 | F43: 742.83 | G43: 730.77 | H43: 720.43 | I43: 708.37 | J43: 753.17 | K43: 765.23 | L43: 775.57 | M43: 754.9 | N43: 732.5 | O43: 66072744 | P43: 1.96%
A44: 34 | B44: Capital_Goods | C44: BHEL | D44: 2021-11-25 | E44: 60.25 | F44: 60.68 | G44: 59.37 | H44: 58.48 | I44: 57.17 | J44: 61.57 | K44: 62.88 | L44: 63.77 | M44: 62 | N44: 59.8 | O44: 116172000 | P44: -3.72%
A45: 35 | B45: Pharma | C45: BIOCON | D45: 2021-11-25 | E45: 358.65 | F45: 360.43 | G45: 354.87 | H45: 351.08 | I45: 345.52 | J45: 364.22 | K45: 369.78 | L45: 373.57 | M45: 366 | N45: 356.65 | O45: 14411800 | P45: -1.69%
A46: 36 | B46: Automobile | C46: BOSCHLTD | D46: 2021-11-25 | E46: 16920.85 | F46: 17139.62 | G46: 16420.18 | H46: 15919.52 | I46: 15200.08 | J46: 17640.28 | K46: 18359.72 | L46: 18860.38 | M46: 17859.05 | N46: 16638.95 | O46: 144600 | P46: -2.40%
A47: 37 | B47: Oil_Gas | C47: BPCL | D47: 2021-11-25 | E47: 396.65 | F47: 399.23 | G47: 391.02 | H47: 385.38 | I47: 377.17 | J47: 404.87 | K47: 413.08 | L47: 418.72 | M47: 407.45 | N47: 393.6 | O47: 31678200 | P47: 0.44%
A48: 38 | B48: FMCG | C48: BRITANNIA | D48: 2021-11-25 | E48: 3584.90 | F48: 3599.47 | G48: 3559.18 | H48: 3533.47 | I48: 3493.18 | J48: 3625.18 | K48: 3665.47 | L48: 3691.18 | M48: 3639.75 | N48: 3573.75 | O48: 1484800 | P48: -4.72%
A49: 39 | B49: Technology | C49: BSOFT | D49: 2021-11-25 | E49: 455.85 | F49: 456.77 | G49: 440.63 | H49: 425.42 | I49: 409.28 | J49: 471.98 | K49: 488.12 | L49: 503.33 | M49: 472.9 | N49: 441.55 | O49: 3779100 | P49: -10.58%
A50: 40 | B50: Pharma | C50: CADILAHC | D50: 2021-11-25 | E50: 455.85 | F50: 458.35 | G50: 449.75 | H50: 443.65 | I50: 435.05 | J50: 464.45 | K50: 473.05 | L50: 479.15 | M50: 466.95 | N50: 452.25 | O50: 20342300 | P50: 0.85%
A51: 41 | B51: Banking | C51: CANBK | D51: 2021-11-25 | E51: 212.15 | F51: 213.37 | G51: 205.48 | H51: 198.82 | I51: 190.93 | J51: 220.03 | K51: 227.92 | L51: 234.58 | M51: 221.25 | N51: 206.7 | O51: 51084000 | P51: 5.78%
A52: 42 | B52: Finance | C52: CANFINHOME | D52: 2021-11-25 | E52: 620.75 | F52: 622.40 | G52: 602.35 | H52: 583.95 | I52: 563.90 | J52: 640.80 | K52: 660.85 | L52: 679.25 | M52: 642.45 | N52: 604 | O52: 4547400 | P52: -5.24%
A53: 43 | B53: Others | C53: CHAMBLFERT | D53: 2021-11-25 | E53: 362.00 | F53: 362.30 | G53: 349.50 | H53: 337.00 | I53: 324.20 | J53: 374.80 | K53: 387.60 | L53: 400.10 | M53: 375.1 | N53: 349.8 | O53: 997500 | P53: 7.09%
A54: 44 | B54: Finance | C54: CHOLAFIN | D54: 2021-11-25 | E54: 596.90 | F54: 602.27 | G54: 583.78 | H54: 570.67 | I54: 552.18 | J54: 615.38 | K54: 633.87 | L54: 646.98 | M54: 620.75 | N54: 589.15 | O54: 8903750 | P54: 1.29%
A55: 45 | B55: Pharma | C55: CIPLA | D55: 2021-11-25 | E55: 894.70 | F55: 895.87 | G55: 881.78 | H55: 868.87 | I55: 854.78 | J55: 908.78 | K55: 922.87 | L55: 935.78 | M55: 909.95 | N55: 882.95 | O55: 10907650 | P55: -1.29%
A56: 46 | B56: Others | C56: COALINDIA | D56: 2021-11-25 | E56: 151.00 | F56: 151.07 | G56: 149.08 | H56: 147.17 | I56: 145.18 | J56: 152.98 | K56: 154.97 | L56: 156.88 | M56: 153.05 | N56: 149.15 | O56: 72324000 | P56: -0.85%
A57: 47 | B57: Technology | C57: COFORGE | D57: 2021-11-25 | E57: 5409.80 | F57: 5419.02 | G57: 5287.98 | H57: 5166.17 | I57: 5035.13 | J57: 5540.83 | K57: 5671.87 | L57: 5793.68 | M57: 5550.05 | N57: 5297.2 | O57: 868600 | P57: 0.56%
A58: 48 | B58: FMCG | C58: COLPAL | D58: 2021-11-25 | E58: 1476.50 | F58: 1475.10 | G58: 1467.15 | H58: 1457.80 | I58: 1449.85 | J58: 1484.45 | K58: 1492.40 | L58: 1501.75 | M58: 1483.05 | N58: 1465.75 | O58: 3743250 | P58: -0.07%
A59: 49 | B59: Others | C59: CONCOR | D59: 2021-11-25 | E59: 628.35 | F59: 634.55 | G59: 613.30 | H59: 598.25 | I59: 577.00 | J59: 649.60 | K59: 670.85 | L59: 685.90 | M59: 655.8 | N59: 619.5 | O59: 6148893 | P59: -1.98%
A60: 50 | B60: Others | C60: COROMANDEL | D60: 2021-11-25 | E60: 754.85 | F60: 761.58 | G60: 734.97 | H60: 715.08 | I60: 688.47 | J60: 781.47 | K60: 808.08 | L60: 827.97 | M60: 788.2 | N60: 741.7 | O60: 1720000 | P60: -6.78%
A61: 51 | B61: Capital_Goods | C61: CROMPTON | D61: 2021-11-25 | E61: 445.75 | F61: 443.60 | G61: 435.05 | H61: 424.35 | I61: 415.80 | J61: 454.30 | K61: 462.85 | L61: 473.55 | M61: 452.15 | N61: 432.9 | O61: 1646700 | P61: -1.25%
A62: 52 | B62: Banking | C62: CUB | D62: 2021-11-25 | E62: 152.05 | F62: 153.13 | G62: 149.32 | H62: 146.58 | I62: 142.77 | J62: 155.87 | K62: 159.68 | L62: 162.42 | M62: 156.95 | N62: 150.4 | O62: 9805300 | P62: -0.86%
A63: 53 | B63: Capital_Goods | C63: CUMMINSIND | D63: 2021-11-25 | E63: 879.25 | F63: 890.57 | G63: 857.63 | H63: 836.02 | I63: 803.08 | J63: 912.18 | K63: 945.12 | L63: 966.73 | M63: 923.5 | N63: 868.95 | O63: 2222400 | P63: -1.41%
A64: 54 | B64: FMCG | C64: DABUR | D64: 2021-11-25 | E64: 607.45 | F64: 609.28 | G64: 602.87 | H64: 598.28 | I64: 591.87 | J64: 613.87 | K64: 620.28 | L64: 624.87 | M64: 615.7 | N64: 604.7 | O64: 9685000 | P64: -7.23%
A65: 55 | B65: Cement | C65: DALBHARAT | D65: 2021-11-25 | E65: 1941.80 | F65: 1958.50 | G65: 1903.00 | H65: 1864.20 | I65: 1808.70 | J65: 1997.30 | K65: 2052.80 | L65: 2091.60 | M65: 2014 | N65: 1919.7 | O65: 504500 | P65: 2.23%
A66: 56 | B66: Chemical | C66: DEEPAKNTR | D66: 2021-11-25 | E66: 2125.70 | F66: 2172.07 | G66: 2046.53 | H66: 1967.37 | I66: 1841.83 | J66: 2251.23 | K66: 2376.77 | L66: 2455.93 | M66: 2297.6 | N66: 2092.9 | O66: 3060000 | P66: -5.59%
A67: 57 | B67: Others | C67: DELTACORP | D67: 2021-11-25 | E67: 275.70 | F67: 279.77 | G67: 266.48 | H67: 257.27 | I67: 243.98 | J67: 288.98 | K67: 302.27 | L67: 311.48 | M67: 293.05 | N67: 270.55 | O67: 14368100 | P67: 1.76%
A68: 58 | B68: Pharma | C68: DIVISLAB | D68: 2021-11-25 | E68: 4691.05 | F68: 4734.90 | G68: 4633.70 | H68: 4576.35 | I68: 4475.15 | J68: 4792.25 | K68: 4893.45 | L68: 4950.80 | M68: 4836.1 | N68: 4677.55 | O68: 2148100 | P68: -4.17%
A69: 59 | B69: Others | C69: DIXON | D69: 2021-11-25 | E69: 5072.70 | F69: 5151.22 | G69: 4914.48 | H69: 4756.27 | I69: 4519.53 | J69: 5309.43 | K69: 5546.17 | L69: 5704.38 | M69: 5387.95 | N69: 4993 | O69: 516375 | P69: -1.05%
A70: 60 | B70: Realty | C70: DLF | D70: 2021-11-25 | E70: 401.50 | F70: 404.65 | G70: 391.35 | H70: 381.20 | I70: 367.90 | J70: 414.80 | K70: 428.10 | L70: 438.25 | M70: 417.95 | N70: 394.5 | O70: 35100450 | P70: 1.63%
A71: 61 | B71: Pharma | C71: DRREDDY | D71: 2021-11-25 | E71: 4605.20 | F71: 4625.32 | G71: 4560.73 | H71: 4516.27 | I71: 4451.68 | J71: 4669.78 | K71: 4734.37 | L71: 4778.83 | M71: 4689.9 | N71: 4580.85 | O71: 2535250 | P71: 1.35%
A72: 62 | B72: Automobile | C72: EICHERMOT | D72: 2021-11-25 | E72: 2545.75 | F72: 2554.27 | G72: 2507.73 | H72: 2469.72 | I72: 2423.18 | J72: 2592.28 | K72: 2638.82 | L72: 2676.83 | M72: 2600.8 | N72: 2516.25 | O72: 4820900 | P72: 10.42%
A73: 63 | B73: Automobile | C73: ESCORTS | D73: 2021-11-25 | E73: 1797.00 | F73: 1793.33 | G73: 1758.67 | H73: 1720.33 | I73: 1685.67 | J73: 1831.67 | K73: 1866.33 | L73: 1904.67 | M73: 1828 | N73: 1755 | O73: 7778100 | P73: -12.78%
A74: 64 | B74: Automobile | C74: EXIDEIND | D74: 2021-11-25 | E74: 169.45 | F74: 171.13 | G74: 166.22 | H74: 162.98 | I74: 158.07 | J74: 174.37 | K74: 179.28 | L74: 182.52 | M74: 176.05 | N74: 167.9 | O74: 30312000 | P74: -1.23%
A75: 65 | B75: Banking | C75: FEDERALBNK | D75: 2021-11-25 | E75: 91.45 | F75: 92.45 | G75: 89.45 | H75: 87.45 | I75: 84.45 | J75: 94.45 | K75: 97.45 | L75: 99.45 | M75: 95.45 | N75: 90.45 | O75: 110800000 | P75: 0.60%
A76: 66 | B76: Technology | C76: FSL | D76: 2021-11-25 | E76: 169.80 | F76: 169.83 | G76: 167.02 | H76: 164.23 | I76: 161.42 | J76: 172.62 | K76: 175.43 | L76: 178.22 | M76: 172.65 | N76: 167.05 | O76: 7251400 | P76: -2.72%
A77: 67 | B77: Oil_Gas | C77: GAIL | D77: 2021-11-25 | E77: 137.55 | F77: 138.47 | G77: 135.38 | H77: 133.22 | I77: 130.13 | J77: 140.63 | K77: 143.72 | L77: 145.88 | M77: 141.55 | N77: 136.3 | O77: 58255000 | P77: 5.63%
A78: 68 | B78: Pharma | C78: GLENMARK | D78: 2021-11-25 | E78: 470.10 | F78: 470.85 | G78: 456.70 | H78: 443.30 | I78: 429.15 | J78: 484.25 | K78: 498.40 | L78: 511.80 | M78: 485 | N78: 457.45 | O78: 10129200 | P78: 4.00%
A79: 69 | B79: Infrastructure | C79: GMRINFRA | D79: 2021-11-25 | E79: 37.55 | F79: 37.62 | G79: 36.18 | H79: 34.82 | I79: 33.38 | J79: 38.98 | K79: 40.42 | L79: 41.78 | M79: 39.05 | N79: 36.25 | O79: 137857500 | P79: -4.56%
A80: 70 | B80: FMCG | C80: GODREJCP | D80: 2021-11-25 | E80: 912.45 | F80: 911.30 | G80: 898.35 | H80: 884.25 | I80: 871.30 | J80: 925.40 | K80: 938.35 | L80: 952.45 | M80: 924.25 | N80: 897.2 | O80: 5084000 | P80: -2.59%
A81: 71 | B81: Realty | C81: GODREJPROP | D81: 2021-11-25 | E81: 2119.55 | F81: 2125.52 | G81: 2057.28 | H81: 1995.02 | I81: 1926.78 | J81: 2187.78 | K81: 2256.02 | L81: 2318.28 | M81: 2193.75 | N81: 2063.25 | O81: 2675725 | P81: 3.94%
A82: 72 | B82: Pharma | C82: GRANULES | D82: 2021-11-25 | E82: 303.80 | F82: 303.43 | G82: 297.22 | H82: 290.63 | I82: 284.42 | J82: 310.02 | K82: 316.23 | L82: 322.82 | M82: 309.65 | N82: 296.85 | O82: 14473900 | P82: -4.27%
A83: 73 | B83: Cement | C83: GRASIM | D83: 2021-11-25 | E83: 1782.15 | F83: 1777.25 | G83: 1756.90 | H83: 1731.65 | I83: 1711.30 | J83: 1802.50 | K83: 1822.85 | L83: 1848.10 | M83: 1797.6 | N83: 1752 | O83: 10669450 | P83: 1.66%
A84: 74 | B84: Oil_Gas | C84: GSPL | D84: 2021-11-25 | E84: 303.50 | F84: 297.75 | G84: 290.75 | H84: 278.00 | I84: 271.00 | J84: 310.50 | K84: 317.50 | L84: 330.25 | M84: 304.75 | N84: 285 | O84: 1098200 | P84: -12.23%
A85: 75 | B85: Oil_Gas | C85: GUJGASLTD | D85: 2021-11-25 | E85: 624.25 | F85: 627.62 | G85: 610.28 | H85: 596.32 | I85: 578.98 | J85: 641.58 | K85: 658.92 | L85: 672.88 | M85: 644.95 | N85: 613.65 | O85: 2941250 | P85: -2.69%
A86: 76 | B86: Others | C86: HAL | D86: 2021-11-25 | E86: 1348.25 | F86: 1358.32 | G86: 1317.93 | H86: 1287.62 | I86: 1247.23 | J86: 1388.63 | K86: 1429.02 | L86: 1459.33 | M86: 1398.7 | N86: 1328 | O86: 2927425 | P86: -1.66%
A87: 77 | B87: Capital_Goods | C87: HAVELLS | D87: 2021-11-25 | E87: 1378.95 | F87: 1388.23 | G87: 1351.52 | H87: 1324.08 | I87: 1287.37 | J87: 1415.67 | K87: 1452.38 | L87: 1479.82 | M87: 1424.95 | N87: 1360.8 | O87: 2878500 | P87: -3.97%
A88: 78 | B88: Technology | C88: HCLTECH | D88: 2021-11-25 | E88: 1111.00 | F88: 1113.28 | G88: 1099.97 | H88: 1088.93 | I88: 1075.62 | J88: 1124.32 | K88: 1137.63 | L88: 1148.67 | M88: 1126.6 | N88: 1102.25 | O88: 26617500 | P88: -1.85%
A89: 79 | B89: Finance | C89: HDFC | D89: 2021-11-25 | E89: 2893.95 | F89: 2903.33 | G89: 2873.67 | H89: 2853.38 | I89: 2823.72 | J89: 2923.62 | K89: 2953.28 | L89: 2973.57 | M89: 2933 | N89: 2883.05 | O89: 12656700 | P89: 6.03%
A90: 80 | B90: Finance | C90: HDFCAMC | D90: 2021-11-25 | E90: 2509.10 | F90: 2536.43 | G90: 2464.87 | H90: 2420.63 | I90: 2349.07 | J90: 2580.67 | K90: 2652.23 | L90: 2696.47 | M90: 2608 | N90: 2492.2 | O90: 3642200 | P90: 0.37%
A91: 81 | B91: Banking | C91: HDFCBANK | D91: 2021-11-25 | E91: 1515.55 | F91: 1522.70 | G91: 1492.90 | H91: 1470.25 | I91: 1440.45 | J91: 1545.35 | K91: 1575.15 | L91: 1597.80 | M91: 1552.5 | N91: 1500.05 | O91: 38123250 | P91: -1.94%
A92: 82 | B92: Finance | C92: HDFCLIFE | D92: 2021-11-25 | E92: 688.55 | F92: 693.55 | G92: 678.95 | H92: 669.35 | I92: 654.75 | J92: 703.15 | K92: 717.75 | L92: 727.35 | M92: 708.15 | N92: 683.95 | O92: 16253600 | P92: -1.68%
A93: 83 | B93: Automobile | C93: HEROMOTOCO | D93: 2021-11-25 | E93: 2631.90 | F93: 2643.70 | G93: 2605.30 | H93: 2578.70 | I93: 2540.30 | J93: 2670.30 | K93: 2708.70 | L93: 2735.30 | M93: 2682.1 | N93: 2617.1 | O93: 4634700 | P93: -1.72%
A94: 84 | B94: Metals | C94: HINDALCO | D94: 2021-11-25 | E94: 442.95 | F94: 441.47 | G94: 434.43 | H94: 425.92 | I94: 418.88 | J94: 449.98 | K94: 457.02 | L94: 465.53 | M94: 448.5 | N94: 432.95 | O94: 27796275 | P94: 0.80%
A95: 85 | B95: Oil_Gas | C95: HINDPETRO | D95: 2021-11-25 | E95: 317.30 | F95: 319.70 | G95: 312.10 | H95: 306.90 | I95: 299.30 | J95: 324.90 | K95: 332.50 | L95: 337.70 | M95: 327.3 | N95: 314.5 | O95: 15749100 | P95: 1.78%
A96: 86 | B96: FMCG | C96: HINDUNILVR | D96: 2021-11-25 | E96: 2388.05 | F96: 2391.03 | G96: 2374.27 | H96: 2360.48 | I96: 2343.72 | J96: 2404.82 | K96: 2421.58 | L96: 2435.37 | M96: 2407.8 | N96: 2377.25 | O96: 9853200 | P96: -1.78%
A97: 87 | B97: Finance | C97: IBULHSGFIN | D97: 2021-11-25 | E97: 204.90 | F97: 208.35 | G97: 198.10 | H97: 191.30 | I97: 181.05 | J97: 215.15 | K97: 225.40 | L97: 232.20 | M97: 218.6 | N97: 201.55 | O97: 36933400 | P97: 0.99%
A98: 88 | B98: Banking | C98: ICICIBANK | D98: 2021-11-25 | E98: 752.70 | F98: 754.98 | G98: 738.62 | H98: 724.53 | I98: 708.17 | J98: 769.07 | K98: 785.43 | L98: 799.52 | M98: 771.35 | N98: 740.9 | O98: 94260375 | P98: -3.80%
A99: 89 | B99: Finance | C99: ICICIGI | D99: 2021-11-25 | E99: 1463.70 | F99: 1480.55 | G99: 1442.70 | H99: 1421.70 | I99: 1383.85 | J99: 1501.55 | K99: 1539.40 | L99: 1560.40 | M99: 1518.4 | N99: 1459.55 | O99: 2583150 | P99: -0.38%
A100: 90 | B100: Finance | C100: ICICIPRULI | D100: 2021-11-25 | E100: 621.75 | F100: 627.35 | G100: 612.05 | H100: 602.35 | I100: 587.05 | J100: 637.05 | K100: 652.35 | L100: 662.05 | M100: 642.65 | N100: 617.65 | O100: 4002750 | P100: -0.41%
A101: 91 | B101: Telecom | C101: IDEA | D101: 2021-11-25 | E101: 10.60 | F101: 10.53 | G101: 10.27 | H101: 9.93 | I101: 9.67 | J101: 10.87 | K101: 11.13 | L101: 11.47 | M101: 10.8 | N101: 10.2 | O101: 921060000 | P101: -10.20%
A102: 92 | B102: Banking | C102: IDFCFIRSTB | D102: 2021-11-25 | E102: 47.20 | F102: 48.17 | G102: 45.58 | H102: 43.97 | I102: 41.38 | J102: 49.78 | K102: 52.37 | L102: 53.98 | M102: 50.75 | N102: 46.55 | O102: 183704000 | P102: 0.10%
A103: 93 | B103: Others | C103: IEX | D103: 2021-11-25 | E103: 770.70 | F103: 772.40 | G103: 753.10 | H103: 735.50 | I103: 716.20 | J103: 790.00 | K103: 809.30 | L103: 826.90 | M103: 791.7 | N103: 754.8 | O103: 14856250 | P103: 1.82%
A104: 94 | B104: Oil_Gas | C104: IGL | D104: 2021-11-25 | E104: 475.15 | F104: 479.27 | G104: 466.83 | H104: 458.52 | I104: 446.08 | J104: 487.58 | K104: 500.02 | L104: 508.33 | M104: 491.7 | N104: 470.95 | O104: 13733500 | P104: -4.93%
A105: 95 | B105: Infrastructure | C105: INDHOTEL | D105: 2021-11-25 | E105: 202.20 | F105: 203.35 | G105: 195.80 | H105: 189.40 | I105: 181.85 | J105: 209.75 | K105: 217.30 | L105: 223.70 | M105: 210.9 | N105: 196.95 | O105: 17672668 | P105: -4.10%
A106: 96 | B106: Cement | C106: INDIACEM | D106: 2021-11-25 | E106: 195.35 | F106: 196.00 | G106: 190.55 | H106: 185.75 | I106: 180.30 | J106: 200.80 | K106: 206.25 | L106: 211.05 | M106: 201.45 | N106: 191.2 | O106: 12644000 | P106: 1.47%
A107: 97 | B107: Others | C107: INDIAMART | D107: 2021-11-25 | E107: 7528.35 | F107: 7439.12 | G107: 7147.23 | H107: 6766.12 | I107: 6474.23 | J107: 7820.23 | K107: 8112.12 | L107: 8493.23 | M107: 7731 | N107: 7058 | O107: 205725 | P107: -11.91%
A108: 98 | B108: Others | C108: INDIGO | D108: 2021-11-25 | E108: 2169.55 | F108: 2192.32 | G108: 2107.68 | H108: 2045.82 | I108: 1961.18 | J108: 2254.18 | K108: 2338.82 | L108: 2400.68 | M108: 2276.95 | N108: 2130.45 | O108: 3782000 | P108: -0.90%
A109: 99 | B109: Banking | C109: INDUSINDBK | D109: 2021-11-25 | E109: 1005.95 | F109: 1007.28 | G109: 986.22 | H109: 966.48 | I109: 945.42 | J109: 1027.02 | K109: 1048.08 | L109: 1067.82 | M109: 1028.35 | N109: 987.55 | O109: 20148300 | P109: -6.75%
A110: 100 | B110: Telecom | C110: INDUSTOWER | D110: 2021-11-25 | E110: 292.35 | F110: 293.38 | G110: 279.77 | H110: 267.18 | I110: 253.57 | J110: 305.97 | K110: 319.58 | L110: 332.17 | M110: 307 | N110: 280.8 | O110: 15948800 | P110: -3.64%
A111: 101 | B111: Technology | C111: INFY | D111: 2021-11-25 | E111: 1761.90 | F111: 1767.82 | G111: 1748.13 | H111: 1734.37 | I111: 1714.68 | J111: 1781.58 | K111: 1801.27 | L111: 1815.03 | M111: 1787.5 | N111: 1754.05 | O111: 39916500 | P111: 0.09%
A112: 102 | B112: Oil_Gas | C112: IOC | D112: 2021-11-25 | E112: 124.75 | F112: 126.17 | G112: 122.88 | H112: 121.02 | I112: 117.73 | J112: 128.03 | K112: 131.32 | L112: 133.18 | M112: 129.45 | N112: 124.3 | O112: 33709000 | P112: -0.65%
A113: 103 | B113: Pharma | C113: IPCALAB | D113: 2021-11-25 | E113: 2023.95 | F113: 2024.80 | G113: 1984.65 | H113: 1945.35 | I113: 1905.20 | J113: 2064.10 | K113: 2104.25 | L113: 2143.55 | M113: 2064.95 | N113: 1985.5 | O113: 3507075 | P113: 10.63%
A114: 104 | B114: Others | C114: IRCTC | D114: 2021-11-25 | E114: 887.30 | F114: 893.10 | G114: 866.20 | H114: 845.10 | I114: 818.20 | J114: 914.20 | K114: 941.10 | L114: 962.20 | M114: 920 | N114: 872 | O114: 12152000 | P114: 2.98%
A115: 105 | B115: FMCG | C115: ITC | D115: 2021-11-25 | E115: 231.35 | F115: 234.17 | G115: 227.03 | H115: 222.72 | I115: 215.58 | J115: 238.48 | K115: 245.62 | L115: 249.93 | M115: 241.3 | N115: 229.85 | O115: 238137600 | P115: -0.87%
A116: 106 | B116: Metals | C116: JINDALSTEL | D116: 2021-11-25 | E116: 368.10 | F116: 367.62 | G116: 362.23 | H116: 356.37 | I116: 350.98 | J116: 373.48 | K116: 378.87 | L116: 384.73 | M116: 373 | N116: 361.75 | O116: 37042500 | P116: -4.22%
A117: 107 | B117: Cement | C117: JKCEMENT | D117: 2021-11-25 | E117: 3366.30 | F117: 3386.02 | G117: 3285.38 | H117: 3204.47 | I117: 3103.83 | J117: 3466.93 | K117: 3567.57 | L117: 3648.48 | M117: 3486.65 | N117: 3305.1 | O117: 204925 | P117: -1.35%
A118: 108 | B118: Metals | C118: JSWSTEEL | D118: 2021-11-25 | E118: 656.00 | F118: 654.33 | G118: 646.87 | H118: 637.73 | I118: 630.27 | J118: 663.47 | K118: 670.93 | L118: 680.07 | M118: 661.8 | N118: 645.2 | O118: 47065050 | P118: -0.47%
A119: 109 | B119: Others | C119: JUBLFOOD | D119: 2021-11-25 | E119: 3744.60 | F119: 3763.93 | G119: 3664.57 | H119: 3584.53 | I119: 3485.17 | J119: 3843.97 | K119: 3943.33 | L119: 4023.37 | M119: 3863.3 | N119: 3683.9 | O119: 1521750 | P119: -2.34%
A120: 110 | B120: Banking | C120: KOTAKBANK | D120: 2021-11-25 | E120: 1963.75 | F120: 1981.20 | G120: 1926.65 | H120: 1889.55 | I120: 1835.00 | J120: 2018.30 | K120: 2072.85 | L120: 2109.95 | M120: 2035.75 | N120: 1944.1 | O120: 12000400 | P120: 2.56%
A121: 111 | B121: Finance | C121: L&TFH | D121: 2021-11-25 | E121: 79.05 | F121: 79.48 | G121: 77.12 | H121: 75.18 | I121: 72.82 | J121: 81.42 | K121: 83.78 | L121: 85.72 | M121: 81.85 | N121: 77.55 | O121: 77451396 | P121: 1.73%
A122: 112 | B122: Others | C122: LALPATHLAB | D122: 2021-11-25 | E122: 3475.35 | F122: 3518.67 | G122: 3411.13 | H122: 3346.92 | I122: 3239.38 | J122: 3582.88 | K122: 3690.42 | L122: 3754.63 | M122: 3626.2 | N122: 3454.45 | O122: 569000 | P122: -8.89%
A123: 113 | B123: Pharma | C123: LAURUSLABS | D123: 2021-11-25 | E123: 472.70 | F123: 478.72 | G123: 462.43 | H123: 452.17 | I123: 435.88 | J123: 488.98 | K123: 505.27 | L123: 515.53 | M123: 495 | N123: 468.45 | O123: 4258800 | P123: -0.36%
A124: 114 | B124: Finance | C124: LICHSGFIN | D124: 2021-11-25 | E124: 395.40 | F124: 397.80 | G124: 389.05 | H124: 382.70 | I124: 373.95 | J124: 404.15 | K124: 412.90 | L124: 419.25 | M124: 406.55 | N124: 391.45 | O124: 14582000 | P124: -2.11%
A125: 115 | B125: Capital_Goods | C125: LT | D125: 2021-11-25 | E125: 1868.40 | F125: 1871.42 | G125: 1838.13 | H125: 1807.87 | I125: 1774.58 | J125: 1901.68 | K125: 1934.97 | L125: 1965.23 | M125: 1904.7 | N125: 1841.15 | O125: 10898550 | P125: 4.47%
A126: 116 | B126: Technology | C126: LTI | D126: 2021-11-25 | E126: 6844.95 | F126: 6901.25 | G126: 6702.50 | H126: 6560.05 | I126: 6361.30 | J126: 7043.70 | K126: 7242.45 | L126: 7384.90 | M126: 7100 | N126: 6758.8 | O126: 544500 | P126: -4.25%
A127: 117 | B127: Technology | C127: LTTS | D127: 2021-11-25 | E127: 5350.45 | F127: 5393.12 | G127: 5224.23 | H127: 5098.02 | I127: 4929.13 | J127: 5519.33 | K127: 5688.22 | L127: 5814.43 | M127: 5562 | N127: 5266.9 | O127: 612400 | P127: -9.60%
A128: 118 | B128: Pharma | C128: LUPIN | D128: 2021-11-25 | E128: 872.95 | F128: 880.07 | G128: 862.48 | H128: 852.02 | I128: 834.43 | J128: 890.53 | K128: 908.12 | L128: 918.58 | M128: 897.65 | N128: 869.6 | O128: 9016800 | P128: 0.37%
A129: 119 | B129: Automobile | C129: M&M | D129: 2021-11-25 | E129: 902.30 | F129: 909.35 | G129: 888.10 | H129: 873.90 | I129: 852.65 | J129: 923.55 | K129: 944.80 | L129: 959.00 | M129: 930.6 | N129: 895.15 | O129: 11598300 | P129: -2.27%
A130: 120 | B130: Finance | C130: M&MFIN | D130: 2021-11-25 | E130: 170.35 | F130: 171.67 | G130: 166.73 | H130: 163.12 | I130: 158.18 | J130: 175.28 | K130: 180.22 | L130: 183.83 | M130: 176.6 | N130: 168.05 | O130: 25740000 | P130: 1.07%
A131: 121 | B131: Finance | C131: MANAPPURAM | D131: 2021-11-25 | E131: 177.80 | F131: 178.30 | G131: 173.45 | H131: 169.10 | I131: 164.25 | J131: 182.65 | K131: 187.50 | L131: 191.85 | M131: 183.15 | N131: 173.95 | O131: 26184000 | P131: -1.04%
A132: 122 | B132: FMCG | C132: MARICO | D132: 2021-11-25 | E132: 540.90 | F132: 539.45 | G132: 535.35 | H132: 529.80 | I132: 525.70 | J132: 545.00 | K132: 549.10 | L132: 554.65 | M132: 543.55 | N132: 533.9 | O132: 7134000 | P132: -4.85%
A133: 123 | B133: Automobile | C133: MARUTI | D133: 2021-11-25 | E133: 7877.70 | F133: 7958.72 | G133: 7739.38 | H133: 7601.07 | I133: 7381.73 | J133: 8097.03 | K133: 8316.37 | L133: 8454.68 | M133: 8178.05 | N133: 7820.4 | O133: 2596300 | P133: 1.98%
A134: 124 | B134: FMCG | C134: MCDOWELL-N | D134: 2021-11-25 | E134: 919.20 | F134: 923.80 | G134: 899.85 | H134: 880.50 | I134: 856.55 | J134: 943.15 | K134: 967.10 | L134: 986.45 | M134: 947.75 | N134: 904.45 | O134: 18030000 | P134: -2.59%
A135: 125 | B135: Others | C135: MCX | D135: 2021-11-25 | E135: 1727.10 | F135: 1754.18 | G135: 1683.92 | H135: 1640.73 | I135: 1570.47 | J135: 1797.37 | K135: 1867.63 | L135: 1910.82 | M135: 1824.45 | N135: 1711 | O135: 1422750 | P135: -5.79%
A136: 126 | B136: Pharma | C136: METROPOLIS | D136: 2021-11-25 | E136: 3037.00 | F136: 3048.72 | G136: 2947.43 | H136: 2857.87 | I136: 2756.58 | J136: 3138.28 | K136: 3239.57 | L136: 3329.13 | M136: 3150 | N136: 2959.15 | O136: 879400 | P136: -3.55%
A137: 127 | B137: Finance | C137: MFSL | D137: 2021-11-25 | E137: 923.00 | F137: 928.63 | G137: 909.02 | H137: 895.03 | I137: 875.42 | J137: 942.62 | K137: 962.23 | L137: 976.22 | M137: 948.25 | N137: 914.65 | O137: 2310750 | P137: 2.27%
A138: 128 | B138: Oil_Gas | C138: MGL | D138: 2021-11-25 | E138: 941.80 | F138: 948.47 | G138: 927.38 | H138: 912.97 | I138: 891.88 | J138: 962.88 | K138: 983.97 | L138: 998.38 | M138: 969.55 | N138: 934.05 | O138: 3976200 | P138: 2.13%
A139: 129 | B139: Technology | C139: MINDTREE | D139: 2021-11-25 | E139: 4746.05 | F139: 4760.90 | G139: 4661.80 | H139: 4577.55 | I139: 4478.45 | J139: 4845.15 | K139: 4944.25 | L139: 5028.50 | M139: 4860 | N139: 4676.65 | O139: 2011400 | P139: -3.34%
A140: 130 | B140: Automobile | C140: MOTHERSUMI | D140: 2021-11-25 | E140: 227.90 | F140: 231.45 | G140: 219.75 | H140: 211.60 | I140: 199.90 | J140: 239.60 | K140: 251.30 | L140: 259.45 | M140: 243.15 | N140: 223.3 | O140: 29414000 | P140: -0.11%
A141: 131 | B141: Technology | C141: MPHASIS | D141: 2021-11-25 | E141: 3241.65 | F141: 3260.57 | G141: 3154.13 | H141: 3066.62 | I141: 2960.18 | J141: 3348.08 | K141: 3454.52 | L141: 3542.03 | M141: 3367 | N141: 3173.05 | O141: 1478650 | P141: -2.55%
A142: 132 | B142: Automobile | C142: MRF | D142: 2021-11-25 | E142: 75641.75 | F142: 76155.45 | G142: 74409.25 | H142: 73176.75 | I142: 71430.55 | J142: 77387.95 | K142: 79134.15 | L142: 80366.65 | M142: 77901.65 | N142: 74922.95 | O142: 66030 | P142: 5.01%
A143: 133 | B143: Finance | C143: MUTHOOTFIN | D143: 2021-11-25 | E143: 1549.85 | F143: 1561.33 | G143: 1527.22 | H143: 1504.58 | I143: 1470.47 | J143: 1583.97 | K143: 1618.08 | L143: 1640.72 | M143: 1595.45 | N143: 1538.7 | O143: 3862125 | P143: 1.78%
A144: 134 | B144: Others | C144: NAM-INDIA | D144: 2021-11-25 | E144: 388.00 | F144: 392.07 | G144: 379.18 | H144: 370.37 | I144: 357.48 | J144: 400.88 | K144: 413.77 | L144: 422.58 | M144: 404.95 | N144: 383.25 | O144: 3179200 | P144: -1.34%
A145: 135 | B145: Metals | C145: NATIONALUM | D145: 2021-11-25 | E145: 94.60 | F145: 93.57 | G145: 92.08 | H145: 89.57 | I145: 88.08 | J145: 96.08 | K145: 97.57 | L145: 100.08 | M145: 95.05 | N145: 91.05 | O145: 93661500 | P145: -6.65%
A146: 136 | B146: Others | C146: NAUKRI | D146: 2021-11-25 | E146: 6063.80 | F146: 6196.23 | G146: 5816.57 | H146: 5569.33 | I146: 5189.67 | J146: 6443.47 | K146: 6823.13 | L146: 7070.37 | M146: 6575.9 | N146: 5949 | O146: 928875 | P146: -1.21%
A147: 137 | B147: Chemical | C147: NAVINFLUOR | D147: 2021-11-25 | E147: 3286.90 | F147: 3353.83 | G147: 3185.47 | H147: 3084.03 | I147: 2915.67 | J147: 3455.27 | K147: 3623.63 | L147: 3725.07 | M147: 3522.2 | N147: 3252.4 | O147: 756000 | P147: 8.42%
A148: 138 | B148: FMCG | C148: NESTLEIND | D148: 2021-11-25 | E148: 19038.70 | F148: 19165.35 | G148: 18736.70 | H148: 18434.70 | I148: 18006.05 | J148: 19467.35 | K148: 19896.00 | L148: 20198.00 | M148: 19594 | N148: 18863.35 | O148: 253675 | P148: 0.32%
A149: 139 | B149: Metals | C149: NMDC | D149: 2021-11-25 | E149: 135.90 | F149: 135.37 | G149: 133.63 | H149: 131.37 | I149: 129.63 | J149: 137.63 | K149: 139.37 | L149: 141.63 | M149: 137.1 | N149: 133.1 | O149: 108265300 | P149: -1.16%
A150: 140 | B150: Power | C150: NTPC | D150: 2021-11-25 | E150: 130.60 | F150: 132.70 | G150: 128.05 | H150: 125.50 | I150: 120.85 | J150: 135.25 | K150: 139.90 | L150: 142.45 | M150: 137.35 | N150: 130.15 | O150: 52947300 | P150: 6.50%
A151: 141 | B151: Realty | C151: OBEROIRLTY | D151: 2021-11-25 | E151: 887.30 | F151: 892.23 | G151: 861.92 | H151: 836.53 | I151: 806.22 | J151: 917.62 | K151: 947.93 | L151: 973.32 | M151: 922.55 | N151: 866.85 | O151: 2628500 | P151: 3.73%
A152: 142 | B152: Technology | C152: OFSS | D152: 2021-11-25 | E152: 4253.90 | F152: 4283.65 | G152: 4163.30 | H152: 4072.70 | I152: 3952.35 | J152: 4374.25 | K152: 4494.60 | L152: 4585.20 | M152: 4404 | N152: 4193.05 | O152: 736375 | P152: -3.93%
A153: 143 | B153: Oil_Gas | C153: ONGC | D153: 2021-11-25 | E153: 146.80 | F153: 148.90 | G153: 144.25 | H153: 141.70 | I153: 137.05 | J153: 151.45 | K153: 156.10 | L153: 158.65 | M153: 153.55 | N153: 146.35 | O153: 38607800 | P153: -4.46%
A154: 144 | B154: Textile | C154: PAGEIND | D154: 2021-11-25 | E154: 39572.20 | F154: 39865.02 | G154: 38957.18 | H154: 38342.17 | I154: 37434.33 | J154: 40480.03 | K154: 41387.87 | L154: 42002.88 | M154: 40772.85 | N154: 39250 | O154: 91530 | P154: 3.28%
A155: 145 | B155: Pharma | C155: PEL | D155: 2021-11-25 | E155: 2579.50 | F155: 2571.65 | G155: 2522.75 | H155: 2466.00 | I155: 2417.10 | J155: 2628.40 | K155: 2677.30 | L155: 2734.05 | M155: 2620.55 | N155: 2514.9 | O155: 3651450 | P155: 1.69%
A156: 146 | B156: Technology | C156: PERSISTENT | D156: 2021-11-25 | E156: 4109.80 | F156: 4082.92 | G156: 4003.98 | H156: 3898.17 | I156: 3819.23 | J156: 4188.73 | K156: 4267.67 | L156: 4373.48 | M156: 4161.85 | N156: 3977.1 | O156: 386250 | P156: 0.23%
A157: 147 | B157: Oil_Gas | C157: PETRONET | D157: 2021-11-25 | E157: 221.90 | F157: 222.13 | G157: 219.82 | H157: 217.73 | I157: 215.42 | J157: 224.22 | K157: 226.53 | L157: 228.62 | M157: 224.45 | N157: 220.05 | O157: 18903000 | P157: 2.69%
A158: 148 | B158: Finance | C158: PFC | D158: 2021-11-25 | E158: 123.85 | F158: 125.02 | G158: 122.23 | H158: 120.62 | I158: 117.83 | J158: 126.63 | K158: 129.42 | L158: 131.03 | M158: 127.8 | N158: 123.4 | O158: 46121800 | P158: -1.01%
A159: 149 | B159: Pharma | C159: PFIZER | D159: 2021-11-25 | E159: 4933.70 | F159: 4974.12 | G159: 4852.03 | H159: 4770.37 | I159: 4648.28 | J159: 5055.78 | K159: 5177.87 | L159: 5259.53 | M159: 5096.2 | N159: 4892.45 | O159: 198000 | P159: -8.33%
A160: 150 | B160: FMCG | C160: PIDILITIND | D160: 2021-11-25 | E160: 2348.25 | F160: 2373.63 | G160: 2299.62 | H160: 2250.98 | I160: 2176.97 | J160: 2422.27 | K160: 2496.28 | L160: 2544.92 | M160: 2447.65 | N160: 2325 | O160: 2335750 | P160: -0.78%
A161: 151 | B161: Chemical | C161: PIIND | D161: 2021-11-25 | E161: 2866.30 | F161: 2859.17 | G161: 2792.98 | H161: 2719.67 | I161: 2653.48 | J161: 2932.48 | K161: 2998.67 | L161: 3071.98 | M161: 2925.35 | N161: 2785.85 | O161: 1618750 | P161: -4.53%
A162: 152 | B162: Banking | C162: PNB | D162: 2021-11-25 | E162: 40.00 | F162: 40.42 | G162: 38.98 | H162: 37.97 | I162: 36.53 | J162: 41.43 | K162: 42.87 | L162: 43.88 | M162: 41.85 | N162: 39.4 | O162: 295984000 | P162: -1.26%
A163: 153 | B163: Others | C163: POLYCAB | D163: 2021-11-25 | E163: 2371.05 | F163: 2390.78 | G163: 2321.72 | H163: 2272.38 | I163: 2203.32 | J163: 2440.12 | K163: 2509.18 | L163: 2558.52 | M163: 2459.85 | N163: 2341.45 | O163: 835200 | P163: -4.95%
A164: 154 | B164: Power | C164: POWERGRID | D164: 2021-11-25 | E164: 193.90 | F164: 194.07 | G164: 191.58 | H164: 189.27 | I164: 186.78 | J164: 196.38 | K164: 198.87 | L164: 201.18 | M164: 196.55 | N164: 191.75 | O164: 25945045 | P164: 12.93%
A165: 155 | B165: Media | C165: PVR | D165: 2021-11-25 | E165: 1602.85 | F165: 1623.75 | G165: 1547.50 | H165: 1492.15 | I165: 1415.90 | J165: 1679.10 | K165: 1755.35 | L165: 1810.70 | M165: 1700 | N165: 1568.4 | O165: 2890107 | P165: -3.73%
A166: 156 | B166: Cement | C166: RAMCOCEM | D166: 2021-11-25 | E166: 988.20 | F166: 988.57 | G166: 973.13 | H166: 958.07 | I166: 942.63 | J166: 1003.63 | K166: 1019.07 | L166: 1034.13 | M166: 1004 | N166: 973.5 | O166: 2884050 | P166: -2.25%
A167: 157 | B167: Banking | C167: RBLBANK | D167: 2021-11-25 | E167: 193.95 | F167: 196.42 | G167: 188.53 | H167: 183.12 | I167: 175.23 | J167: 201.83 | K167: 209.72 | L167: 215.13 | M167: 204.3 | N167: 191 | O167: 30621100 | P167: -0.19%
A168: 158 | B168: Power | C168: RECLTD | D168: 2021-11-25 | E168: 133.70 | F168: 134.17 | G168: 131.63 | H168: 129.57 | I168: 127.03 | J168: 136.23 | K168: 138.77 | L168: 140.83 | M168: 136.7 | N168: 132.1 | O168: 48456000 | P168: 1.78%
A169: 159 | B169: Oil_Gas | C169: RELIANCE | D169: 2021-11-25 | E169: 2370.10 | F169: 2393.30 | G169: 2332.50 | H169: 2294.90 | I169: 2234.10 | J169: 2430.90 | K169: 2491.70 | L169: 2529.30 | M169: 2454.1 | N169: 2355.7 | O169: 36653750 | P169: 7.24%
A170: 160 | B170: Metals | C170: SAIL | D170: 2021-11-25 | E170: 107.15 | F170: 108.10 | G170: 104.85 | H170: 102.55 | I170: 99.30 | J170: 110.40 | K170: 113.65 | L170: 115.95 | M170: 111.35 | N170: 105.8 | O170: 151173500 | P170: -5.71%
A171: 161 | B171: Banking | C171: SBICARD | D171: 2021-11-25 | E171: 1008.55 | F171: 1012.62 | G171: 989.38 | H171: 970.22 | I171: 946.98 | J171: 1031.78 | K171: 1055.02 | L171: 1074.18 | M171: 1035.85 | N171: 993.45 | O171: 1967500 | P171: 5.27%
A172: 162 | B172: Finance | C172: SBILIFE | D172: 2021-11-25 | E172: 1149.95 | F172: 1158.38 | G172: 1129.27 | H172: 1108.58 | I172: 1079.47 | J172: 1179.07 | K172: 1208.18 | L172: 1228.87 | M172: 1187.5 | N172: 1137.7 | O172: 7371000 | P172: 1.70%
A173: 163 | B173: Banking | C173: SBIN | D173: 2021-11-25 | E173: 486.15 | F173: 489.72 | G173: 473.48 | H173: 460.82 | I173: 444.58 | J173: 502.38 | K173: 518.62 | L173: 531.28 | M173: 505.95 | N173: 477.05 | O173: 113043000 | P173: -0.93%
A174: 164 | B174: Cement | C174: SHREECEM | D174: 2021-11-25 | E174: 26644.10 | F174: 26795.32 | G174: 26230.13 | H174: 25816.17 | I174: 25250.98 | J174: 27209.28 | K174: 27774.47 | L174: 28188.43 | M174: 27360.5 | N174: 26381.35 | O174: 173475 | P174: 3.12%
A175: 165 | B175: Capital_Goods | C175: SIEMENS | D175: 2021-11-25 | E175: 2265.55 | F175: 2279.47 | G175: 2226.68 | H175: 2187.82 | I175: 2135.03 | J175: 2318.33 | K175: 2371.12 | L175: 2409.98 | M175: 2332.25 | N175: 2240.6 | O175: 1773475 | P175: 0.51%
A176: 166 | B176: Textile | C176: SRF | D176: 2021-11-25 | E176: 2088.45 | F176: 2112.17 | G176: 2017.28 | H176: 1946.12 | I176: 1851.23 | J176: 2183.33 | K176: 2278.22 | L176: 2349.38 | M176: 2207.05 | N176: 2041 | O176: 3528625 | P176: -8.63%
A177: 167 | B177: Finance | C177: SRTRANSFIN | D177: 2021-11-25 | E177: 1561.85 | F177: 1571.63 | G177: 1536.82 | H177: 1511.78 | I177: 1476.97 | J177: 1596.67 | K177: 1631.48 | L177: 1656.52 | M177: 1606.45 | N177: 1546.6 | O177: 2956400 | P177: 2.24%
A178: 168 | B178: Pharma | C178: STAR | D178: 2021-11-25 | E178: 478.65 | F178: 484.33 | G178: 471.37 | H178: 464.08 | I178: 451.12 | J178: 491.62 | K178: 504.58 | L178: 511.87 | M178: 497.3 | N178: 477.05 | O178: 3755475 | P178: -1.80%
A179: 169 | B179: Pharma | C179: SUNPHARMA | D179: 2021-11-25 | E179: 769.70 | F179: 775.98 | G179: 757.72 | H179: 745.73 | I179: 727.47 | J179: 787.97 | K179: 806.23 | L179: 818.22 | M179: 794.25 | N179: 764 | O179: 31906000 | P179: -0.12%
A180: 170 | B180: Media | C180: SUNTV | D180: 2021-11-25 | E180: 539.55 | F180: 538.52 | G180: 533.08 | H180: 526.62 | I180: 521.18 | J180: 544.98 | K180: 550.42 | L180: 556.88 | M180: 543.95 | N180: 532.05 | O180: 11743500 | P180: -4.34%
A181: 171 | B181: Pharma | C181: SYNGENE | D181: 2021-11-25 | E181: 607.20 | F181: 608.02 | G181: 595.18 | H181: 583.17 | I181: 570.33 | J181: 620.03 | K181: 632.87 | L181: 644.88 | M181: 620.85 | N181: 596 | O181: 1293700 | P181: -0.85%
A182: 172 | B182: Chemical | C182: TATACHEM | D182: 2021-11-25 | E182: 893.85 | F182: 902.23 | G182: 870.22 | H182: 846.58 | I182: 814.57 | J182: 925.87 | K182: 957.88 | L182: 981.52 | M182: 934.25 | N182: 878.6 | O182: 8249000 | P182: -3.12%
A183: 173 | B183: FMCG | C183: TATACONSUM | D183: 2021-11-25 | E183: 813.85 | F183: 820.18 | G183: 802.17 | H183: 790.48 | I183: 772.47 | J183: 831.87 | K183: 849.88 | L183: 861.57 | M183: 838.2 | N183: 808.5 | O183: 9305550 | P183: 2.94%
A184: 174 | B184: Automobile | C184: TATAMOTORS | D184: 2021-11-25 | E184: 485.70 | F184: 491.95 | G184: 470.95 | H184: 456.20 | I184: 435.20 | J184: 506.70 | K184: 527.70 | L184: 542.45 | M184: 512.95 | N184: 477.2 | O184: 96566550 | P184: -1.70%
A185: 175 | B185: Power | C185: TATAPOWER | D185: 2021-11-25 | E185: 228.00 | F185: 229.95 | G185: 221.90 | H185: 215.80 | I185: 207.75 | J185: 236.05 | K185: 244.10 | L185: 250.20 | M185: 238 | N185: 223.85 | O185: 108418500 | P185: -1.92%
A186: 176 | B186: Metals | C186: TATASTEEL | D186: 2021-11-25 | E186: 1167.30 | F186: 1171.28 | G186: 1143.67 | H186: 1120.03 | I186: 1092.42 | J186: 1194.92 | K186: 1222.53 | L186: 1246.17 | M186: 1198.9 | N186: 1147.65 | O186: 50658300 | P186: -2.09%
A187: 177 | B187: Technology | C187: TCS | D187: 2021-11-25 | E187: 3458.95 | F187: 3463.32 | G187: 3413.63 | H187: 3368.32 | I187: 3318.63 | J187: 3508.63 | K187: 3558.32 | L187: 3603.63 | M187: 3513 | N187: 3418 | O187: 14660550 | P187: -4.46%
A188: 178 | B188: Technology | C188: TECHM | D188: 2021-11-25 | E188: 1540.80 | F188: 1546.95 | G188: 1513.90 | H188: 1487.00 | I188: 1453.95 | J188: 1573.85 | K188: 1606.90 | L188: 1633.80 | M188: 1580 | N188: 1520.05 | O188: 9708000 | P188: -0.52%
A189: 179 | B189: FMCG | C189: TITAN | D189: 2021-11-25 | E189: 2393.55 | F189: 2411.30 | G189: 2337.50 | H189: 2281.45 | I189: 2207.65 | J189: 2467.35 | K189: 2541.15 | L189: 2597.20 | M189: 2485.1 | N189: 2355.25 | O189: 5002875 | P189: 1.48%
A190: 180 | B190: Pharma | C190: TORNTPHARM | D190: 2021-11-25 | E190: 2751.50 | F190: 2764.15 | G190: 2723.75 | H190: 2696.00 | I190: 2655.60 | J190: 2791.90 | K190: 2832.30 | L190: 2860.05 | M190: 2804.55 | N190: 2736.4 | O190: 902000 | P190: -1.56%
A191: 181 | B191: Power | C191: TORNTPOWER | D191: 2021-11-25 | E191: 512.35 | F191: 514.33 | G191: 506.12 | H191: 499.88 | I191: 491.67 | J191: 520.57 | K191: 528.78 | L191: 535.02 | M191: 522.55 | N191: 508.1 | O191: 3307500 | P191: -3.20%
A192: 182 | B192: Others | C192: TRENT | D192: 2021-11-25 | E192: 1114.05 | F192: 1116.12 | G192: 1099.63 | H192: 1085.22 | I192: 1068.73 | J192: 1130.53 | K192: 1147.02 | L192: 1161.43 | M192: 1132.6 | N192: 1101.7 | O192: 2127875 | P192: 0.24%
A193: 183 | B193: Automobile | C193: TVSMOTOR | D193: 2021-11-25 | E193: 711.35 | F193: 716.50 | G193: 701.25 | H193: 691.15 | I193: 675.90 | J193: 726.60 | K193: 741.85 | L193: 751.95 | M193: 731.75 | N193: 706.4 | O193: 6206200 | P193: -4.25%
A194: 184 | B194: FMCG | C194: UBL | D194: 2021-11-25 | E194: 1589.45 | F194: 1601.65 | G194: 1560.70 | H194: 1531.95 | I194: 1491.00 | J194: 1630.40 | K194: 1671.35 | L194: 1700.10 | M194: 1642.6 | N194: 1572.9 | O194: 1726900 | P194: 19.47%
A195: 185 | B195: Cement | C195: ULTRACEMCO | D195: 2021-11-25 | E195: 7661.50 | F195: 7680.97 | G195: 7547.88 | H195: 7434.27 | I195: 7301.18 | J195: 7794.58 | K195: 7927.67 | L195: 8041.28 | M195: 7814.05 | N195: 7567.35 | O195: 1710800 | P195: 0.25%
A196: 186 | B196: Chemical | C196: UPL | D196: 2021-11-25 | E196: 717.00 | F196: 723.17 | G196: 700.83 | H196: 684.67 | I196: 662.33 | J196: 739.33 | K196: 761.67 | L196: 777.83 | M196: 745.5 | N196: 707 | O196: 25000300 | P196: 0.52%
A197: 187 | B197: Metals | C197: VEDL | D197: 2021-11-25 | E197: 329.65 | F197: 324.25 | G197: 315.30 | H197: 300.95 | I197: 292.00 | J197: 338.60 | K197: 347.55 | L197: 361.90 | M197: 333.2 | N197: 309.9 | O197: 168497400 | P197: 3.16%
A198: 188 | B198: Capital_Goods | C198: VOLTAS | D198: 2021-11-25 | E198: 1188.20 | F198: 1200.90 | G198: 1162.95 | H198: 1137.70 | I198: 1099.75 | J198: 1226.15 | K198: 1264.10 | L198: 1289.35 | M198: 1238.85 | N198: 1175.65 | O198: 2157000 | P198: 3.48%
A199: 189 | B199: Capital_Goods | C199: WHIRLPOOL | D199: 2021-11-25 | E199: 2153.45 | F199: 2178.45 | G199: 2093.45 | H199: 2033.45 | I199: 1948.45 | J199: 2238.45 | K199: 2323.45 | L199: 2383.45 | M199: 2263.45 | N199: 2118.45 | O199: 445000 | P199: 1.71%
A200: 190 | B200: Technology | C200: WIPRO | D200: 2021-11-25 | E200: 645.15 | F200: 647.97 | G200: 635.68 | H200: 626.22 | I200: 613.93 | J200: 657.43 | K200: 669.72 | L200: 679.18 | M200: 660.25 | N200: 638.5 | O200: 29553600 | P200: 0.05%
A201: 191 | B201: Media | C201: ZEEL | D201: 2021-11-25 | E201: 299.10 | F201: 302.43 | G201: 289.42 | H201: 279.73 | I201: 266.72 | J201: 312.12 | K201: 325.13 | L201: 334.82 | M201: 315.45 | N201: 292.75 | O201: 76362000 | P201: -1.14%
A210: Pivot Point: This is trigger point for intra day buy/sell based on the price range of the previous day
A211: As per the tool,the trader should take BUY position just above Pivot and keep the stop loss of pivot point and the first target would be Resistance 1(R1)
A212: If R1 is crossed then R2 becomes the next target with stop loss of at R1
A213: Similarly if price goes below pivot point then the trader should sell and keep a stop loss of pivot point and the first target would be S1
A214: If S1 is crossed then S2 becomes the next target with stop loss of at S1
... 10 more rows

Sheet Cash Intra
M5: Back to Main Page
A6: FOR INTRA DAY TRADING | K6: =Main!B10 -> 2021-11-23
A8: Sr.no | C8: CLOSE RATE | D8: Pivot Point | E8: Supports | H8: Resistances
E9: S1 | F9: S2 | G9: S3 | H9: R1 | I9: R2 | J9: R3 | K9: HIGH | L9: LOW | M9: Total Trade Quanity in Lakhs
A10: 1 | B10: Nifty 50 | C10: 17416.55 | D10: 17500.75 | E10: 17196.25 | F10: 16975.95 | G10: 16671.45 | H10: 17721.05 | I10: 18025.55 | J10: 18245.85 | K10: 17805.25 | L10: 17280.45
A11: 2 | B11: Nifty Bank | C11: 37128.8 | D11: 37341.73 | E11: 36442.47 | F11: 35756.13 | G11: 34856.87 | H11: 38028.07 | I11: 38927.33 | J11: 39613.67 | K11: 38241 | L11: 36655.4
A12: 3 | B12: Nifty CPSE | C12: 2244.7 | D12: 2262.47 | E12: 2218.68 | F12: 2192.67 | G12: 2148.88 | H12: 2288.48 | I12: 2332.27 | J12: 2358.28 | K12: 2306.25 | L12: 2236.45
A13: 4 | B13: Nifty Infra | C13: 5075.05 | D13: 5097.20 | E13: 5004.75 | F13: 4934.45 | G13: 4842.00 | H13: 5167.50 | I13: 5259.95 | J13: 5330.25 | K13: 5189.65 | L13: 5026.9
A14: 5 | B14: Nifty IT | C14: 35478.95 | D14: 35600.17 | E14: 35103.33 | F14: 34727.72 | G14: 34230.88 | H14: 35975.78 | I14: 36472.62 | J14: 36848.23 | K14: 36097 | L14: 35224.55
A15: 6 | B15: Nifty PSE | C15: 3907.2 | D15: 3936.17 | E15: 3859.28 | F15: 3811.37 | G15: 3734.48 | H15: 3984.08 | I15: 4060.97 | J15: 4108.88 | K15: 4013.05 | L15: 3888.25
A16: 7 | B16: Nifty Midcap 50 | C16: 8476.45 | D16: 8539.88 | E16: 8324.22 | F16: 8171.98 | G16: 7956.32 | H16: 8692.12 | I16: 8907.78 | J16: 9060.02 | K16: 8755.55 | L16: 8387.65
A17: 8 | B17: ACC | C17: 2373.55 | D17: 2391.18 | E17: 2337.37 | F17: 2301.18 | G17: 2247.37 | H17: 2427.37 | I17: 2481.18 | J17: 2517.37 | K17: 2445 | L17: 2355 | M17: 2.44687
A18: 9 | B18: AUBANK | C18: 1191.25 | D18: 1198.68 | E18: 1166.62 | F18: 1141.98 | G18: 1109.92 | H18: 1223.32 | I18: 1255.38 | J18: 1280.02 | K18: 1230.75 | L18: 1174.05 | M18: 11.83734
A19: 10 | B19: AARTIIND | C19: 912.45 | D19: 927.15 | E19: 885.30 | F19: 858.15 | G19: 816.30 | H19: 954.30 | I19: 996.15 | J19: 1023.30 | K19: 969 | L19: 900 | M19: 19.14206
A20: 11 | B20: ADANIENT | C20: 1675.75 | D20: 1662.40 | E20: 1623.40 | F20: 1571.05 | G20: 1532.05 | H20: 1714.75 | I20: 1753.75 | J20: 1806.10 | K20: 1701.4 | L20: 1610.05 | M20: 25.5217
A21: 12 | B21: ADANIGREEN | C21: 1340.95 | D21: 1343.37 | E21: 1318.83 | F21: 1296.72 | G21: 1272.18 | H21: 1365.48 | I21: 1390.02 | J21: 1412.13 | K21: 1367.9 | L21: 1321.25 | M21: 27.25159
A22: 13 | B22: ADANIPORTS | C22: 715 | D22: 717.47 | E22: 701.53 | F22: 688.07 | G22: 672.13 | H22: 730.93 | I22: 746.87 | J22: 760.33 | K22: 733.4 | L22: 704 | M22: 35.5756
A23: 14 | B23: ATGL | C23: 1654.55 | D23: 1641.52 | E23: 1623.03 | F23: 1591.52 | G23: 1573.03 | H23: 1673.03 | I23: 1691.52 | J23: 1723.03 | K23: 1660 | L23: 1610 | M23: 5.12279
A24: 15 | B24: ADANITRANS | C24: 1913.45 | D24: 1888.72 | E24: 1842.38 | F24: 1771.32 | G24: 1724.98 | H24: 1959.78 | I24: 2006.12 | J24: 2077.18 | K24: 1935.05 | L24: 1817.65 | M24: 0.79041
A25: 16 | B25: ABCAPITAL | C25: 100.25 | D25: 100.78 | E25: 98.47 | F25: 96.68 | G25: 94.37 | H25: 102.57 | I25: 104.88 | J25: 106.67 | K25: 103.1 | L25: 99 | M25: 20.59731
A26: 17 | B26: ABFRL | C26: 269.55 | D26: 272.87 | E26: 262.88 | F26: 256.22 | G26: 246.23 | H26: 279.53 | I26: 289.52 | J26: 296.18 | K26: 282.85 | L26: 266.2 | M26: 80.49409
A27: 18 | B27: AJANTPHARM | C27: 2094.2 | D27: 2103.07 | E27: 2068.13 | F27: 2042.07 | G27: 2007.13 | H27: 2129.13 | I27: 2164.07 | J27: 2190.13 | K27: 2138 | L27: 2077 | M27: 0.62955
A28: 19 | B28: APLLTD | C28: 735.75 | D28: 740.77 | E28: 719.33 | F28: 702.92 | G28: 681.48 | H28: 757.18 | I28: 778.62 | J28: 795.03 | K28: 762.2 | L28: 724.35 | M28: 6.24209
A29: 20 | B29: ALKEM | C29: 3283.3 | D29: 3346.17 | E29: 3192.13 | F29: 3100.97 | G29: 2946.93 | H29: 3437.33 | I29: 3591.37 | J29: 3682.53 | K29: 3500.2 | L29: 3255 | M29: 1.52539
A30: 21 | B30: AMARAJABAT | C30: 629.5 | D30: 634.75 | E30: 618.80 | F30: 608.10 | G30: 592.15 | H30: 645.45 | I30: 661.40 | J30: 672.10 | K30: 650.7 | L30: 624.05 | M30: 13.51293
A31: 22 | B31: AMBUJACEM | C31: 388.7 | D31: 392.18 | E31: 381.52 | F31: 374.33 | G31: 363.67 | H31: 399.37 | I31: 410.03 | J31: 417.22 | K31: 402.85 | L31: 385 | M31: 34.8489
A32: 23 | B32: APOLLOHOSP | C32: 5419.5 | D32: 5457.50 | E32: 5275.00 | F32: 5130.50 | G32: 4948.00 | H32: 5602.00 | I32: 5784.50 | J32: 5929.00 | K32: 5640 | L32: 5313 | M32: 12.04625
A33: 24 | B33: APOLLOTYRE | C33: 217.3 | D33: 218.52 | E33: 213.48 | F33: 209.67 | G33: 204.63 | H33: 222.33 | I33: 227.37 | J33: 231.18 | K33: 223.55 | L33: 214.7 | M33: 29.63562
A34: 25 | B34: ASHOKLEY | C34: 133.65 | D34: 135.15 | E34: 129.40 | F34: 125.15 | G34: 119.40 | H34: 139.40 | I34: 145.15 | J34: 149.40 | K34: 140.9 | L34: 130.9 | M34: 194.13864
A35: 26 | B35: ASIANPAINT | C35: 3261.25 | D35: 3261.55 | E35: 3214.75 | F35: 3168.25 | G35: 3121.45 | H35: 3308.05 | I35: 3354.85 | J35: 3401.35 | K35: 3308.35 | L35: 3215.05 | M35: 21.4697
A36: 27 | B36: ASTRAL | C36: 2228.05 | D36: 2246.02 | E36: 2182.03 | F36: 2136.02 | G36: 2072.03 | H36: 2292.03 | I36: 2356.02 | J36: 2402.03 | K36: 2310 | L36: 2200 | M36: 7.16507
A37: 28 | B37: AUROPHARMA | C37: 627.6 | D37: 630.28 | E37: 617.82 | F37: 608.03 | G37: 595.57 | H37: 640.07 | I37: 652.53 | J37: 662.32 | K37: 642.75 | L37: 620.5 | M37: 22.00342
A38: 29 | B38: DMART | C38: 4828.3 | D38: 4903.43 | E38: 4706.87 | F38: 4585.43 | G38: 4388.87 | H38: 5024.87 | I38: 5221.43 | J38: 5342.87 | K38: 5100 | L38: 4782 | M38: 6.50655
A39: 30 | B39: AXISBANK | C39: 686.4 | D39: 692.27 | E39: 671.53 | F39: 656.67 | G39: 635.93 | H39: 707.13 | I39: 727.87 | J39: 742.73 | K39: 713 | L39: 677.4 | M39: 167.41079
A40: 31 | B40: BAJAJ-AUTO | C40: 3444.2 | D40: 3480.07 | E40: 3390.13 | F40: 3336.07 | G40: 3246.13 | H40: 3534.13 | I40: 3624.07 | J40: 3678.13 | K40: 3570 | L40: 3426 | M40: 4.22572
A41: 32 | B41: BAJFINANCE | C41: 7058.3 | D41: 7187.62 | E41: 6860.73 | F41: 6663.17 | G41: 6336.28 | H41: 7385.18 | I41: 7712.07 | J41: 7909.63 | K41: 7514.5 | L41: 6990.05 | M41: 19.35243
A42: 33 | B42: BAJAJFINSV | C42: 17073.75 | D42: 17347.93 | E42: 16555.87 | F42: 16037.98 | G42: 15245.92 | H42: 17865.82 | I42: 18657.88 | J42: 19175.77 | K42: 18140 | L42: 16830.05 | M42: 3.707
A43: 34 | B43: BAJAJHLDNG | C43: 4872.1 | D43: 4884.37 | E43: 4837.73 | F43: 4803.37 | G43: 4756.73 | H43: 4918.73 | I43: 4965.37 | J43: 4999.73 | K43: 4931 | L43: 4850 | M43: 0.69813
A44: 35 | B44: BALKRISIND | C44: 2245.35 | D44: 2267.98 | E44: 2206.82 | F44: 2168.28 | G44: 2107.12 | H44: 2306.52 | I44: 2367.68 | J44: 2406.22 | K44: 2329.15 | L44: 2229.45 | M44: 3.33113
A45: 36 | B45: BANDHANBNK | C45: 296.9 | D45: 299.27 | E45: 290.73 | F45: 284.57 | G45: 276.03 | H45: 305.43 | I45: 313.97 | J45: 320.13 | K45: 307.8 | L45: 293.1 | M45: 60.95099
A46: 37 | B46: BANKBARODA | C46: 90.85 | D46: 92.40 | E46: 87.90 | F46: 84.95 | G46: 80.45 | H46: 95.35 | I46: 99.85 | J46: 102.80 | K46: 96.9 | L46: 89.45 | M46: 486.14287
A47: 38 | B47: BANKINDIA | C47: 56.95 | D47: 57.62 | E47: 55.63 | F47: 54.32 | G47: 52.33 | H47: 58.93 | I47: 60.92 | J47: 62.23 | K47: 59.6 | L47: 56.3 | M47: 79.07691
A48: 39 | B48: BATAINDIA | C48: 2064.65 | D48: 2077.27 | E48: 2025.63 | F48: 1986.62 | G48: 1934.98 | H48: 2116.28 | I48: 2167.92 | J48: 2206.93 | K48: 2128.9 | L48: 2038.25 | M48: 5.13549
A49: 40 | B49: BERGEPAINT | C49: 778.4 | D49: 782.62 | E49: 769.28 | F49: 760.17 | G49: 746.83 | H49: 791.73 | I49: 805.07 | J49: 814.18 | K49: 795.95 | L49: 773.5 | M49: 7.87735
A50: 41 | B50: BEL | C50: 203 | D50: 204.72 | E50: 199.03 | F50: 195.07 | G50: 189.38 | H50: 208.68 | I50: 214.37 | J50: 218.33 | K50: 210.4 | L50: 200.75 | M50: 57.47742
A51: 42 | B51: BHARATFORG | C51: 740.95 | D51: 750.78 | E51: 719.57 | F51: 698.18 | G51: 666.97 | H51: 772.17 | I51: 803.38 | J51: 824.77 | K51: 782 | L51: 729.4 | M51: 24.16974
A52: 43 | B52: BHEL | C52: 60.05 | D52: 60.70 | E52: 58.90 | F52: 57.75 | G52: 55.95 | H52: 61.85 | I52: 63.65 | J52: 64.80 | K52: 62.5 | L52: 59.55 | M52: 265.37396
A53: 44 | B53: BPCL | C53: 395.6 | D53: 398.87 | E53: 389.83 | F53: 384.07 | G53: 375.03 | H53: 404.63 | I53: 413.67 | J53: 419.43 | K53: 407.9 | L53: 393.1 | M53: 52.82894
A54: 45 | B54: BHARTIARTL | C54: 742.1 | D54: 743.72 | E54: 731.48 | F54: 720.87 | G54: 708.63 | H54: 754.33 | I54: 766.57 | J54: 777.18 | K54: 755.95 | L54: 733.1 | M54: 368.84348
A55: 46 | B55: BIOCON | C55: 357.85 | D55: 360.30 | E55: 353.70 | F55: 349.55 | G55: 342.95 | H55: 364.45 | I55: 371.05 | J55: 375.20 | K55: 366.9 | L55: 356.15 | M55: 21.15434
A56: 47 | B56: BOSCHLTD | C56: 16934.45 | D56: 17197.30 | E56: 16419.35 | F56: 15904.25 | G56: 15126.30 | H56: 17712.40 | I56: 18490.35 | J56: 19005.45 | K56: 17975.25 | L56: 16682.2 | M56: 1.13635
A57: 48 | B57: BRITANNIA | C57: 3581.6 | D57: 3593.37 | E57: 3558.23 | F57: 3534.87 | G57: 3499.73 | H57: 3616.73 | I57: 3651.87 | J57: 3675.23 | K57: 3628.5 | L57: 3570 | M57: 3.64653
A58: 49 | B58: CADILAHC | C58: 456.3 | D58: 458.70 | E58: 450.40 | F58: 444.50 | G58: 436.20 | H58: 464.60 | I58: 472.90 | J58: 478.80 | K58: 467 | L58: 452.8 | M58: 18.75917
A59: 50 | B59: CANBK | C59: 211.8 | D59: 212.95 | E59: 205.25 | F59: 198.70 | G59: 191.00 | H59: 219.50 | I59: 227.20 | J59: 233.75 | K59: 220.65 | L59: 206.4 | M59: 137.47409
A60: 51 | B60: CASTROLIND | C60: 130.05 | D60: 131.20 | E60: 127.85 | F60: 125.65 | G60: 122.30 | H60: 133.40 | I60: 136.75 | J60: 138.95 | K60: 134.55 | L60: 129 | M60: 7.82699
A61: 52 | B61: CHOLAFIN | C61: 595.4 | D61: 601.83 | E61: 581.57 | F61: 567.73 | G61: 547.47 | H61: 615.67 | I61: 635.93 | J61: 649.77 | K61: 622.1 | L61: 588 | M61: 17.17703
A62: 53 | B62: CIPLA | C62: 895.4 | D62: 895.80 | E62: 882.60 | F62: 869.80 | G62: 856.60 | H62: 908.60 | I62: 921.80 | J62: 934.60 | K62: 909 | L62: 883 | M62: 14.43344
A63: 54 | B63: CUB | C63: 152.15 | D63: 153.55 | E63: 149.15 | F63: 146.15 | G63: 141.75 | H63: 156.55 | I63: 160.95 | J63: 163.95 | K63: 157.95 | L63: 150.55 | M63: 18.58975
A64: 55 | B64: COALINDIA | C64: 150.55 | D64: 150.85 | E64: 148.80 | F64: 147.05 | G64: 145.00 | H64: 152.60 | I64: 154.65 | J64: 156.40 | K64: 152.9 | L64: 149.1 | M64: 115.22286
A65: 56 | B65: COFORGE | C65: 5428.25 | D65: 5451.80 | E65: 5295.50 | F65: 5162.75 | G65: 5006.45 | H65: 5584.55 | I65: 5740.85 | J65: 5873.60 | K65: 5608.1 | L65: 5319.05 | M65: 2.60848
A66: 57 | B66: COLPAL | C66: 1477.4 | D66: 1475.30 | E66: 1468.15 | F66: 1458.90 | G66: 1451.75 | H66: 1484.55 | I66: 1491.70 | J66: 1500.95 | K66: 1482.45 | L66: 1466.05 | M66: 4.59055
A67: 58 | B67: CONCOR | C67: 628.15 | D67: 634.40 | E67: 612.85 | F67: 597.55 | G67: 576.00 | H67: 649.70 | I67: 671.25 | J67: 686.55 | K67: 655.95 | L67: 619.1 | M67: 19.16154
A68: 59 | B68: COROMANDEL | C68: 755.45 | D68: 763.97 | E68: 734.88 | F68: 714.32 | G68: 685.23 | H68: 784.53 | I68: 813.62 | J68: 834.18 | K68: 793.05 | L68: 743.4 | M68: 7.1012
A69: 60 | B69: CROMPTON | C69: 445.85 | D69: 445.32 | E69: 433.03 | F69: 420.22 | G69: 407.93 | H69: 458.13 | I69: 470.42 | J69: 483.23 | K69: 457.6 | L69: 432.5 | M69: 14.73804
A70: 61 | B70: CUMMINSIND | C70: 879.45 | D70: 890.83 | E70: 856.97 | F70: 834.48 | G70: 800.62 | H70: 913.32 | I70: 947.18 | J70: 969.67 | K70: 924.7 | L70: 868.35 | M70: 6.9913
A71: 62 | B71: DLF | C71: 400.45 | D71: 404.08 | E71: 390.67 | F71: 380.88 | G71: 367.47 | H71: 413.87 | I71: 427.28 | J71: 437.07 | K71: 417.5 | L71: 394.3 | M71: 58.24237
A72: 63 | B72: DABUR | C72: 606.8 | D72: 608.98 | E72: 601.37 | F72: 595.93 | G72: 588.32 | H72: 614.42 | I72: 622.03 | J72: 627.47 | K72: 616.6 | L72: 603.55 | M72: 39.98703
A73: 64 | B73: DALBHARAT | C73: 1942.2 | D73: 1956.62 | E73: 1899.83 | F73: 1857.47 | G73: 1800.68 | H73: 1998.98 | I73: 2055.77 | J73: 2098.13 | K73: 2013.4 | L73: 1914.25 | M73: 3.05169
A74: 65 | B74: DEEPAKNTR | C74: 2126.05 | D74: 2172.88 | E74: 2047.32 | F74: 1968.58 | G74: 1843.02 | H74: 2251.62 | I74: 2377.18 | J74: 2455.92 | K74: 2298.45 | L74: 2094.15 | M74: 18.42207
A75: 66 | B75: DHANI | C75: 173.95 | D75: 173.43 | E75: 167.62 | F75: 161.28 | G75: 155.47 | H75: 179.77 | I75: 185.58 | J75: 191.92 | K75: 179.25 | L75: 167.1 | M75: 28.97756
A76: 67 | B76: DIVISLAB | C76: 4679.15 | D76: 4727.97 | E76: 4617.63 | F76: 4556.12 | G76: 4445.78 | H76: 4789.48 | I76: 4899.82 | J76: 4961.33 | K76: 4838.3 | L76: 4666.45 | M76: 4.56467
A77: 68 | B77: DIXON | C77: 5067.55 | D77: 5161.52 | E77: 4906.03 | F77: 4744.52 | G77: 4489.03 | H77: 5323.03 | I77: 5578.52 | J77: 5740.03 | K77: 5417 | L77: 5000 | M77: 6.74665
A78: 69 | B78: LALPATHLAB | C78: 3471.8 | D78: 3517.48 | E78: 3405.32 | F78: 3338.83 | G78: 3226.67 | H78: 3583.97 | I78: 3696.13 | J78: 3762.62 | K78: 3629.65 | L78: 3451 | M78: 1.27498
A79: 70 | B79: DRREDDY | C79: 4607.6 | D79: 4626.27 | E79: 4562.93 | F79: 4518.27 | G79: 4454.93 | H79: 4670.93 | I79: 4734.27 | J79: 4778.93 | K79: 4689.6 | L79: 4581.6 | M79: 1.82018
A80: 71 | B80: EICHERMOT | C80: 2548.05 | D80: 2555.98 | E80: 2508.97 | F80: 2469.88 | G80: 2422.87 | H80: 2595.07 | I80: 2642.08 | J80: 2681.17 | K80: 2603 | L80: 2516.9 | M80: 10.13413
A81: 72 | B81: EMAMILTD | C81: 530.7 | D81: 522.90 | E81: 510.80 | F81: 490.90 | G81: 478.80 | H81: 542.80 | I81: 554.90 | J81: 574.80 | K81: 535 | L81: 503 | M81: 5.95358
A82: 73 | B82: ENDURANCE | C82: 1660.25 | D82: 1685.32 | E82: 1610.93 | F82: 1561.62 | G82: 1487.23 | H82: 1734.63 | I82: 1809.02 | J82: 1858.33 | K82: 1759.7 | L82: 1636 | M82: 1.39185
A83: 74 | B83: ESCORTS | C83: 1802.75 | D83: 1796.40 | E83: 1761.50 | F83: 1720.25 | G83: 1685.35 | H83: 1837.65 | I83: 1872.55 | J83: 1913.80 | K83: 1831.3 | L83: 1755.15 | M83: 42.34114
A84: 75 | B84: EXIDEIND | C84: 169.6 | D84: 171.53 | E84: 166.07 | F84: 162.53 | G84: 157.07 | H84: 175.07 | I84: 180.53 | J84: 184.07 | K84: 177 | L84: 168 | M84: 36.29053
A85: 76 | B85: FEDERALBNK | C85: 91.45 | D85: 92.42 | E85: 89.53 | F85: 87.62 | G85: 84.73 | H85: 94.33 | I85: 97.22 | J85: 99.13 | K85: 95.3 | L85: 90.5 | M85: 173.23342
A86: 77 | B86: FORTIS | C86: 266.9 | D86: 270.67 | E86: 255.08 | F86: 243.27 | G86: 227.68 | H86: 282.48 | I86: 298.07 | J86: 309.88 | K86: 286.25 | L86: 258.85 | M86: 35.20539
A87: 78 | B87: GAIL | C87: 137.3 | D87: 138.35 | E87: 135.20 | F87: 133.10 | G87: 129.95 | H87: 140.45 | I87: 143.60 | J87: 145.70 | K87: 141.5 | L87: 136.25 | M87: 94.16739
A88: 79 | B88: GMRINFRA | C88: 37.45 | D88: 37.57 | E88: 36.13 | F88: 34.82 | G88: 33.38 | H88: 38.88 | I88: 40.32 | J88: 41.63 | K88: 39 | L88: 36.25 | M88: 348.21252
A89: 80 | B89: GLAND | C89: 3540.45 | D89: 3494.48 | E89: 3400.97 | F89: 3261.48 | G89: 3167.97 | H89: 3633.97 | I89: 3727.48 | J89: 3866.97 | K89: 3588 | L89: 3355 | M89: 3.4569
A90: 81 | B90: GLENMARK | C90: 469.25 | D90: 470.82 | E90: 455.43 | F90: 441.62 | G90: 426.23 | H90: 484.63 | I90: 500.02 | J90: 513.83 | K90: 486.2 | L90: 457 | M90: 18.45179
A91: 82 | B91: GODREJCP | C91: 911.65 | D91: 911.33 | E91: 898.32 | F91: 884.98 | G91: 871.97 | H91: 924.67 | I91: 937.68 | J91: 951.02 | K91: 924.35 | L91: 898 | M91: 5.66677
A92: 83 | B92: GODREJIND | C92: 609.6 | D92: 605.17 | E92: 595.48 | F92: 581.37 | G92: 571.68 | H92: 619.28 | I92: 628.97 | J92: 643.08 | K92: 614.85 | L92: 591.05 | M92: 4.08904
A93: 84 | B93: GODREJPROP | C93: 2116.2 | D93: 2122.27 | E93: 2056.28 | F93: 1996.37 | G93: 1930.38 | H93: 2182.18 | I93: 2248.17 | J93: 2308.08 | K93: 2188.25 | L93: 2062.35 | M93: 18.13157
A94: 85 | B94: GRASIM | C94: 1778.3 | D94: 1775.53 | E94: 1752.77 | F94: 1727.23 | G94: 1704.47 | H94: 1801.07 | I94: 1823.83 | J94: 1849.37 | K94: 1798.3 | L94: 1750 | M94: 7.45137
A95: 86 | B95: GUJGASLTD | C95: 622.4 | D95: 627.12 | E95: 609.33 | F95: 596.27 | G95: 578.48 | H95: 640.18 | I95: 657.97 | J95: 671.03 | K95: 644.9 | L95: 614.05 | M95: 16.4378
A96: 87 | B96: GSPL | C96: 303.8 | D96: 301.37 | E96: 294.53 | F96: 285.27 | G96: 278.43 | H96: 310.63 | I96: 317.47 | J96: 326.73 | K96: 308.2 | L96: 292.1 | M96: 12.95449
A97: 88 | B97: HCLTECH | C97: 1110.1 | D97: 1112.65 | E97: 1099.45 | F97: 1088.80 | G97: 1075.60 | H97: 1123.30 | I97: 1136.50 | J97: 1147.15 | K97: 1125.85 | L97: 1102 | M97: 39.61223
A98: 89 | B98: HDFCAMC | C98: 2510.5 | D98: 2539.72 | E98: 2466.38 | F98: 2422.27 | G98: 2348.93 | H98: 2583.83 | I98: 2657.17 | J98: 2701.28 | K98: 2613.05 | L98: 2495.6 | M98: 4.24744
A99: 90 | B99: HDFCBANK | C99: 1515.35 | D99: 1522.37 | E99: 1492.03 | F99: 1468.72 | G99: 1438.38 | H99: 1545.68 | I99: 1576.02 | J99: 1599.33 | K99: 1552.7 | L99: 1499.05 | M99: 76.30636
A100: 91 | B100: HDFCLIFE | C100: 688.85 | D100: 694.30 | E100: 678.85 | F100: 668.85 | G100: 653.40 | H100: 704.30 | I100: 719.75 | J100: 729.75 | K100: 709.75 | L100: 684.3 | M100: 21.09072
A101: 92 | B101: HAVELLS | C101: 1377.5 | D101: 1386.62 | E101: 1348.88 | F101: 1320.27 | G101: 1282.53 | H101: 1415.23 | I101: 1452.97 | J101: 1481.58 | K101: 1424.35 | L101: 1358 | M101: 25.87391
A102: 93 | B102: HEROMOTOCO | C102: 2634.6 | D102: 2650.50 | E102: 2602.80 | F102: 2571.00 | G102: 2523.30 | H102: 2682.30 | I102: 2730.00 | J102: 2761.80 | K102: 2698.2 | L102: 2618.7 | M102: 6.36253
A103: 94 | B103: HINDALCO | C103: 442.15 | D103: 440.92 | E103: 434.13 | F103: 426.12 | G103: 419.33 | H103: 448.93 | I103: 455.72 | J103: 463.73 | K103: 447.7 | L103: 432.9 | M103: 100.0705
A104: 95 | B104: HAL | C104: 1362.35 | D104: 1372.82 | E104: 1333.03 | F104: 1303.72 | G104: 1263.93 | H104: 1402.13 | I104: 1441.92 | J104: 1471.23 | K104: 1412.6 | L104: 1343.5 | M104: 6.17175
A105: 96 | B105: HINDCOPPER | C105: 115.55 | D105: 116.67 | E105: 113.53 | F105: 111.52 | G105: 108.38 | H105: 118.68 | I105: 121.82 | J105: 123.83 | K105: 119.8 | L105: 114.65 | M105: 28.48314
A106: 97 | B106: HINDPETRO | C106: 316.95 | D106: 319.25 | E106: 311.85 | F106: 306.75 | G106: 299.35 | H106: 324.35 | I106: 331.75 | J106: 336.85 | K106: 326.65 | L106: 314.15 | M106: 32.09866
A107: 98 | B107: HINDUNILVR | C107: 2388.55 | D107: 2391.87 | E107: 2373.83 | F107: 2359.12 | G107: 2341.08 | H107: 2406.58 | I107: 2424.62 | J107: 2439.33 | K107: 2409.9 | L107: 2377.15 | M107: 16.2929
A108: 99 | B108: HINDZINC | C108: 318.8 | D108: 317.58 | E108: 312.17 | F108: 305.53 | G108: 300.12 | H108: 324.22 | I108: 329.63 | J108: 336.27 | K108: 323 | L108: 310.95 | M108: 13.09404
A109: 100 | B109: HDFC | C109: 2894.85 | D109: 2904.67 | E109: 2875.33 | F109: 2855.82 | G109: 2826.48 | H109: 2924.18 | I109: 2953.52 | J109: 2973.03 | K109: 2934 | L109: 2885.15 | M109: 39.51901
A110: 101 | B110: ICICIBANK | C110: 752 | D110: 754.23 | E110: 738.02 | F110: 724.03 | G110: 707.82 | H110: 768.22 | I110: 784.43 | J110: 798.42 | K110: 770.45 | L110: 740.25 | M110: 204.03786
A111: 102 | B111: ICICIGI | C111: 1462.35 | D111: 1479.75 | E111: 1439.60 | F111: 1416.85 | G111: 1376.70 | H111: 1502.50 | I111: 1542.65 | J111: 1565.40 | K111: 1519.9 | L111: 1457 | M111: 7.74628
A112: 103 | B112: ICICIPRULI | C112: 620.3 | D112: 626.50 | E112: 610.05 | F112: 599.80 | G112: 583.35 | H112: 636.75 | I112: 653.20 | J112: 663.45 | K112: 642.95 | L112: 616.25 | M112: 7.11313
A113: 104 | B113: ISEC | C113: 780.75 | D113: 783.40 | E113: 768.10 | F113: 755.45 | G113: 740.15 | H113: 796.05 | I113: 811.35 | J113: 824.00 | K113: 798.7 | L113: 770.75 | M113: 4.79867
A114: 105 | B114: IDFCFIRSTB | C114: 47.2 | D114: 47.90 | E114: 45.90 | F114: 44.60 | G114: 42.60 | H114: 49.20 | I114: 51.20 | J114: 52.50 | K114: 49.9 | L114: 46.6 | M114: 272.56824
A115: 106 | B115: ITC | C115: 230.9 | D115: 233.73 | E115: 226.72 | F115: 222.53 | G115: 215.52 | H115: 237.92 | I115: 244.93 | J115: 249.12 | K115: 240.75 | L115: 229.55 | M115: 225.74227
A116: 107 | B116: INDIAMART | C116: 7520.35 | D116: 7468.93 | E116: 7187.87 | F116: 6855.38 | G116: 6574.32 | H116: 7801.42 | I116: 8082.48 | J116: 8414.97 | K116: 7750 | L116: 7136.45 | M116: 2.06082
A117: 108 | B117: INDIANB | C117: 143.7 | D117: 148.95 | E117: 136.75 | F117: 129.80 | G117: 117.60 | H117: 155.90 | I117: 168.10 | J117: 175.05 | K117: 161.15 | L117: 142 | M117: 67.53354
A118: 109 | B118: INDHOTEL | C118: 201.95 | D118: 203.20 | E118: 195.40 | F118: 188.85 | G118: 181.05 | H118: 209.75 | I118: 217.55 | J118: 224.10 | K118: 211 | L118: 196.65 | M118: 70.05587
A119: 110 | B119: IOC | C119: 124.5 | D119: 126.15 | E119: 122.40 | F119: 120.30 | G119: 116.55 | H119: 128.25 | I119: 132.00 | J119: 134.10 | K119: 129.9 | L119: 124.05 | M119: 77.49576
A120: 111 | B120: IRCTC | C120: 886.75 | D120: 892.93 | E120: 866.17 | F120: 845.58 | G120: 818.82 | H120: 913.52 | I120: 940.28 | J120: 960.87 | K120: 919.7 | L120: 872.35 | M120: 113.76478
A121: 112 | B121: IRFC | C121: 23.75 | D121: 23.70 | E121: 23.40 | F121: 23.05 | G121: 22.75 | H121: 24.05 | I121: 24.35 | J121: 24.70 | K121: 24 | L121: 23.35 | M121: 151.44944
A122: 113 | B122: IGL | C122: 474.3 | D122: 478.67 | E122: 466.08 | F122: 457.87 | G122: 445.28 | H122: 486.88 | I122: 499.47 | J122: 507.68 | K122: 491.25 | L122: 470.45 | M122: 18.09765
A123: 114 | B123: INDUSTOWER | C123: 291.95 | D123: 292.98 | E123: 278.97 | F123: 265.98 | G123: 251.97 | H123: 305.97 | I123: 319.98 | J123: 332.97 | K123: 307 | L123: 280 | M123: 111.73039
A124: 115 | B124: INDUSINDBK | C124: 1006.9 | D124: 1007.12 | E124: 988.33 | F124: 969.77 | G124: 950.98 | H124: 1025.68 | I124: 1044.47 | J124: 1063.03 | K124: 1025.9 | L124: 988.55 | M124: 61.98324
A125: 116 | B125: NAUKRI | C125: 6071.9 | D125: 6197.52 | E125: 5833.58 | F125: 5595.27 | G125: 5231.33 | H125: 6435.83 | I125: 6799.77 | J125: 7038.08 | K125: 6561.45 | L125: 5959.2 | M125: 5.88081
A126: 117 | B126: INFY | C126: 1759.4 | D126: 1765.32 | E126: 1745.23 | F126: 1731.07 | G126: 1710.98 | H126: 1779.48 | I126: 1799.57 | J126: 1813.73 | K126: 1785.4 | L126: 1751.15 | M126: 66.21839
A127: 118 | B127: INDIGO | C127: 2162.8 | D127: 2188.25 | E127: 2102.55 | F127: 2042.30 | G127: 1956.60 | H127: 2248.50 | I127: 2334.20 | J127: 2394.45 | K127: 2273.95 | L127: 2128 | M127: 8.38797
A128: 119 | B128: IPCALAB | C128: 2031.75 | D128: 2052.77 | E128: 2000.68 | F128: 1969.62 | G128: 1917.53 | H128: 2083.83 | I128: 2135.92 | J128: 2166.98 | K128: 2104.85 | L128: 2021.7 | M128: 2.59191
A129: 120 | B129: JSWENERGY | C129: 294.3 | D129: 292.28 | E129: 282.57 | F129: 270.83 | G129: 261.12 | H129: 304.02 | I129: 313.73 | J129: 325.47 | K129: 302 | L129: 280.55 | M129: 20.51183
A130: 121 | B130: JSWSTEEL | C130: 657 | D130: 655.18 | E130: 646.87 | F130: 636.73 | G130: 628.42 | H130: 665.32 | I130: 673.63 | J130: 683.77 | K130: 663.5 | L130: 645.05 | M130: 39.44981
A131: 122 | B131: JINDALSTEL | C131: 368.4 | D131: 367.82 | E131: 362.63 | F131: 356.87 | G131: 351.68 | H131: 373.58 | I131: 378.77 | J131: 384.53 | K131: 373 | L131: 362.05 | M131: 47.97124
A132: 123 | B132: JUBLFOOD | C132: 3742.2 | D132: 3760.97 | E132: 3657.23 | F132: 3572.27 | G132: 3468.53 | H132: 3845.93 | I132: 3949.67 | J132: 4034.63 | K132: 3864.7 | L132: 3676 | M132: 4.1459
A133: 124 | B133: KOTAKBANK | C133: 1955.45 | D133: 1980.15 | E133: 1916.30 | F133: 1877.15 | G133: 1813.30 | H133: 2019.30 | I133: 2083.15 | J133: 2122.30 | K133: 2044 | L133: 1941 | M133: 27.48329
A134: 125 | B134: L&TFH | C134: 78.95 | D134: 79.50 | E134: 77.05 | F134: 75.15 | G134: 72.70 | H134: 81.40 | I134: 83.85 | J134: 85.75 | K134: 81.95 | L134: 77.6 | M134: 91.91752
A135: 126 | B135: LTTS | C135: 5348.45 | D135: 5411.82 | E135: 5217.63 | F135: 5086.82 | G135: 4892.63 | H135: 5542.63 | I135: 5736.82 | J135: 5867.63 | K135: 5606 | L135: 5281 | M135: 3.67769
A136: 127 | B136: LICHSGFIN | C136: 395.4 | D136: 397.87 | E136: 389.33 | F136: 383.27 | G136: 374.73 | H136: 403.93 | I136: 412.47 | J136: 418.53 | K136: 406.4 | L136: 391.8 | M136: 26.94794
A137: 128 | B137: LTI | C137: 6829.6 | D137: 6894.02 | E137: 6689.03 | F137: 6548.47 | G137: 6343.48 | H137: 7034.58 | I137: 7239.57 | J137: 7380.13 | K137: 7099 | L137: 6753.45 | M137: 3.53527
A138: 129 | B138: LT | C138: 1864.5 | D138: 1867.45 | E138: 1834.90 | F138: 1805.30 | G138: 1772.75 | H138: 1897.05 | I138: 1929.60 | J138: 1959.20 | K138: 1900 | L138: 1837.85 | M138: 24.07464
A139: 130 | B139: LAURUSLABS | C139: 471.85 | D139: 478.38 | E139: 460.82 | F139: 449.78 | G139: 432.22 | H139: 489.42 | I139: 506.98 | J139: 518.02 | K139: 495.95 | L139: 467.35 | M139: 36.89969
A140: 131 | B140: LUPIN | C140: 871.3 | D140: 880.73 | E140: 859.02 | F140: 846.73 | G140: 825.02 | H140: 893.02 | I140: 914.73 | J140: 927.02 | K140: 902.45 | L140: 868.45 | M140: 11.54119
A141: 132 | B141: MRF | C141: 75657.6 | D141: 76192.20 | E141: 74485.40 | F141: 73313.20 | G141: 71606.40 | H141: 77364.40 | I141: 79071.20 | J141: 80243.40 | K141: 77899 | L141: 75020 | M141: 0.15725
A142: 133 | B142: MGL | C142: 940.2 | D142: 951.23 | E142: 923.97 | F142: 907.73 | G142: 880.47 | H142: 967.47 | I142: 994.73 | J142: 1010.97 | K142: 978.5 | L142: 935 | M142: 5.5394
A143: 134 | B143: M&MFIN | C143: 170.05 | D143: 171.68 | E143: 166.37 | F143: 162.68 | G143: 157.37 | H143: 175.37 | I143: 180.68 | J143: 184.37 | K143: 177 | L143: 168 | M143: 32.63622
A144: 135 | B144: M&M | C144: 900.85 | D144: 908.27 | E144: 886.28 | F144: 871.72 | G144: 849.73 | H144: 922.83 | I144: 944.82 | J144: 959.38 | K144: 930.25 | L144: 893.7 | M144: 37.31367
A145: 136 | B145: MANAPPURAM | C145: 178.5 | D145: 179.35 | E145: 173.70 | F145: 168.90 | G145: 163.25 | H145: 184.15 | I145: 189.80 | J145: 194.60 | K145: 185 | L145: 174.55 | M145: 37.69943
A146: 137 | B146: MARICO | C146: 539.5 | D146: 537.90 | E146: 533.85 | F146: 528.20 | G146: 524.15 | H146: 543.55 | I146: 547.60 | J146: 553.25 | K146: 541.95 | L146: 532.25 | M146: 14.75495
A147: 138 | B147: MARUTI | C147: 7864.4 | D147: 7952.93 | E147: 7718.02 | F147: 7571.63 | G147: 7336.72 | H147: 8099.32 | I147: 8334.23 | J147: 8480.62 | K147: 8187.85 | L147: 7806.55 | M147: 6.72298
A148: 139 | B148: MFSL | C148: 923.55 | D148: 930.43 | E148: 908.42 | F148: 893.28 | G148: 871.27 | H148: 945.57 | I148: 967.58 | J148: 982.72 | K148: 952.45 | L148: 915.3 | M148: 7.50893
A149: 140 | B149: MINDTREE | C149: 4754.05 | D149: 4764.12 | E149: 4661.98 | F149: 4569.92 | G149: 4467.78 | H149: 4856.18 | I149: 4958.32 | J149: 5050.38 | K149: 4866.25 | L149: 4672.05 | M149: 10.08041
A150: 141 | B150: MPHASIS | C150: 3247.7 | D150: 3261.58 | E150: 3163.17 | F150: 3078.63 | G150: 2980.22 | H150: 3346.12 | I150: 3444.53 | J150: 3529.07 | K150: 3360 | L150: 3177.05 | M150: 7.65536
A151: 142 | B151: MUTHOOTFIN | C151: 1545.45 | D151: 1562.48 | E151: 1521.97 | F151: 1498.48 | G151: 1457.97 | H151: 1585.97 | I151: 1626.48 | J151: 1649.97 | K151: 1603 | L151: 1539 | M151: 10.87201
A152: 143 | B152: NATCOPHARM | C152: 808.15 | D152: 813.50 | E152: 793.00 | F152: 777.85 | G152: 757.35 | H152: 828.65 | I152: 849.15 | J152: 864.30 | K152: 834 | L152: 798.35 | M152: 2.81187
A153: 144 | B153: NMDC | C153: 135.6 | D153: 135.32 | E153: 133.43 | F153: 131.27 | G153: 129.38 | H153: 137.48 | I153: 139.37 | J153: 141.53 | K153: 137.2 | L153: 133.15 | M153: 81.55718
A154: 145 | B154: NTPC | C154: 130.15 | D154: 132.25 | E154: 127.60 | F154: 125.05 | G154: 120.40 | H154: 134.80 | I154: 139.45 | J154: 142.00 | K154: 136.9 | L154: 129.7 | M154: 159.90636
A155: 146 | B155: NATIONALUM | C155: 96.1 | D155: 95.37 | E155: 93.83 | F155: 91.57 | G155: 90.03 | H155: 97.63 | I155: 99.17 | J155: 101.43 | K155: 96.9 | L155: 93.1 | M155: 293.62641
A156: 147 | B156: NAVINFLUOR | C156: 3287.45 | D156: 3359.17 | E156: 3178.28 | F156: 3069.12 | G156: 2888.23 | H156: 3468.33 | I156: 3649.22 | J156: 3758.38 | K156: 3540.05 | L156: 3250 | M156: 4.42256
A157: 148 | B157: NESTLEIND | C157: 18995.35 | D157: 19131.23 | E157: 18696.62 | F157: 18397.88 | G157: 17963.27 | H157: 19429.97 | I157: 19864.58 | J157: 20163.32 | K157: 19565.85 | L157: 18832.5 | M157: 0.44138
A158: 149 | B158: NAM-INDIA | C158: 387.95 | D158: 392.75 | E158: 378.60 | F158: 369.25 | G158: 355.10 | H158: 402.10 | I158: 416.25 | J158: 425.60 | K158: 406.9 | L158: 383.4 | M158: 5.23851
A159: 150 | B159: OBEROIRLTY | C159: 886.8 | D159: 893.57 | E159: 859.13 | F159: 831.47 | G159: 797.03 | H159: 921.23 | I159: 955.67 | J159: 983.33 | K159: 928 | L159: 865.9 | M159: 12.75312
A160: 151 | B160: ONGC | C160: 146.55 | D160: 148.75 | E160: 143.80 | F160: 141.05 | G160: 136.10 | H160: 151.50 | I160: 156.45 | J160: 159.20 | K160: 153.7 | L160: 146 | M160: 215.5859
A161: 152 | B161: OIL | C161: 195.45 | D161: 201.50 | E161: 188.05 | F161: 180.65 | G161: 167.20 | H161: 208.90 | I161: 222.35 | J161: 229.75 | K161: 214.95 | L161: 194.1 | M161: 20.08015
A162: 153 | B162: PIIND | C162: 2872 | D162: 2860.57 | E162: 2796.43 | F162: 2720.87 | G162: 2656.73 | H162: 2936.13 | I162: 3000.27 | J162: 3075.83 | K162: 2924.7 | L162: 2785 | M162: 5.07513
A163: 154 | B163: PAGEIND | C163: 39478.35 | D163: 39859.48 | E163: 38928.97 | F163: 38379.58 | G163: 37449.07 | H163: 40408.87 | I163: 41339.38 | J163: 41888.77 | K163: 40790 | L163: 39310.1 | M163: 0.35139
A164: 155 | B164: PETRONET | C164: 222.2 | D164: 222.65 | E164: 219.60 | F164: 217.00 | G164: 213.95 | H164: 225.25 | I164: 228.30 | J164: 230.90 | K164: 225.7 | L164: 220.05 | M164: 39.84762
A165: 156 | B165: PFIZER | C165: 4934.7 | D165: 4967.23 | E165: 4848.17 | F165: 4761.63 | G165: 4642.57 | H165: 5053.77 | I165: 5172.83 | J165: 5259.37 | K165: 5086.3 | L165: 4880.7 | M165: 0.21632
A166: 157 | B166: PIDILITIND | C166: 2350 | D166: 2373.95 | E166: 2304.05 | F166: 2258.10 | G166: 2188.20 | H166: 2419.90 | I166: 2489.80 | J166: 2535.75 | K166: 2443.85 | L166: 2328 | M166: 5.27841
A167: 158 | B167: PEL | C167: 2580.25 | D167: 2571.20 | E167: 2524.60 | F167: 2468.95 | G167: 2422.35 | H167: 2626.85 | I167: 2673.45 | J167: 2729.10 | K167: 2617.8 | L167: 2515.55 | M167: 6.66304
A168: 159 | B168: POLYCAB | C168: 2367.8 | D168: 2401.60 | E168: 2303.20 | F168: 2238.60 | G168: 2140.20 | H168: 2466.20 | I168: 2564.60 | J168: 2629.20 | K168: 2500 | L168: 2337 | M168: 4.0724
A169: 160 | B169: PFC | C169: 126.05 | D169: 127.23 | E169: 124.57 | F169: 123.08 | G169: 120.42 | H169: 128.72 | I169: 131.38 | J169: 132.87 | K169: 129.9 | L169: 125.75 | M169: 54.76536
A170: 161 | B170: POWERGRID | C170: 194.2 | D170: 194.40 | E170: 191.80 | F170: 189.40 | G170: 186.80 | H170: 196.80 | I170: 199.40 | J170: 201.80 | K170: 197 | L170: 192 | M170: 188.21791
A171: 162 | B171: PRESTIGE | C171: 441.6 | D171: 448.87 | E171: 432.73 | F171: 423.87 | G171: 407.73 | H171: 457.73 | I171: 473.87 | J171: 482.73 | K171: 465 | L171: 440 | M171: 9.1192
A172: 163 | B172: PGHH | C172: 15085.6 | D172: 15050.60 | E172: 14875.55 | F172: 14665.50 | G172: 14490.45 | H172: 15260.65 | I172: 15435.70 | J172: 15645.75 | K172: 15225.65 | L172: 14840.55 | M172: 0.28035
A173: 164 | B173: PNB | C173: 39.9 | D173: 40.35 | E173: 38.90 | F173: 37.90 | G173: 36.45 | H173: 41.35 | I173: 42.80 | J173: 43.80 | K173: 41.8 | L173: 39.35 | M173: 667.95201
A174: 165 | B174: RBLBANK | C174: 193.35 | D174: 196.15 | E174: 187.75 | F174: 182.15 | G174: 173.75 | H174: 201.75 | I174: 210.15 | J174: 215.75 | K174: 204.55 | L174: 190.55 | M174: 83.15552
A175: 166 | B175: RECLTD | C175: 133.4 | D175: 134.27 | E175: 131.58 | F175: 129.77 | G175: 127.08 | H175: 136.08 | I175: 138.77 | J175: 140.58 | K175: 136.95 | L175: 132.45 | M175: 79.76133
A176: 167 | B176: RELIANCE | C176: 2363.75 | D176: 2387.92 | E176: 2326.83 | F176: 2289.92 | G176: 2228.83 | H176: 2424.83 | I176: 2485.92 | J176: 2522.83 | K176: 2449 | L176: 2351 | M176: 111.33364
A177: 168 | B177: SBICARD | C177: 1007.3 | D177: 1011.97 | E177: 987.33 | F177: 967.37 | G177: 942.73 | H177: 1031.93 | I177: 1056.57 | J177: 1076.53 | K177: 1036.6 | L177: 992 | M177: 15.23389
A178: 169 | B178: SBILIFE | C178: 1150.65 | D178: 1159.15 | E178: 1128.65 | F178: 1106.65 | G178: 1076.15 | H178: 1181.15 | I178: 1211.65 | J178: 1233.65 | K178: 1189.65 | L178: 1137.15 | M178: 7.72737
A179: 170 | B179: SRF | C179: 2093.9 | D179: 2117.60 | E179: 2020.20 | F179: 1946.50 | G179: 1849.10 | H179: 2191.30 | I179: 2288.70 | J179: 2362.40 | K179: 2215 | L179: 2043.9 | M179: 24.59397
A180: 171 | B180: SANOFI | C180: 8066.4 | D180: 8052.65 | E180: 7935.30 | F180: 7804.20 | G180: 7686.85 | H180: 8183.75 | I180: 8301.10 | J180: 8432.20 | K180: 8170 | L180: 7921.55 | M180: 0.11665
A181: 172 | B181: SHREECEM | C181: 26603.05 | D181: 26740.22 | E181: 26190.43 | F181: 25777.82 | G181: 25228.03 | H181: 27152.83 | I181: 27702.62 | J181: 28115.23 | K181: 27290 | L181: 26327.6 | M181: 0.23769
A182: 173 | B182: SRTRANSFIN | C182: 1561.65 | D182: 1573.20 | E182: 1536.60 | F182: 1511.55 | G182: 1474.95 | H182: 1598.25 | I182: 1634.85 | J182: 1659.90 | K182: 1609.8 | L182: 1548.15 | M182: 10.55933
A183: 174 | B183: SIEMENS | C183: 2263.95 | D183: 2278.12 | E183: 2222.58 | F183: 2181.22 | G183: 2125.68 | H183: 2319.48 | I183: 2375.02 | J183: 2416.38 | K183: 2333.65 | L183: 2236.75 | M183: 2.06036
A184: 175 | B184: SBIN | C184: 486.4 | D184: 489.97 | E184: 473.93 | F184: 461.47 | G184: 445.43 | H184: 502.43 | I184: 518.47 | J184: 530.93 | K184: 506 | L184: 477.5 | M184: 288.00269
A185: 176 | B185: SAIL | C185: 107.35 | D185: 108.28 | E185: 104.87 | F185: 102.38 | G185: 98.97 | H185: 110.77 | I185: 114.18 | J185: 116.67 | K185: 111.7 | L185: 105.8 | M185: 322.73044
A186: 177 | B186: SUNPHARMA | C186: 770.75 | D186: 776.60 | E186: 759.20 | F186: 747.65 | G186: 730.25 | H186: 788.15 | I186: 805.55 | J186: 817.10 | K186: 794 | L186: 765.05 | M186: 28.94426
A187: 178 | B187: SUNTV | C187: 540.5 | D187: 539.88 | E187: 535.47 | F187: 530.43 | G187: 526.02 | H187: 544.92 | I187: 549.33 | J187: 554.37 | K187: 544.3 | L187: 534.85 | M187: 13.38075
A188: 179 | B188: SYNGENE | C188: 606.5 | D188: 607.97 | E188: 594.03 | F188: 581.57 | G188: 567.63 | H188: 620.43 | I188: 634.37 | J188: 646.83 | K188: 621.9 | L188: 595.5 | M188: 16.37122
A189: 180 | B189: TVSMOTOR | C189: 709.85 | D189: 715.37 | E189: 699.48 | F189: 689.12 | G189: 673.23 | H189: 725.73 | I189: 741.62 | J189: 751.98 | K189: 731.25 | L189: 705 | M189: 17.14646
A190: 181 | B190: TATACHEM | C190: 892 | D190: 901.02 | E190: 870.98 | F190: 849.97 | G190: 819.93 | H190: 922.03 | I190: 952.07 | J190: 973.08 | K190: 931.05 | L190: 880 | M190: 15.90577
A191: 182 | B191: TATACOMM | C191: 1222.1 | D191: 1233.42 | E191: 1198.68 | F191: 1175.27 | G191: 1140.53 | H191: 1256.83 | I191: 1291.57 | J191: 1314.98 | K191: 1268.15 | L191: 1210 | M191: 2.14763
A192: 183 | B192: TCS | C192: 3458.4 | D192: 3471.55 | E192: 3427.15 | F192: 3395.90 | G192: 3351.50 | H192: 3502.80 | I192: 3547.20 | J192: 3578.45 | K192: 3515.95 | L192: 3440.3 | M192: 31.67936
A193: 184 | B193: TATACONSUM | C193: 812.75 | D193: 819.75 | E193: 800.45 | F193: 788.15 | G193: 768.85 | H193: 832.05 | I193: 851.35 | J193: 863.65 | K193: 839.05 | L193: 807.45 | M193: 19.51384
A194: 185 | B194: TATAELXSI | C194: 6029.8 | D194: 6147.83 | E194: 5881.97 | F194: 5734.13 | G194: 5468.27 | H194: 6295.67 | I194: 6561.53 | J194: 6709.37 | K194: 6413.7 | L194: 6000 | M194: 2.57465
A195: 186 | B195: TATAMOTORS | C195: 486.1 | D195: 492.25 | E195: 472.25 | F195: 458.40 | G195: 438.40 | H195: 506.10 | I195: 526.10 | J195: 539.95 | K195: 512.25 | L195: 478.4 | M195: 400.44849
A196: 187 | B196: TATAPOWER | C196: 227.65 | D196: 230.02 | E196: 221.63 | F196: 215.62 | G196: 207.23 | H196: 236.03 | I196: 244.42 | J196: 250.43 | K196: 238.4 | L196: 224 | M196: 624.59802
A197: 188 | B197: TATASTEEL | C197: 1165.05 | D197: 1169.28 | E197: 1141.77 | F197: 1118.48 | G197: 1090.97 | H197: 1192.57 | I197: 1220.08 | J197: 1243.37 | K197: 1196.8 | L197: 1146 | M197: 96.21001
A198: 189 | B198: TECHM | C198: 1541.3 | D198: 1547.70 | E198: 1513.60 | F198: 1485.90 | G198: 1451.80 | H198: 1575.40 | I198: 1609.50 | J198: 1637.20 | K198: 1581.8 | L198: 1520 | M198: 19.51782
A199: 190 | B199: RAMCOCEM | C199: 989.3 | D199: 989.57 | E199: 975.73 | F199: 962.17 | G199: 948.33 | H199: 1003.13 | I199: 1016.97 | J199: 1030.53 | K199: 1003.4 | L199: 976 | M199: 4.30141
A200: 191 | B200: TITAN | C200: 2391.3 | D200: 2412.23 | E200: 2332.07 | F200: 2272.83 | G200: 2192.67 | H200: 2471.47 | I200: 2551.63 | J200: 2610.87 | K200: 2492.4 | L200: 2353 | M200: 13.61329
A201: 192 | B201: TORNTPHARM | C201: 2753.15 | D201: 2764.82 | E201: 2723.63 | F201: 2694.12 | G201: 2652.93 | H201: 2794.33 | I201: 2835.52 | J201: 2865.03 | K201: 2806 | L201: 2735.3 | M201: 1.2785
A202: 193 | B202: TORNTPOWER | C202: 512.05 | D202: 514.98 | E202: 504.97 | F202: 497.88 | G202: 487.87 | H202: 522.07 | I202: 532.08 | J202: 539.17 | K202: 525 | L202: 507.9 | M202: 5.83012
A203: 194 | B203: TRENT | C203: 1112.8 | D203: 1117.98 | E203: 1096.42 | F203: 1080.03 | G203: 1058.47 | H203: 1134.37 | I203: 1155.93 | J203: 1172.32 | K203: 1139.55 | L203: 1101.6 | M203: 7.24443
A204: 195 | B204: UPL | C204: 716.5 | D204: 723.45 | E204: 699.80 | F204: 683.10 | G204: 659.45 | H204: 740.15 | I204: 763.80 | J204: 780.50 | K204: 747.1 | L204: 706.75 | M204: 20.41278
A205: 196 | B205: ULTRACEMCO | C205: 7653.8 | D205: 7671.00 | E205: 7533.40 | F205: 7413.00 | G205: 7275.40 | H205: 7791.40 | I205: 7929.00 | J205: 8049.40 | K205: 7808.6 | L205: 7550.6 | M205: 3.83629
... 29 more rows

Sheet MidCap Intra
L5: Back To Main Page
A6: FOR INTRA DAY TRADING | K6: =Main!B10 -> 2021-11-23
A9: Sr.no | B9: Scrip | C9: CLOSE RATE | D9: Pivot Point | E9: Supports | H9: Resistances
E10: S1 | F10: S2 | G10: S3 | H10: R1 | I10: R2 | J10: R3 | K10: HIGH | L10: LOW | M10: Total Trade Quanity in Lakhs
A11: 1 | B11: 3MINDIA | C11: 25250.9 | D11: 25283.97 | E11: 24967.93 | F11: 24684.97 | G11: 24368.93 | H11: 25566.93 | I11: 25882.97 | J11: 26165.93 | K11: 25600 | L11: 25001 | M11: 0.02224
A12: 2 | B12: AARTIDRUGS | C12: 505.95 | D12: 514.20 | E12: 495.25 | F12: 484.55 | G12: 465.60 | H12: 524.90 | I12: 543.85 | J12: 554.55 | K12: 533.15 | L12: 503.5 | M12: 2.56887
A13: 3 | B13: AARTIIND | C13: 912.45 | D13: 927.15 | E13: 885.30 | F13: 858.15 | G13: 816.30 | H13: 954.30 | I13: 996.15 | J13: 1023.30 | K13: 969 | L13: 900 | M13: 19.14206
A14: 4 | B14: AAVAS | C14: 2777.05 | D14: 2777.47 | E14: 2735.13 | F14: 2693.22 | G14: 2650.88 | H14: 2819.38 | I14: 2861.72 | J14: 2903.63 | K14: 2819.8 | L14: 2735.55 | M14: 0.40407
A15: 5 | B15: ABB | C15: 2099.8 | D15: 2087.57 | E15: 1990.48 | F15: 1881.17 | G15: 1784.08 | H15: 2196.88 | I15: 2293.97 | J15: 2403.28 | K15: 2184.65 | L15: 1978.25 | M15: 2.40928
A16: 6 | B16: ABBOTINDIA | C16: 19512.1 | D16: 19567.38 | E16: 19394.87 | F16: 19277.63 | G16: 19105.12 | H16: 19684.62 | I16: 19857.13 | J16: 19974.37 | K16: 19739.9 | L16: 19450.15 | M16: 0.10912
A17: 7 | B17: ABCAPITAL | C17: 100.25 | D17: 100.78 | E17: 98.47 | F17: 96.68 | G17: 94.37 | H17: 102.57 | I17: 104.88 | J17: 106.67 | K17: 103.1 | L17: 99 | M17: 20.59731
A18: 8 | B18: ABFRL | C18: 269.55 | D18: 272.87 | E18: 262.88 | F18: 256.22 | G18: 246.23 | H18: 279.53 | I18: 289.52 | J18: 296.18 | K18: 282.85 | L18: 266.2 | M18: 80.49409
A19: 9 | B19: ACC | C19: 2373.55 | D19: 2391.18 | E19: 2337.37 | F19: 2301.18 | G19: 2247.37 | H19: 2427.37 | I19: 2481.18 | J19: 2517.37 | K19: 2445 | L19: 2355 | M19: 2.44687
A20: 10 | B20: ADANIENT | C20: 1675.75 | D20: 1662.40 | E20: 1623.40 | F20: 1571.05 | G20: 1532.05 | H20: 1714.75 | I20: 1753.75 | J20: 1806.10 | K20: 1701.4 | L20: 1610.05 | M20: 25.5217
A21: 11 | B21: ADANIGREEN | C21: 1340.95 | D21: 1343.37 | E21: 1318.83 | F21: 1296.72 | G21: 1272.18 | H21: 1365.48 | I21: 1390.02 | J21: 1412.13 | K21: 1367.9 | L21: 1321.25 | M21: 27.25159
A22: 12 | B22: ADANIPORTS | C22: 715 | D22: 717.47 | E22: 701.53 | F22: 688.07 | G22: 672.13 | H22: 730.93 | I22: 746.87 | J22: 760.33 | K22: 733.4 | L22: 704 | M22: 35.5756
A23: 13 | B23: ADANITRANS | C23: 1913.45 | D23: 1888.72 | E23: 1842.38 | F23: 1771.32 | G23: 1724.98 | H23: 1959.78 | I23: 2006.12 | J23: 2077.18 | K23: 1935.05 | L23: 1817.65 | M23: 0.79041
A24: 14 | B24: ADVENZYMES | C24: 325.95 | D24: 328.75 | E24: 318.90 | F24: 311.85 | G24: 302.00 | H24: 335.80 | I24: 345.65 | J24: 352.70 | K24: 338.6 | L24: 321.7 | M24: 1.88134
A25: 15 | B25: AEGISCHEM | C25: 194.45 | D25: 195.48 | E25: 191.17 | F25: 187.88 | G25: 183.57 | H25: 198.77 | I25: 203.08 | J25: 206.37 | K25: 199.8 | L25: 192.2 | M25: 6.82536
A26: 16 | B26: AFFLE | C26: 1105.75 | D26: 1118.58 | E26: 1067.17 | F26: 1028.58 | G26: 977.17 | H26: 1157.17 | I26: 1208.58 | J26: 1247.17 | K26: 1170 | L26: 1080 | M26: 4.07812
A27: 17 | B27: AIAENG | C27: 1878.15 | D27: 1867.18 | E27: 1840.67 | F27: 1803.18 | G27: 1776.67 | H27: 1904.67 | I27: 1931.18 | J27: 1968.67 | K27: 1893.7 | L27: 1829.7 | M27: 0.38524
A28: 18 | B28: AJANTPHARM | C28: 2094.2 | D28: 2103.07 | E28: 2068.13 | F28: 2042.07 | G28: 2007.13 | H28: 2129.13 | I28: 2164.07 | J28: 2190.13 | K28: 2138 | L28: 2077 | M28: 0.62955
A29: 19 | B29: ALEMBICLTD | C29: 98.5 | D29: 100.62 | E29: 93.08 | F29: 87.67 | G29: 80.13 | H29: 106.03 | I29: 113.57 | J29: 118.98 | K29: 108.15 | L29: 95.2 | M29: 5.20374
A30: 20 | B30: ALKEM | C30: 3283.3 | D30: 3346.17 | E30: 3192.13 | F30: 3100.97 | G30: 2946.93 | H30: 3437.33 | I30: 3591.37 | J30: 3682.53 | K30: 3500.2 | L30: 3255 | M30: 1.52539
A31: 21 | B31: ALKYLAMINE | C31: 3171.85 | D31: 3208.65 | E31: 3112.20 | F31: 3052.55 | G31: 2956.10 | H31: 3268.30 | I31: 3364.75 | J31: 3424.40 | K31: 3305.1 | L31: 3149 | M31: 0.73176
A32: 22 | B32: ALOKINDS | C32: 21.2 | D32: 21.43 | E32: 20.82 | F32: 20.43 | G32: 19.82 | H32: 21.82 | I32: 22.43 | J32: 22.82 | K32: 22.05 | L32: 21.05 | M32: 66.37734
A33: 23 | B33: AMARAJABAT | C33: 629.5 | D33: 634.75 | E33: 618.80 | F33: 608.10 | G33: 592.15 | H33: 645.45 | I33: 661.40 | J33: 672.10 | K33: 650.7 | L33: 624.05 | M33: 13.51293
A34: 24 | B34: AMBER | C34: 3310.45 | D34: 3344.98 | E34: 3156.57 | F34: 3002.68 | G34: 2814.27 | H34: 3498.87 | I34: 3687.28 | J34: 3841.17 | K34: 3533.4 | L34: 3191.1 | M34: 1.27159
A35: 25 | B35: AMBUJACEM | C35: 388.7 | D35: 392.18 | E35: 381.52 | F35: 374.33 | G35: 363.67 | H35: 399.37 | I35: 410.03 | J35: 417.22 | K35: 402.85 | L35: 385 | M35: 34.8489
A36: 26 | B36: ANGELONE | C36: 1068.75 | D36: 1081.13 | E36: 994.57 | F36: 920.38 | G36: 833.82 | H36: 1155.32 | I36: 1241.88 | J36: 1316.07 | K36: 1167.7 | L36: 1006.95 | M36: 5.20417
A37: 27 | B37: ANURAS | C37: 798.05 | D37: 807.95 | E37: 786.10 | F37: 774.15 | G37: 752.30 | H37: 819.90 | I37: 841.75 | J37: 853.70 | K37: 829.8 | L37: 796 | M37: 0.91523
A38: 28 | B38: APLAPOLLO | C38: 895.3 | D38: 898.77 | E38: 879.53 | F38: 863.77 | G38: 844.53 | H38: 914.53 | I38: 933.77 | J38: 949.53 | K38: 918 | L38: 883 | M38: 5.2668
A39: 29 | B39: APLLTD | C39: 735.75 | D39: 740.77 | E39: 719.33 | F39: 702.92 | G39: 681.48 | H39: 757.18 | I39: 778.62 | J39: 795.03 | K39: 762.2 | L39: 724.35 | M39: 6.24209
A40: 30 | B40: APOLLOHOSP | C40: 5419.5 | D40: 5457.50 | E40: 5275.00 | F40: 5130.50 | G40: 4948.00 | H40: 5602.00 | I40: 5784.50 | J40: 5929.00 | K40: 5640 | L40: 5313 | M40: 12.04625
A41: 31 | B41: APOLLOTYRE | C41: 217.3 | D41: 218.52 | E41: 213.48 | F41: 209.67 | G41: 204.63 | H41: 222.33 | I41: 227.37 | J41: 231.18 | K41: 223.55 | L41: 214.7 | M41: 29.63562
A42: 32 | B42: ASAHIINDIA | C42: 504.95 | D42: 506.50 | E42: 489.50 | F42: 474.05 | G42: 457.05 | H42: 521.95 | I42: 538.95 | J42: 554.40 | K42: 523.5 | L42: 491.05 | M42: 5.94401
A43: 33 | B43: ASHOKA | C43: 99.4 | D43: 101.27 | E43: 96.58 | F43: 93.77 | G43: 89.08 | H43: 104.08 | I43: 108.77 | J43: 111.58 | K43: 105.95 | L43: 98.45 | M43: 15.99794
A44: 34 | B44: ASHOKLEY | C44: 133.65 | D44: 135.15 | E44: 129.40 | F44: 125.15 | G44: 119.40 | H44: 139.40 | I44: 145.15 | J44: 149.40 | K44: 140.9 | L44: 130.9 | M44: 194.13864
A45: 35 | B45: ASIANPAINT | C45: 3261.25 | D45: 3261.55 | E45: 3214.75 | F45: 3168.25 | G45: 3121.45 | H45: 3308.05 | I45: 3354.85 | J45: 3401.35 | K45: 3308.35 | L45: 3215.05 | M45: 21.4697
A46: 36 | B46: ASTERDM | C46: 191.8 | D46: 192.38 | E46: 186.17 | F46: 180.53 | G46: 174.32 | H46: 198.02 | I46: 204.23 | J46: 209.87 | K46: 198.6 | L46: 186.75 | M46: 3.14566
A47: 37 | B47: ASTRAL | C47: 2228.05 | D47: 2246.02 | E47: 2182.03 | F47: 2136.02 | G47: 2072.03 | H47: 2292.03 | I47: 2356.02 | J47: 2402.03 | K47: 2310 | L47: 2200 | M47: 7.16507
A48: 38 | B48: ASTRAZEN | C48: 3001.85 | D48: 3031.23 | E48: 2951.62 | F48: 2901.38 | G48: 2821.77 | H48: 3081.47 | I48: 3161.08 | J48: 3211.32 | K48: 3110.85 | L48: 2981 | M48: 0.16606
A49: 39 | B49: ATGL | C49: 1654.55 | D49: 1641.52 | E49: 1623.03 | F49: 1591.52 | G49: 1573.03 | H49: 1673.03 | I49: 1691.52 | J49: 1723.03 | K49: 1660 | L49: 1610 | M49: 5.12279
A50: 40 | B50: ATUL | C50: 8360.7 | D50: 8453.25 | E50: 8157.50 | F50: 7954.30 | G50: 7658.55 | H50: 8656.45 | I50: 8952.20 | J50: 9155.40 | K50: 8749 | L50: 8250.05 | M50: 0.45924
A51: 41 | B51: AUBANK | C51: 1191.25 | D51: 1198.68 | E51: 1166.62 | F51: 1141.98 | G51: 1109.92 | H51: 1223.32 | I51: 1255.38 | J51: 1280.02 | K51: 1230.75 | L51: 1174.05 | M51: 11.83734
A52: 42 | B52: AUROPHARMA | C52: 627.6 | D52: 630.28 | E52: 617.82 | F52: 608.03 | G52: 595.57 | H52: 640.07 | I52: 652.53 | J52: 662.32 | K52: 642.75 | L52: 620.5 | M52: 22.00342
A53: 43 | B53: AVANTIFEED | C53: 544.45 | D53: 544.15 | E53: 531.30 | F53: 518.15 | G53: 505.30 | H53: 557.30 | I53: 570.15 | J53: 583.30 | K53: 557 | L53: 531 | M53: 1.74787
A54: 44 | B54: AXISBANK | C54: 686.4 | D54: 692.27 | E54: 671.53 | F54: 656.67 | G54: 635.93 | H54: 707.13 | I54: 727.87 | J54: 742.73 | K54: 713 | L54: 677.4 | M54: 167.41079
A55: 45 | B55: BAJAJ-AUTO | C55: 3444.2 | D55: 3480.07 | E55: 3390.13 | F55: 3336.07 | G55: 3246.13 | H55: 3534.13 | I55: 3624.07 | J55: 3678.13 | K55: 3570 | L55: 3426 | M55: 4.22572
A56: 46 | B56: BAJAJCON | C56: 189.85 | D56: 193.35 | E56: 184.50 | F56: 179.15 | G56: 170.30 | H56: 198.70 | I56: 207.55 | J56: 212.90 | K56: 202.2 | L56: 188 | M56: 10.80959
A57: 47 | B57: BAJAJELEC | C57: 1058.75 | D57: 1056.92 | E57: 1030.28 | F57: 1001.82 | G57: 975.18 | H57: 1085.38 | I57: 1112.02 | J57: 1140.48 | K57: 1083.55 | L57: 1028.45 | M57: 1.20959
A58: 48 | B58: BAJAJFINSV | C58: 17073.75 | D58: 17347.93 | E58: 16555.87 | F58: 16037.98 | G58: 15245.92 | H58: 17865.82 | I58: 18657.88 | J58: 19175.77 | K58: 18140 | L58: 16830.05 | M58: 3.707
A59: 49 | B59: BAJAJHLDNG | C59: 4872.1 | D59: 4884.37 | E59: 4837.73 | F59: 4803.37 | G59: 4756.73 | H59: 4918.73 | I59: 4965.37 | J59: 4999.73 | K59: 4931 | L59: 4850 | M59: 0.69813
A60: 50 | B60: BAJFINANCE | C60: 7058.3 | D60: 7187.62 | E60: 6860.73 | F60: 6663.17 | G60: 6336.28 | H60: 7385.18 | I60: 7712.07 | J60: 7909.63 | K60: 7514.5 | L60: 6990.05 | M60: 19.35243
A61: 51 | B61: BALAMINES | C61: 3026.05 | D61: 3067.32 | E61: 2959.73 | F61: 2893.42 | G61: 2785.83 | H61: 3133.63 | I61: 3241.22 | J61: 3307.53 | K61: 3174.9 | L61: 3001 | M61: 0.68292
A62: 52 | B62: BALKRISIND | C62: 2245.35 | D62: 2267.98 | E62: 2206.82 | F62: 2168.28 | G62: 2107.12 | H62: 2306.52 | I62: 2367.68 | J62: 2406.22 | K62: 2329.15 | L62: 2229.45 | M62: 3.33113
A63: 53 | B63: BALRAMCHIN | C63: 319.25 | D63: 315.02 | E63: 306.73 | F63: 294.22 | G63: 285.93 | H63: 327.53 | I63: 335.82 | J63: 348.33 | K63: 323.3 | L63: 302.5 | M63: 9.08694
A64: 54 | B64: BANDHANBNK | C64: 296.9 | D64: 299.27 | E64: 290.73 | F64: 284.57 | G64: 276.03 | H64: 305.43 | I64: 313.97 | J64: 320.13 | K64: 307.8 | L64: 293.1 | M64: 60.95099
A65: 55 | B65: BANKBARODA | C65: 90.85 | D65: 92.40 | E65: 87.90 | F65: 84.95 | G65: 80.45 | H65: 95.35 | I65: 99.85 | J65: 102.80 | K65: 96.9 | L65: 89.45 | M65: 486.14287
A66: 56 | B66: BANKINDIA | C66: 56.95 | D66: 57.62 | E66: 55.63 | F66: 54.32 | G66: 52.33 | H66: 58.93 | I66: 60.92 | J66: 62.23 | K66: 59.6 | L66: 56.3 | M66: 79.07691
A67: 57 | B67: BASF | C67: 2749.8 | D67: 2777.22 | E67: 2704.58 | F67: 2659.37 | G67: 2586.73 | H67: 2822.43 | I67: 2895.07 | J67: 2940.28 | K67: 2849.85 | L67: 2732 | M67: 0.2857
A68: 58 | B68: BATAINDIA | C68: 2064.65 | D68: 2077.27 | E68: 2025.63 | F68: 1986.62 | G68: 1934.98 | H68: 2116.28 | I68: 2167.92 | J68: 2206.93 | K68: 2128.9 | L68: 2038.25 | M68: 5.13549
A69: 59 | B69: BAYERCROP | C69: 4711.1 | D69: 4711.42 | E69: 4661.83 | F69: 4612.57 | G69: 4562.98 | H69: 4760.68 | I69: 4810.27 | J69: 4859.53 | K69: 4761 | L69: 4662.15 | M69: 0.15065
A70: 60 | B70: BBTC | C70: 1075.9 | D70: 1087.33 | E70: 1056.67 | F70: 1037.43 | G70: 1006.77 | H70: 1106.57 | I70: 1137.23 | J70: 1156.47 | K70: 1118 | L70: 1068.1 | M70: 0.65642
A71: 61 | B71: BDL | C71: 389.3 | D71: 396.38 | E71: 375.92 | F71: 362.53 | G71: 342.07 | H71: 409.77 | I71: 430.23 | J71: 443.62 | K71: 416.85 | L71: 383 | M71: 2.28644
A72: 62 | B72: BEL | C72: 203 | D72: 204.72 | E72: 199.03 | F72: 195.07 | G72: 189.38 | H72: 208.68 | I72: 214.37 | J72: 218.33 | K72: 210.4 | L72: 200.75 | M72: 57.47742
A73: 63 | B73: BEML | C73: 1573.45 | D73: 1592.75 | E73: 1550.90 | F73: 1528.35 | G73: 1486.50 | H73: 1615.30 | I73: 1657.15 | J73: 1679.70 | K73: 1634.6 | L73: 1570.2 | M73: 1.62866
A74: 64 | B74: BERGEPAINT | C74: 778.4 | D74: 782.62 | E74: 769.28 | F74: 760.17 | G74: 746.83 | H74: 791.73 | I74: 805.07 | J74: 814.18 | K74: 795.95 | L74: 773.5 | M74: 7.87735
A75: 65 | B75: BHARATFORG | C75: 740.95 | D75: 750.78 | E75: 719.57 | F75: 698.18 | G75: 666.97 | H75: 772.17 | I75: 803.38 | J75: 824.77 | K75: 782 | L75: 729.4 | M75: 24.16974
A76: 66 | B76: BHARATRAS | C76: 9756.3 | D76: 9813.78 | E76: 9627.52 | F76: 9498.73 | G76: 9312.47 | H76: 9942.57 | I76: 10128.83 | J76: 10257.62 | K76: 10000.05 | L76: 9685 | M76: 0.04533
A77: 67 | B77: BHARTIARTL | C77: 742.1 | D77: 743.72 | E77: 731.48 | F77: 720.87 | G77: 708.63 | H77: 754.33 | I77: 766.57 | J77: 777.18 | K77: 755.95 | L77: 733.1 | M77: 368.84348
A78: 68 | B78: BHEL | C78: 60.05 | D78: 60.70 | E78: 58.90 | F78: 57.75 | G78: 55.95 | H78: 61.85 | I78: 63.65 | J78: 64.80 | K78: 62.5 | L78: 59.55 | M78: 265.37396
A79: 69 | B79: BIOCON | C79: 357.85 | D79: 360.30 | E79: 353.70 | F79: 349.55 | G79: 342.95 | H79: 364.45 | I79: 371.05 | J79: 375.20 | K79: 366.9 | L79: 356.15 | M79: 21.15434
A80: 70 | B80: BIRLACORPN | C80: 1349.75 | D80: 1370.63 | E80: 1308.67 | F80: 1267.58 | G80: 1205.62 | H80: 1411.72 | I80: 1473.68 | J80: 1514.77 | K80: 1432.6 | L80: 1329.55 | M80: 1.29852
A81: 71 | B81: BLUEDART | C81: 6588.5 | D81: 6676.53 | E81: 6419.02 | F81: 6249.53 | G81: 5992.02 | H81: 6846.02 | I81: 7103.53 | J81: 7273.02 | K81: 6934.05 | L81: 6507.05 | M81: 0.18047
A82: 72 | B82: BLUESTARCO | C82: 1044.55 | D82: 1040.17 | E82: 1025.38 | F82: 1006.22 | G82: 991.43 | H82: 1059.33 | I82: 1074.12 | J82: 1093.28 | K82: 1054.95 | L82: 1021 | M82: 0.82768
A83: 73 | B83: BOSCHLTD | C83: 16934.45 | D83: 17197.30 | E83: 16419.35 | F83: 15904.25 | G83: 15126.30 | H83: 17712.40 | I83: 18490.35 | J83: 19005.45 | K83: 17975.25 | L83: 16682.2 | M83: 1.13635
A84: 74 | B84: BPCL | C84: 395.6 | D84: 398.87 | E84: 389.83 | F84: 384.07 | G84: 375.03 | H84: 404.63 | I84: 413.67 | J84: 419.43 | K84: 407.9 | L84: 393.1 | M84: 52.82894
A85: 75 | B85: BRIGADE | C85: 465.7 | D85: 455.10 | E85: 412.20 | F85: 358.70 | G85: 315.80 | H85: 508.60 | I85: 551.50 | J85: 605.00 | K85: 498 | L85: 401.6 | M85: 19.80409
A86: 76 | B86: BRITANNIA | C86: 3581.6 | D86: 3593.37 | E86: 3558.23 | F86: 3534.87 | G86: 3499.73 | H86: 3616.73 | I86: 3651.87 | J86: 3675.23 | K86: 3628.5 | L86: 3570 | M86: 3.64653
A87: 77 | B87: BSE | C87: 1534.25 | D87: 1553.10 | E87: 1466.20 | F87: 1398.15 | G87: 1311.25 | H87: 1621.15 | I87: 1708.05 | J87: 1776.10 | K87: 1640 | L87: 1485.05 | M87: 17.58025
A88: 78 | B88: BSOFT | C88: 456.75 | D88: 456.95 | E88: 440.90 | F88: 425.05 | G88: 409.00 | H88: 472.80 | I88: 488.85 | J88: 504.70 | K88: 473 | L88: 441.1 | M88: 66.3938
A89: 79 | B89: BURGERKING | C89: 151.5 | D89: 152.75 | E89: 148.75 | F89: 146.00 | G89: 142.00 | H89: 155.50 | I89: 159.50 | J89: 162.25 | K89: 156.75 | L89: 150 | M89: 11.39162
A90: 80 | B90: CADILAHC | C90: 456.3 | D90: 458.70 | E90: 450.40 | F90: 444.50 | G90: 436.20 | H90: 464.60 | I90: 472.90 | J90: 478.80 | K90: 467 | L90: 452.8 | M90: 18.75917
A91: 81 | B91: CAMS | C91: 2977.8 | D91: 2991.17 | E91: 2919.78 | F91: 2861.77 | G91: 2790.38 | H91: 3049.18 | I91: 3120.57 | J91: 3178.58 | K91: 3062.55 | L91: 2933.15 | M91: 1.69848
A92: 82 | B92: CANBK | C92: 211.8 | D92: 212.95 | E92: 205.25 | F92: 198.70 | G92: 191.00 | H92: 219.50 | I92: 227.20 | J92: 233.75 | K92: 220.65 | L92: 206.4 | M92: 137.47409
A93: 83 | B93: CANFINHOME | C93: 621.85 | D93: 623.28 | E93: 602.47 | F93: 583.08 | G93: 562.27 | H93: 642.67 | I93: 663.48 | J93: 682.87 | K93: 644.1 | L93: 603.9 | M93: 12.62555
A94: 84 | B94: CAPLIPOINT | C94: 826.25 | D94: 827.90 | E94: 812.40 | F94: 798.55 | G94: 783.05 | H94: 841.75 | I94: 857.25 | J94: 871.10 | K94: 843.4 | L94: 814.05 | M94: 1.27597
A95: 85 | B95: CARBORUNIV | C95: 895.25 | D95: 895.08 | E95: 886.17 | F95: 877.08 | G95: 868.17 | H95: 904.17 | I95: 913.08 | J95: 922.17 | K95: 904 | L95: 886 | M95: 1.59031
A96: 86 | B96: CASTROLIND | C96: 130.05 | D96: 131.20 | E96: 127.85 | F96: 125.65 | G96: 122.30 | H96: 133.40 | I96: 136.75 | J96: 138.95 | K96: 134.55 | L96: 129 | M96: 7.82699
A97: 87 | B97: CCL | C97: 386.15 | D97: 391.85 | E97: 379.30 | F97: 372.45 | G97: 359.90 | H97: 398.70 | I97: 411.25 | J97: 418.10 | K97: 404.4 | L97: 385 | M97: 2.04542
A98: 88 | B98: CDSL | C98: 1432.45 | D98: 1445.80 | E98: 1381.65 | F98: 1330.85 | G98: 1266.70 | H98: 1496.60 | I98: 1560.75 | J98: 1611.55 | K98: 1509.95 | L98: 1395 | M98: 7.5162
A99: 89 | B99: CEATLTD | C99: 1184.3 | D99: 1191.22 | E99: 1152.68 | F99: 1121.07 | G99: 1082.53 | H99: 1222.83 | I99: 1261.37 | J99: 1292.98 | K99: 1229.75 | L99: 1159.6 | M99: 0.91987
A100: 90 | B100: CENTRALBK | C100: 20.25 | D100: 20.45 | E100: 19.60 | F100: 18.95 | G100: 18.10 | H100: 21.10 | I100: 21.95 | J100: 22.60 | K100: 21.3 | L100: 19.8 | M100: 42.91799
A101: 91 | B101: CENTURYPLY | C101: 630.05 | D101: 642.83 | E101: 608.42 | F101: 586.78 | G101: 552.37 | H101: 664.47 | I101: 698.88 | J101: 720.52 | K101: 677.25 | L101: 621.2 | M101: 2.21848
A102: 92 | B102: CENTURYTEX | C102: 806.15 | D102: 799.25 | E102: 784.50 | F102: 762.85 | G102: 748.10 | H102: 820.90 | I102: 835.65 | J102: 857.30 | K102: 814 | L102: 777.6 | M102: 1.89713
A103: 93 | B103: CERA | C103: 5116.65 | D103: 5187.67 | E103: 4935.33 | F103: 4754.02 | G103: 4501.68 | H103: 5368.98 | I103: 5621.32 | J103: 5802.63 | K103: 5440 | L103: 5006.35 | M103: 0.12152
A104: 94 | B104: CESC | C104: 83.5 | D104: 84.47 | E104: 80.13 | F104: 76.77 | G104: 72.43 | H104: 87.83 | I104: 92.17 | J104: 95.53 | K104: 88.8 | L104: 81.1 | M104: 32.76075
A105: 95 | B105: CGCL | C105: 511.15 | D105: 512.95 | E105: 490.90 | F105: 470.65 | G105: 448.60 | H105: 533.20 | I105: 555.25 | J105: 575.50 | K105: 535 | L105: 492.7 | M105: 0.53179
A106: 96 | B106: CGPOWER | C106: 153.45 | D106: 152.48 | E106: 148.97 | F106: 144.48 | G106: 140.97 | H106: 156.97 | I106: 160.48 | J106: 164.97 | K106: 156 | L106: 148 | M106: 9.27485
A107: 97 | B107: CHALET | C107: 252.55 | D107: 259.00 | E107: 244.05 | F107: 235.55 | G107: 220.60 | H107: 267.50 | I107: 282.45 | J107: 290.95 | K107: 273.95 | L107: 250.5 | M107: 3.59492
A108: 98 | B108: CHAMBLFERT | C108: 361.05 | D108: 361.90 | E108: 348.80 | F108: 336.55 | G108: 323.45 | H108: 374.15 | I108: 387.25 | J108: 399.50 | K108: 375 | L108: 349.65 | M108: 23.37835
A109: 99 | B109: CHOLAFIN | C109: 595.4 | D109: 601.83 | E109: 581.57 | F109: 567.73 | G109: 547.47 | H109: 615.67 | I109: 635.93 | J109: 649.77 | K109: 622.1 | L109: 588 | M109: 17.17703
A110: 100 | B110: CHOLAHLDNG | C110: 705.15 | D110: 702.97 | E110: 696.88 | F110: 688.62 | G110: 682.53 | H110: 711.23 | I110: 717.32 | J110: 725.58 | K110: 709.05 | L110: 694.7 | M110: 4.29803
A111: 101 | B111: CIPLA | C111: 895.4 | D111: 895.80 | E111: 882.60 | F111: 869.80 | G111: 856.60 | H111: 908.60 | I111: 921.80 | J111: 934.60 | K111: 909 | L111: 883 | M111: 14.43344
A112: 102 | B112: COALINDIA | C112: 150.55 | D112: 150.85 | E112: 148.80 | F112: 147.05 | G112: 145.00 | H112: 152.60 | I112: 154.65 | J112: 156.40 | K112: 152.9 | L112: 149.1 | M112: 115.22286
A113: 103 | B113: COCHINSHIP | C113: 354.85 | D113: 357.85 | E113: 351.00 | F113: 347.15 | G113: 340.30 | H113: 361.70 | I113: 368.55 | J113: 372.40 | K113: 364.7 | L113: 354 | M113: 1.5381
A114: 104 | B114: COFORGE | C114: 5428.25 | D114: 5451.80 | E114: 5295.50 | F114: 5162.75 | G114: 5006.45 | H114: 5584.55 | I114: 5740.85 | J114: 5873.60 | K114: 5608.1 | L114: 5319.05 | M114: 2.60848
A115: 105 | B115: COLPAL | C115: 1477.4 | D115: 1475.30 | E115: 1468.15 | F115: 1458.90 | G115: 1451.75 | H115: 1484.55 | I115: 1491.70 | J115: 1500.95 | K115: 1482.45 | L115: 1466.05 | M115: 4.59055
A116: 106 | B116: CONCOR | C116: 628.15 | D116: 634.40 | E116: 612.85 | F116: 597.55 | G116: 576.00 | H116: 649.70 | I116: 671.25 | J116: 686.55 | K116: 655.95 | L116: 619.1 | M116: 19.16154
A117: 107 | B117: COROMANDEL | C117: 755.45 | D117: 763.97 | E117: 734.88 | F117: 714.32 | G117: 685.23 | H117: 784.53 | I117: 813.62 | J117: 834.18 | K117: 793.05 | L117: 743.4 | M117: 7.1012
A118: 108 | B118: CREDITACC | C118: 567.1 | D118: 572.12 | E118: 556.03 | F118: 544.97 | G118: 528.88 | H118: 583.18 | I118: 599.27 | J118: 610.33 | K118: 588.2 | L118: 561.05 | M118: 0.60094
A119: 109 | B119: CRISIL | C119: 3202.4 | D119: 3222.77 | E119: 3110.63 | F119: 3018.87 | G119: 2906.73 | H119: 3314.53 | I119: 3426.67 | J119: 3518.43 | K119: 3334.9 | L119: 3131 | M119: 0.94514
A120: 110 | B120: CROMPTON | C120: 445.85 | D120: 445.32 | E120: 433.03 | F120: 420.22 | G120: 407.93 | H120: 458.13 | I120: 470.42 | J120: 483.23 | K120: 457.6 | L120: 432.5 | M120: 14.73804
A121: 111 | B121: CSBBANK | C121: 282.25 | D121: 284.75 | E121: 274.50 | F121: 266.75 | G121: 256.50 | H121: 292.50 | I121: 302.75 | J121: 310.50 | K121: 295 | L121: 277 | M121: 3.09083
A122: 112 | B122: CUB | C122: 152.15 | D122: 153.55 | E122: 149.15 | F122: 146.15 | G122: 141.75 | H122: 156.55 | I122: 160.95 | J122: 163.95 | K122: 157.95 | L122: 150.55 | M122: 18.58975
A123: 113 | B123: CUMMINSIND | C123: 879.45 | D123: 890.83 | E123: 856.97 | F123: 834.48 | G123: 800.62 | H123: 913.32 | I123: 947.18 | J123: 969.67 | K123: 924.7 | L123: 868.35 | M123: 6.9913
A124: 114 | B124: CYIENT | C124: 1117.4 | D124: 1112.22 | E124: 1094.43 | F124: 1071.47 | G124: 1053.68 | H124: 1135.18 | I124: 1152.97 | J124: 1175.93 | K124: 1130 | L124: 1089.25 | M124: 2.11314
A125: 115 | B125: DABUR | C125: 606.8 | D125: 608.98 | E125: 601.37 | F125: 595.93 | G125: 588.32 | H125: 614.42 | I125: 622.03 | J125: 627.47 | K125: 616.6 | L125: 603.55 | M125: 39.98703
A126: 116 | B126: DALBHARAT | C126: 1942.2 | D126: 1956.62 | E126: 1899.83 | F126: 1857.47 | G126: 1800.68 | H126: 1998.98 | I126: 2055.77 | J126: 2098.13 | K126: 2013.4 | L126: 1914.25 | M126: 3.05169
A127: 117 | B127: DBL | C127: 525.65 | D127: 532.22 | E127: 508.43 | F127: 491.22 | G127: 467.43 | H127: 549.43 | I127: 573.22 | J127: 590.43 | K127: 556 | L127: 515 | M127: 8.22462
A128: 118 | B128: DCBBANK | C128: 93.35 | D128: 95.22 | E128: 90.43 | F128: 87.52 | G128: 82.73 | H128: 98.13 | I128: 102.92 | J128: 105.83 | K128: 100 | L128: 92.3 | M128: 15.04517
A129: 119 | B129: DCMSHRIRAM | C129: 966.15 | D129: 965.38 | E129: 951.77 | F129: 937.38 | G129: 923.77 | H129: 979.77 | I129: 993.38 | J129: 1007.77 | K129: 979 | L129: 951 | M129: 0.77971
A130: 120 | B130: DEEPAKNTR | C130: 2126.05 | D130: 2172.88 | E130: 2047.32 | F130: 1968.58 | G130: 1843.02 | H130: 2251.62 | I130: 2377.18 | J130: 2455.92 | K130: 2298.45 | L130: 2094.15 | M130: 18.42207
A131: 121 | B131: DELTACORP | C131: 275.25 | D131: 279.57 | E131: 266.33 | F131: 257.42 | G131: 244.18 | H131: 288.48 | I131: 301.72 | J131: 310.63 | K131: 292.8 | L131: 270.65 | M131: 45.64185
A132: 122 | B132: DHANI | C132: 173.95 | D132: 173.43 | E132: 167.62 | F132: 161.28 | G132: 155.47 | H132: 179.77 | I132: 185.58 | J132: 191.92 | K132: 179.25 | L132: 167.1 | M132: 28.97756
A133: 123 | B133: DHANUKA | C133: 743.45 | D133: 740.75 | E133: 729.65 | F133: 715.85 | G133: 704.75 | H133: 754.55 | I133: 765.65 | J133: 779.45 | K133: 751.85 | L133: 726.95 | M133: 0.39098
A134: 124 | B134: DIVISLAB | C134: 4679.15 | D134: 4727.97 | E134: 4617.63 | F134: 4556.12 | G134: 4445.78 | H134: 4789.48 | I134: 4899.82 | J134: 4961.33 | K134: 4838.3 | L134: 4666.45 | M134: 4.56467
A135: 125 | B135: DIXON | C135: 5067.55 | D135: 5161.52 | E135: 4906.03 | F135: 4744.52 | G135: 4489.03 | H135: 5323.03 | I135: 5578.52 | J135: 5740.03 | K135: 5417 | L135: 5000 | M135: 6.74665
A136: 126 | B136: DLF | C136: 400.45 | D136: 404.08 | E136: 390.67 | F136: 380.88 | G136: 367.47 | H136: 413.87 | I136: 427.28 | J136: 437.07 | K136: 417.5 | L136: 394.3 | M136: 58.24237
A137: 127 | B137: DMART | C137: 4828.3 | D137: 4903.43 | E137: 4706.87 | F137: 4585.43 | G137: 4388.87 | H137: 5024.87 | I137: 5221.43 | J137: 5342.87 | K137: 5100 | L137: 4782 | M137: 6.50655
A138: 128 | B138: DRREDDY | C138: 4607.6 | D138: 4626.27 | E138: 4562.93 | F138: 4518.27 | G138: 4454.93 | H138: 4670.93 | I138: 4734.27 | J138: 4778.93 | K138: 4689.6 | L138: 4581.6 | M138: 1.82018
A139: 129 | B139: ECLERX | C139: 2329 | D139: 2364.35 | E139: 2268.70 | F139: 2208.40 | G139: 2112.75 | H139: 2424.65 | I139: 2520.30 | J139: 2580.60 | K139: 2460 | L139: 2304.05 | M139: 0.49172
A140: 130 | B140: EDELWEISS | C140: 74.9 | D140: 75.15 | E140: 73.05 | F140: 71.20 | G140: 69.10 | H140: 77.00 | I140: 79.10 | J140: 80.95 | K140: 77.25 | L140: 73.3 | M140: 14.18704
A141: 131 | B141: EICHERMOT | C141: 2548.05 | D141: 2555.98 | E141: 2508.97 | F141: 2469.88 | G141: 2422.87 | H141: 2595.07 | I141: 2642.08 | J141: 2681.17 | K141: 2603 | L141: 2516.9 | M141: 10.13413
A142: 132 | B142: EIDPARRY | C142: 472.15 | D142: 481.67 | E142: 459.98 | F142: 447.82 | G142: 426.13 | H142: 493.83 | I142: 515.52 | J142: 527.68 | K142: 503.35 | L142: 469.5 | M142: 3.04779
A143: 133 | B143: EIHOTEL | C143: 136.4 | D143: 137.52 | E143: 131.38 | F143: 126.37 | G143: 120.23 | H143: 142.53 | I143: 148.67 | J143: 153.68 | K143: 143.65 | L143: 132.5 | M143: 4.33526
A144: 134 | B144: ELGIEQUIP | C144: 212.65 | D144: 213.70 | E144: 209.30 | F144: 205.95 | G144: 201.55 | H144: 217.05 | I144: 221.45 | J144: 224.80 | K144: 218.1 | L144: 210.35 | M144: 4.2552
A145: 135 | B145: EMAMILTD | C145: 530.7 | D145: 522.90 | E145: 510.80 | F145: 490.90 | G145: 478.80 | H145: 542.80 | I145: 554.90 | J145: 574.80 | K145: 535 | L145: 503 | M145: 5.95358
A146: 136 | B146: ENDURANCE | C146: 1660.25 | D146: 1685.32 | E146: 1610.93 | F146: 1561.62 | G146: 1487.23 | H146: 1734.63 | I146: 1809.02 | J146: 1858.33 | K146: 1759.7 | L146: 1636 | M146: 1.39185
A147: 137 | B147: ENGINERSIN | C147: 71.15 | D147: 71.50 | E147: 70.15 | F147: 69.15 | G147: 67.80 | H147: 72.50 | I147: 73.85 | J147: 74.85 | K147: 72.85 | L147: 70.5 | M147: 46.2169
A148: 138 | B148: EPL | C148: 204.55 | D148: 205.77 | E148: 201.28 | F148: 198.02 | G148: 193.53 | H148: 209.03 | I148: 213.52 | J148: 216.78 | K148: 210.25 | L148: 202.5 | M148: 1.23991
A149: 139 | B149: EQUITAS | C149: 114.55 | D149: 117.72 | E149: 110.83 | F149: 107.12 | G149: 100.23 | H149: 121.43 | I149: 128.32 | J149: 132.03 | K149: 124.6 | L149: 114 | M149: 8.72683
A150: 140 | B150: EQUITASBNK | C150: 62.65 | D150: 62.62 | E150: 61.03 | F150: 59.42 | G150: 57.83 | H150: 64.23 | I150: 65.82 | J150: 67.43 | K150: 64.2 | L150: 61 | M150: 10.27162
A151: 141 | B151: ERIS | C151: 744.35 | D151: 747.00 | E151: 729.90 | F151: 715.45 | G151: 698.35 | H151: 761.45 | I151: 778.55 | J151: 793.00 | K151: 764.1 | L151: 732.55 | M151: 0.70686
A152: 142 | B152: ESCORTS | C152: 1802.75 | D152: 1796.40 | E152: 1761.50 | F152: 1720.25 | G152: 1685.35 | H152: 1837.65 | I152: 1872.55 | J152: 1913.80 | K152: 1831.3 | L152: 1755.15 | M152: 42.34114
A153: 143 | B153: EXIDEIND | C153: 169.6 | D153: 171.53 | E153: 166.07 | F153: 162.53 | G153: 157.07 | H153: 175.07 | I153: 180.53 | J153: 184.07 | K153: 177 | L153: 168 | M153: 36.29053
A154: 144 | B154: FACT | C154: 109 | D154: 111.10 | E154: 106.40 | F154: 103.80 | G154: 99.10 | H154: 113.70 | I154: 118.40 | J154: 121.00 | K154: 115.8 | L154: 108.5 | M154: 0.82217
A155: 145 | B155: FDC | C155: 276.15 | D155: 278.62 | E155: 270.23 | F155: 264.32 | G155: 255.93 | H155: 284.53 | I155: 292.92 | J155: 298.83 | K155: 287 | L155: 272.7 | M155: 2.79618
A156: 146 | B156: FEDERALBNK | C156: 91.45 | D156: 92.42 | E156: 89.53 | F156: 87.62 | G156: 84.73 | H156: 94.33 | I156: 97.22 | J156: 99.13 | K156: 95.3 | L156: 90.5 | M156: 173.23342
A157: 147 | B157: FINCABLES | C157: 586.35 | D157: 588.88 | E157: 569.17 | F157: 551.98 | G157: 532.27 | H157: 606.07 | I157: 625.78 | J157: 642.97 | K157: 608.6 | L157: 571.7 | M157: 7.08269
A158: 148 | B158: FINEORG | C158: 3520.3 | D158: 3558.43 | E158: 3446.87 | F158: 3373.43 | G158: 3261.87 | H158: 3631.87 | I158: 3743.43 | J158: 3816.87 | K158: 3670 | L158: 3485 | M158: 0.5782
A159: 149 | B159: FINPIPE | C159: 207.85 | D159: 210.95 | E159: 202.90 | F159: 197.95 | G159: 189.90 | H159: 215.90 | I159: 223.95 | J159: 228.90 | K159: 219 | L159: 206 | M159: 9.22366
A160: 150 | B160: FLUOROCHEM | C160: 2019.95 | D160: 2036.92 | E160: 1941.83 | F160: 1863.72 | G160: 1768.63 | H160: 2115.03 | I160: 2210.12 | J160: 2288.23 | K160: 2132 | L160: 1958.8 | M160: 0.63685
A161: 151 | B161: FORTIS | C161: 266.9 | D161: 270.67 | E161: 255.08 | F161: 243.27 | G161: 227.68 | H161: 282.48 | I161: 298.07 | J161: 309.88 | K161: 286.25 | L161: 258.85 | M161: 35.20539
A162: 152 | B162: FRETAIL | C162: 48 | D162: 48.02 | E162: 47.08 | F162: 46.17 | G162: 45.23 | H162: 48.93 | I162: 49.87 | J162: 50.78 | K162: 48.95 | L162: 47.1 | M162: 13.67618
A163: 153 | B163: FSL | C163: 169.45 | D163: 170.23 | E163: 166.47 | F163: 163.48 | G163: 159.72 | H163: 173.22 | I163: 176.98 | J163: 179.97 | K163: 174 | L163: 167.25 | M163: 34.94955
A164: 154 | B164: GAEL | C164: 165.15 | D164: 166.97 | E164: 161.98 | F164: 158.82 | G164: 153.83 | H164: 170.13 | I164: 175.12 | J164: 178.28 | K164: 171.95 | L164: 163.8 | M164: 3.03981
A165: 155 | B165: GAIL | C165: 137.3 | D165: 138.35 | E165: 135.20 | F165: 133.10 | G165: 129.95 | H165: 140.45 | I165: 143.60 | J165: 145.70 | K165: 141.5 | L165: 136.25 | M165: 94.16739
A166: 156 | B166: GALAXYSURF | C166: 2952.05 | D166: 2967.57 | E166: 2907.13 | F166: 2862.22 | G166: 2801.78 | H166: 3012.48 | I166: 3072.92 | J166: 3117.83 | K166: 3028 | L166: 2922.65 | M166: 0.67577
A167: 157 | B167: GARFIBRES | C167: 3307.2 | D167: 3335.97 | E167: 3221.23 | F167: 3135.27 | G167: 3020.53 | H167: 3421.93 | I167: 3536.67 | J167: 3622.63 | K167: 3450.7 | L167: 3250 | M167: 0.12224
A168: 158 | B168: GESHIP | C168: 313.05 | D168: 316.35 | E168: 308.30 | F168: 303.55 | G168: 295.50 | H168: 321.10 | I168: 329.15 | J168: 333.90 | K168: 324.4 | L168: 311.6 | M168: 0.84097
A169: 159 | B169: GICRE | C169: 142.2 | D169: 144.07 | E169: 139.63 | F169: 137.07 | G169: 132.63 | H169: 146.63 | I169: 151.07 | J169: 153.63 | K169: 148.5 | L169: 141.5 | M169: 9.26436
A170: 160 | B170: GILLETTE | C170: 5508.5 | D170: 5550.67 | E170: 5452.83 | F170: 5397.17 | G170: 5299.33 | H170: 5606.33 | I170: 5704.17 | J170: 5759.83 | K170: 5648.5 | L170: 5495 | M170: 0.04799
A171: 161 | B171: GLAND | C171: 3540.45 | D171: 3494.48 | E171: 3400.97 | F171: 3261.48 | G171: 3167.97 | H171: 3633.97 | I171: 3727.48 | J171: 3866.97 | K171: 3588 | L171: 3355 | M171: 3.4569
A172: 162 | B172: GLAXO | C172: 1597.35 | D172: 1616.78 | E172: 1559.57 | F172: 1521.78 | G172: 1464.57 | H172: 1654.57 | I172: 1711.78 | J172: 1749.57 | K172: 1674 | L172: 1579 | M172: 0.59593
A173: 163 | B173: GLENMARK | C173: 469.25 | D173: 470.82 | E173: 455.43 | F173: 441.62 | G173: 426.23 | H173: 484.63 | I173: 500.02 | J173: 513.83 | K173: 486.2 | L173: 457 | M173: 18.45179
A174: 164 | B174: GMMPFAUDLR | C174: 4494.65 | D174: 4555.33 | E174: 4367.97 | F174: 4241.28 | G174: 4053.92 | H174: 4682.02 | I174: 4869.38 | J174: 4996.07 | K174: 4742.7 | L174: 4428.65 | M174: 0.30355
A175: 165 | B175: GMRINFRA | C175: 37.45 | D175: 37.57 | E175: 36.13 | F175: 34.82 | G175: 33.38 | H175: 38.88 | I175: 40.32 | J175: 41.63 | K175: 39 | L175: 36.25 | M175: 348.21252
A176: 166 | B176: GNFC | C176: 395.85 | D176: 399.98 | E176: 385.97 | F176: 376.08 | G176: 362.07 | H176: 409.87 | I176: 423.88 | J176: 433.77 | K176: 414 | L176: 390.1 | M176: 8.31258
A177: 167 | B177: GODFRYPHLP | C177: 1135.95 | D177: 1151.58 | E177: 1109.37 | F177: 1082.78 | G177: 1040.57 | H177: 1178.17 | I177: 1220.38 | J177: 1246.97 | K177: 1193.8 | L177: 1125 | M177: 0.29452
A178: 168 | B178: GODREJAGRO | C178: 576.15 | D178: 573.13 | E178: 563.02 | F178: 549.88 | G178: 539.77 | H178: 586.27 | I178: 596.38 | J178: 609.52 | K178: 583.25 | L178: 560 | M178: 0.73237
A179: 169 | B179: GODREJCP | C179: 911.65 | D179: 911.33 | E179: 898.32 | F179: 884.98 | G179: 871.97 | H179: 924.67 | I179: 937.68 | J179: 951.02 | K179: 924.35 | L179: 898 | M179: 5.66677
A180: 170 | B180: GODREJIND | C180: 609.6 | D180: 605.17 | E180: 595.48 | F180: 581.37 | G180: 571.68 | H180: 619.28 | I180: 628.97 | J180: 643.08 | K180: 614.85 | L180: 591.05 | M180: 4.08904
A181: 171 | B181: GODREJPROP | C181: 2116.2 | D181: 2122.27 | E181: 2056.28 | F181: 1996.37 | G181: 1930.38 | H181: 2182.18 | I181: 2248.17 | J181: 2308.08 | K181: 2188.25 | L181: 2062.35 | M181: 18.13157
A182: 172 | B182: GPPL | C182: 98.4 | D182: 99.22 | E182: 96.18 | F182: 93.97 | G182: 90.93 | H182: 101.43 | I182: 104.47 | J182: 106.68 | K182: 102.25 | L182: 97 | M182: 10.76285
A183: 173 | B183: GRANULES | C183: 303.25 | D183: 303.37 | E183: 296.88 | F183: 290.52 | G183: 284.03 | H183: 309.73 | I183: 316.22 | J183: 322.58 | K183: 309.85 | L183: 297 | M183: 15.41425
A184: 174 | B184: GRAPHITE | C184: 453.85 | D184: 463.02 | E184: 440.98 | F184: 428.12 | G184: 406.08 | H184: 475.88 | I184: 497.92 | J184: 510.78 | K184: 485.05 | L184: 450.15 | M184: 6.04956
A185: 175 | B185: GRASIM | C185: 1778.3 | D185: 1775.53 | E185: 1752.77 | F185: 1727.23 | G185: 1704.47 | H185: 1801.07 | I185: 1823.83 | J185: 1849.37 | K185: 1798.3 | L185: 1750 | M185: 7.45137
A186: 176 | B186: GREAVESCOT | C186: 145.15 | D186: 147.67 | E186: 140.73 | F186: 136.32 | G186: 129.38 | H186: 152.08 | I186: 159.02 | J186: 163.43 | K186: 154.6 | L186: 143.25 | M186: 35.09046
A187: 177 | B187: GRINDWELL | C187: 1780.55 | D187: 1788.60 | E187: 1763.85 | F187: 1747.15 | G187: 1722.40 | H187: 1805.30 | I187: 1830.05 | J187: 1846.75 | K187: 1813.35 | L187: 1771.9 | M187: 1.10596
A188: 178 | B188: GSFC | C188: 115.1 | D188: 115.25 | E188: 113.80 | F188: 112.50 | G188: 111.05 | H188: 116.55 | I188: 118.00 | J188: 119.30 | K188: 116.7 | L188: 113.95 | M188: 17.37962
A189: 179 | B189: GSPL | C189: 303.8 | D189: 301.37 | E189: 294.53 | F189: 285.27 | G189: 278.43 | H189: 310.63 | I189: 317.47 | J189: 326.73 | K189: 308.2 | L189: 292.1 | M189: 12.95449
A190: 180 | B190: GUJALKALI | C190: 620.5 | D190: 611.40 | E190: 596.20 | F190: 571.90 | G190: 556.70 | H190: 635.70 | I190: 650.90 | J190: 675.20 | K190: 626.6 | L190: 587.1 | M190: 3.69704
A191: 181 | B191: GUJGASLTD | C191: 622.4 | D191: 627.12 | E191: 609.33 | F191: 596.27 | G191: 578.48 | H191: 640.18 | I191: 657.97 | J191: 671.03 | K191: 644.9 | L191: 614.05 | M191: 16.4378
A192: 182 | B192: HAL | C192: 1362.35 | D192: 1372.82 | E192: 1333.03 | F192: 1303.72 | G192: 1263.93 | H192: 1402.13 | I192: 1441.92 | J192: 1471.23 | K192: 1412.6 | L192: 1343.5 | M192: 6.17175
A193: 183 | B193: HAPPSTMNDS | C193: 1241.85 | D193: 1246.83 | E193: 1219.72 | F193: 1197.58 | G193: 1170.47 | H193: 1268.97 | I193: 1296.08 | J193: 1318.22 | K193: 1273.95 | L193: 1224.7 | M193: 1.64055
A194: 184 | B194: HATHWAY | C194: 20.15 | D194: 20.17 | E194: 19.78 | F194: 19.42 | G194: 19.03 | H194: 20.53 | I194: 20.92 | J194: 21.28 | K194: 20.55 | L194: 19.8 | M194: 23.03445
A195: 185 | B195: HATSUN | C195: 1335.55 | D195: 1317.83 | E195: 1255.67 | F195: 1175.78 | G195: 1113.62 | H195: 1397.72 | I195: 1459.88 | J195: 1539.77 | K195: 1380 | L195: 1237.95 | M195: 1.22067
A196: 186 | B196: HAVELLS | C196: 1377.5 | D196: 1386.62 | E196: 1348.88 | F196: 1320.27 | G196: 1282.53 | H196: 1415.23 | I196: 1452.97 | J196: 1481.58 | K196: 1424.35 | L196: 1358 | M196: 25.87391
A197: 187 | B197: HCLTECH | C197: 1110.1 | D197: 1112.65 | E197: 1099.45 | F197: 1088.80 | G197: 1075.60 | H197: 1123.30 | I197: 1136.50 | J197: 1147.15 | K197: 1125.85 | L197: 1102 | M197: 39.61223
A198: 188 | B198: HDFC | C198: 2894.85 | D198: 2904.67 | E198: 2875.33 | F198: 2855.82 | G198: 2826.48 | H198: 2924.18 | I198: 2953.52 | J198: 2973.03 | K198: 2934 | L198: 2885.15 | M198: 39.51901
A199: 189 | B199: HDFCAMC | C199: 2510.5 | D199: 2539.72 | E199: 2466.38 | F199: 2422.27 | G199: 2348.93 | H199: 2583.83 | I199: 2657.17 | J199: 2701.28 | K199: 2613.05 | L199: 2495.6 | M199: 4.24744
A200: 190 | B200: HDFCBANK | C200: 1515.35 | D200: 1522.37 | E200: 1492.03 | F200: 1468.72 | G200: 1438.38 | H200: 1545.68 | I200: 1576.02 | J200: 1599.33 | K200: 1552.7 | L200: 1499.05 | M200: 76.30636
A201: 191 | B201: HDFCLIFE | C201: 688.85 | D201: 694.30 | E201: 678.85 | F201: 668.85 | G201: 653.40 | H201: 704.30 | I201: 719.75 | J201: 729.75 | K201: 709.75 | L201: 684.3 | M201: 21.09072
A202: 192 | B202: HEG | C202: 1991.15 | D202: 2008.42 | E202: 1957.73 | F202: 1924.32 | G202: 1873.63 | H202: 2041.83 | I202: 2092.52 | J202: 2125.93 | K202: 2059.1 | L202: 1975 | M202: 0.62069
A203: 193 | B203: HEIDELBERG | C203: 232.3 | D203: 233.85 | E203: 229.35 | F203: 226.40 | G203: 221.90 | H203: 236.80 | I203: 241.30 | J203: 244.25 | K203: 238.35 | L203: 230.9 | M203: 0.78205
A204: 194 | B204: HEMIPROP | C204: 133.1 | D204: 134.47 | E204: 129.03 | F204: 124.97 | G204: 119.53 | H204: 138.53 | I204: 143.97 | J204: 148.03 | K204: 139.9 | L204: 130.4 | M204: 7.79635
A205: 195 | B205: HEROMOTOCO | C205: 2634.6 | D205: 2650.50 | E205: 2602.80 | F205: 2571.00 | G205: 2523.30 | H205: 2682.30 | I205: 2730.00 | J205: 2761.80 | K205: 2698.2 | L205: 2618.7 | M205: 6.36253
A206: 196 | B206: HFCL | C206: 70.4 | D206: 71.37 | E206: 68.03 | F206: 65.67 | G206: 62.33 | H206: 73.73 | I206: 77.07 | J206: 79.43 | K206: 74.7 | L206: 69 | M206: 70.03958
... 320 more rows

Sheet Bulk Deals
E6: Back To Main Page
A7: Subject : | B7: BULK DEAL | D7: =Main!B10 -> 2021-11-23
A9: Date | B9: Scrip code | C9: Scrip Name | D9: Client Name | E9: Buy / Sell | F9: Quantity Traded | G9: Trade Price / Wt.Avg.trade price | H9: Exchange
A10: 2021-11-22 | B10: 520123 | C10: ABCINDQ | D10: RAGHUPATI SINGHANIA | E10: SELL | F10: 40,000 | G10: 117.5 | H10: BSE
A11: 2021-11-22 | B11: 520123 | C11: ABCINDQ | D11: ABC FINANCIAL SERVICES PRIVATE LIMITED | E11: BUY | F11: 40,000 | G11: 117.5 | H11: BSE
A12: 2021-11-22 | B12: 519216 | C12: AJANTSOY | D12: DOLLY KHANNA | E12: BUY | F12: 140,000 | G12: 147.72 | H12: BSE
A13: 2021-11-22 | B13: 531991 | C13: AMRAAGRI | D13: SRIKANTH PASUMURTHI | E13: BUY | F13: 837,456 | G13: 0.51 | H13: BSE
A14: 2021-11-22 | B14: 536965 | C14: BPCAP | D14: MANJU SINGHI | E14: SELL | F14: 17,238 | G14: 7.8 | H14: BSE
A15: 2021-11-22 | B15: 536965 | C15: BPCAP | D15: PRADIP BHAMARE | E15: BUY | F15: 19,161 | G15: 7.79 | H15: BSE
A16: 2021-11-22 | B16: 530249 | C16: BRIDGESE | D16: VISHAL PRAGNESHBHAI SHAH | E16: SELL | F16: 50,000 | G16: 51.5 | H16: BSE
A17: 2021-11-22 | B17: 524440 | C17: CAMEXLTD | D17: KALPESH DEVENDRAKUMAR CHOPRA | E17: SELL | F17: 90,000 | G17: 30.37 | H17: BSE
A18: 2021-11-22 | B18: 539304 | C18: CANOPYFIN | D18: VIJAY LALTAPRASAD YADAV | E18: BUY | F18: 75,676 | G18: 13.83 | H18: BSE
A19: 2021-11-22 | B19: 539304 | C19: CANOPYFIN | D19: SHEKHAR BATHWAL | E19: SELL | F19: 75,976 | G19: 13.83 | H19: BSE
A20: 2021-11-22 | B20: 539198 | C20: CAPFIN | D20: BABITAMANTRY | E20: BUY | F20: 16,904 | G20: 5.51 | H20: BSE
A21: 2021-11-22 | B21: 539198 | C21: CAPFIN | D21: KIRTIARORA | E21: SELL | F21: 16,914 | G21: 5.51 | H21: BSE
A22: 2021-11-22 | B22: 540681 | C22: CHOTHANI | D22: PREMILA RAJESH SONI | E22: BUY | F22: 50,000 | G22: 9.6 | H22: BSE
A23: 2021-11-22 | B23: 540681 | C23: CHOTHANI | D23: HNADVISORYSERVICESLLP | E23: BUY | F23: 30,000 | G23: 9.5 | H23: BSE
A24: 2021-11-22 | B24: 540681 | C24: CHOTHANI | D24: HNADVISORYSERVICESLLP | E24: SELL | F24: 10,000 | G24: 9.6 | H24: BSE
A25: 2021-11-22 | B25: 539559 | C25: DDIL | D25: BHAMINI KAMAL PAREKH | E25: BUY | F25: 90,050 | G25: 13.83 | H25: BSE
A26: 2021-11-22 | B26: 541778 | C26: DEEP | D26: INDIACREDIT RISK MANAGEMENT LLP | E26: SELL | F26: 67,631 | G26: 359.36 | H26: BSE
A27: 2021-11-22 | B27: 539979 | C27: DIGJAMLTD | D27: MANSI SHARE & STOCK ADVISORS PRIVATE LIMITED | E27: BUY | F27: 16,637 | G27: 60.45 | H27: BSE
A28: 2021-11-22 | B28: 539979 | C28: DIGJAMLTD | D28: DIGJAM LIMITED | E28: SELL | F28: 31,157 | G28: 60.45 | H28: BSE
A29: 2021-11-22 | B29: 541299 | C29: DLCL | D29: MEENA SINDHWAR | E29: BUY | F29: 28,000 | G29: 30.86 | H29: BSE
A30: 2021-11-22 | B30: 523277 | C30: GVFILM | D30: DEEPTHI BALAGIRI | E30: SELL | F30: 4,961,113 | G30: 0.92 | H30: BSE
A31: 2021-11-22 | B31: 537709 | C31: HANSUGAR | D31: MUKESH RAGHUNATHMALJI CHANDAN | E31: BUY | F31: 200,929 | G31: 4.54 | H31: BSE
A32: 2021-11-22 | B32: 519463 | C32: IBINFO | D32: RAJKUMAR SHYAMNARAYAN SINGH | E32: BUY | F32: 8,180 | G32: 17.88 | H32: BSE
A33: 2021-11-22 | B33: 519463 | C33: IBINFO | D33: CHETAN RAMNIKLAL MODI | E33: SELL | F33: 7,685 | G33: 17.89 | H33: BSE
A34: 2021-11-22 | B34: 536868 | C34: INTELSOFT | D34: MICRO LOGISTICS INDIA PRIVATE LIMITED | E34: SELL | F34: 368,276 | G34: 32.55 | H34: BSE
A35: 2021-11-22 | B35: 500214 | C35: IONEXCHANG | D35: PLUTUS WEALTH MANAGEMENT LLP | E35: SELL | F35: 75,000 | G35: 2220 | H35: BSE
A36: 2021-11-22 | B36: 534422 | C36: LOOKS | D36: ALPHA LEON ENTERPRISES LLP | E36: SELL | F36: 91,808 | G36: 16.42 | H36: BSE
A37: 2021-11-22 | B37: 500259 | C37: LYKALABS | D37: SHREYANS JASHWANTLAL SHAH | E37: SELL | F37: 345,000 | G37: 123 | H37: BSE
A38: 2021-11-22 | B38: 500259 | C38: LYKALABS | D38: VIPUL PRIYAKANT DALAL | E38: SELL | F38: 240,121 | G38: 123 | H38: BSE
A39: 2021-11-22 | B39: 500259 | C39: LYKALABS | D39: IPCA LABORATORIES LIMITED | E39: BUY | F39: 1,050,000 | G39: 123 | H39: BSE
A40: 2021-11-22 | B40: 539519 | C40: MAYUKH | D40: ALPHA LEON ENTERPRISES LLP | E40: BUY | F40: 203,235 | G40: 18.25 | H40: BSE
A41: 2021-11-22 | B41: 539519 | C41: MAYUKH | D41: ALPHA LEON ENTERPRISES LLP | E41: SELL | F41: 217,671 | G41: 21.05 | H41: BSE
A42: 2021-11-22 | B42: 530119 | C42: NATRAJPR | D42: ALPHA LEON ENTERPRISES LLP | E42: BUY | F42: 20,500 | G42: 98.15 | H42: BSE
A43: 2021-11-22 | B43: 530119 | C43: NATRAJPR | D43: ALPHA LEON ENTERPRISES LLP | E43: SELL | F43: 13,500 | G43: 98.15 | H43: BSE
A44: 2021-11-22 | B44: 543207 | C44: NATURAL | D44: RIPALBEN DHARMIKKUMAR PARIKH | E44: BUY | F44: 69,864 | G44: 17.77 | H44: BSE
A45: 2021-11-22 | B45: 543207 | C45: NATURAL | D45: RAJESHKUMAR RAMESHCHANDRA GUPTA | E45: BUY | F45: 88,153 | G45: 17.05 | H45: BSE
A46: 2021-11-22 | B46: 543207 | C46: NATURAL | D46: RAJESHKUMAR RAMESHCHANDRA GUPTA | E46: SELL | F46: 68,549 | G46: 16.92 | H46: BSE
A47: 2021-11-22 | B47: 543207 | C47: NATURAL | D47: RIPALBEN DHARMIKKUMAR PARIKH | E47: SELL | F47: 74,138 | G47: 17.32 | H47: BSE
A48: 2021-11-22 | B48: 540386 | C48: ONTIC | D48: GOENKA BUSINESS & FINANCE LIMITED | E48: BUY | F48: 150,000 | G48: 24.2 | H48: BSE
A49: 2021-11-22 | B49: 540386 | C49: ONTIC | D49: VAIBHAV RAJENDRA DOSHI | E49: BUY | F49: 150,000 | G49: 24.2 | H49: BSE
A50: 2021-11-22 | B50: 540386 | C50: ONTIC | D50: OLGA TRADING PRIVATE LIMITED | E50: BUY | F50: 208,408 | G50: 24.17 | H50: BSE
A51: 2021-11-22 | B51: 540386 | C51: ONTIC | D51: TUSHAR SHASHIKANT SHAH | E51: SELL | F51: 94,000 | G51: 24.2 | H51: BSE
A52: 2021-11-22 | B52: 540386 | C52: ONTIC | D52: JITENDRABHAI JAGDISHBHAI PARMAR | E52: BUY | F52: 100 | G52: 23 | H52: BSE
A53: 2021-11-22 | B53: 540386 | C53: ONTIC | D53: KARAN BHARATBHAI KAHAR | E53: BUY | F53: 5,000 | G53: 23.05 | H53: BSE
A54: 2021-11-22 | B54: 540386 | C54: ONTIC | D54: KARAN BHARATBHAI KAHAR | E54: SELL | F54: 70,047 | G54: 24.2 | H54: BSE
A55: 2021-11-22 | B55: 540386 | C55: ONTIC | D55: JITENDRABHAI JAGDISHBHAI PARMAR | E55: SELL | F55: 70,692 | G55: 24.01 | H55: BSE
A56: 2021-11-22 | B56: 539291 | C56: OZONEWORLD | D56: RAJESHKUMAR RAMESHCHANDRA GUPTA | E56: SELL | F56: 23,025 | G56: 12.41 | H56: BSE
A57: 2021-11-22 | B57: 539291 | C57: OZONEWORLD | D57: RIPALBEN DHARMIKKUMAR PARIKH | E57: SELL | F57: 28,592 | G57: 12.4 | H57: BSE
A58: 2021-11-22 | B58: 539291 | C58: OZONEWORLD | D58: SACHIDANANDAARAVIND | E58: BUY | F58: 58,306 | G58: 12.43 | H58: BSE
A59: 2021-11-22 | B59: 504335 | C59: PAZEL | D59: SHYAMSURAT RAJBALI SINGH | E59: SELL | F59: 1,097,532 | G59: 0.39 | H59: BSE
A60: 2021-11-22 | B60: 524572 | C60: PHARMAID | D60: SADHANALA VENKATA RAO | E60: SELL | F60: 80,000 | G60: 15.3 | H60: BSE
A61: 2021-11-22 | B61: 543375 | C61: PROMAX | D61: BASAVARAJ GANGAPPA HAMMINI | E61: BUY | F61: 40,000 | G61: 20.01 | H61: BSE
A62: 2021-11-22 | B62: 543375 | C62: PROMAX | D62: BASAVARAJ GANGAPPA HAMMINI | E62: SELL | F62: 10,000 | G62: 17.02 | H62: BSE
A63: 2021-11-22 | B63: 539673 | C63: RCL | D63: RAMESH DHANDAPANI | E63: SELL | F63: 10,272 | G63: 12.52 | H63: BSE
A64: 2021-11-22 | B64: 511577 | C64: SAVFI | D64: DEEPA KISHOR TRACY | E64: BUY | F64: 33,702 | G64: 14.05 | H64: BSE
A65: 2021-11-22 | B65: 543391 | C65: SGFRL | D65: SANJAY POPATLAL JAIN | E65: BUY | F65: 156,000 | G65: 45.15 | H65: BSE
A66: 2021-11-22 | B66: 540147 | C66: SHASHIJIT | D66: PAYAL PROPERTIES PVT LTD | E66: BUY | F66: 63,000 | G66: 30.73 | H66: BSE
A67: 2021-11-22 | B67: 542025 | C67: SUNRETAIL | D67: RUPAL BHAVIN SHAH | E67: SELL | F67: 1,104,000 | G67: 0.38 | H67: BSE
A68: 2021-11-22 | B68: 542025 | C68: SUNRETAIL | D68: VANRAJ DADBHAI KAHOR | E68: SELL | F68: 1,008,000 | G68: 0.38 | H68: BSE
A69: 2021-11-22 | B69: 542025 | C69: SUNRETAIL | D69: TJR AGROCOM PRIVATE LIMITED | E69: SELL | F69: 2,688,000 | G69: 0.38 | H69: BSE
A70: 2021-11-22 | B70: 542025 | C70: SUNRETAIL | D70: KAMLESH NAVINCHANDRA SHAH | E70: BUY | F70: 1,008,000 | G70: 0.38 | H70: BSE
A71: 2021-11-22 | B71: 542025 | C71: SUNRETAIL | D71: KAMLESH NAVINCHANDRA SHAH | E71: SELL | F71: 48,000 | G71: 0.4 | H71: BSE
A72: 2021-11-22 | B72: 539406 | C72: SWAGTAM | D72: SAMARTH AGGARWAL | E72: BUY | F72: 142,000 | G72: 35 | H72: BSE
A73: 2021-11-22 | B73: 539406 | C73: SWAGTAM | D73: AMIT GUPTA | E73: SELL | F73: 34,500 | G73: 35 | H73: BSE
A74: 2021-11-22 | B74: 539406 | C74: SWAGTAM | D74: VEENA GUPTA | E74: SELL | F74: 50,000 | G74: 35 | H74: BSE
A75: 2021-11-22 | B75: 539406 | C75: SWAGTAM | D75: DIVYA KANDA | E75: BUY | F75: 6,450 | G75: 35 | H75: BSE
A76: 2021-11-22 | B76: 539406 | C76: SWAGTAM | D76: SAROJ RANI AGGARAL | E76: SELL | F76: 30,000 | G76: 35 | H76: BSE
A77: 2021-11-22 | B77: 539406 | C77: SWAGTAM | D77: ANITA AGGARWAL | E77: SELL | F77: 30,000 | G77: 35 | H77: BSE
A78: 2021-11-22 | B78: 531650 | C78: VAXHS | D78: KAILASH SUBHKARAN AGARWAL | E78: SELL | F78: 113,397 | G78: 0.64 | H78: BSE
A79: 2021-11-22 | B79: 542654 | C79: VRFILMS | D79: MADHUSUDHAN GUNDA | E79: BUY | F79: 8,000 | G79: 371.51 | H79: BSE
A80: 2021-11-22 | B80: FOCUS | C80: Focus Lightg & Fixtrs Ltd | D80: KANISHKA JAIN | E80: BUY | F80: 111,000 | G80: 77.4 | H80: NSE
A81: 2021-11-22 | B81: FOCUS | C81: Focus Lightg & Fixtrs Ltd | D81: PURVI PRABHATCHANDRA JAIN | E81: BUY | F81: 72,000 | G81: 77.4 | H81: NSE
A82: 2021-11-22 | B82: INDTERRAIN | C82: Ind Terrain Fashions Ltd | D82: GRAVITON RESEARCH CAPITAL LLP | E82: BUY | F82: 255,490 | G82: 61.75 | H82: NSE
A83: 2021-11-22 | B83: JIKIND | C83: JIK Industries Limited | D83: HANSABEN HASMUKHBHAI AMIN | E83: BUY | F83: 300,000 | G83: 0.95 | H83: NSE
A84: 2021-11-22 | B84: KOTYARK | C84: Kotyark Industries Ltd | D84: SAURABH TRIPATHI | E84: BUY | F84: 46,000 | G84: 97.1 | H84: NSE
A85: 2021-11-22 | B85: KSHITIJPOL | C85: Kshitij Polyline Limited | D85: SURESH VASTIMAL PUNAMIYA | E85: BUY | F85: 60,658 | G85: 33.12 | H85: NSE
A86: 2021-11-22 | B86: LIBAS | C86: Libas Consu Products Ltd | D86: AKSHAY RAJENDRABHAI OSWALS | E86: BUY | F86: 230,720 | G86: 34.44 | H86: NSE
A87: 2021-11-22 | B87: LIBAS | C87: Libas Consu Products Ltd | D87: ALPHA LEON ENTERPRISES LLP | E87: BUY | F87: 275,001 | G87: 33.55 | H87: NSE
A88: 2021-11-22 | B88: SERVOTECH | C88: Servotech Power Sys Ltd. | D88: MALIK PANKAJ | E88: BUY | F88: 142,661 | G88: 24.68 | H88: NSE
A89: 2021-11-22 | B89: SHAHALLOYS | C89: Shah Alloys Limited | D89: RAVIRAJ DEVELOPERS LTD | E89: BUY | F89: 119,559 | G89: 35.98 | H89: NSE
A90: 2021-11-22 | B90: THANGAMAYL | C90: Thangamayil Jewellery Ltd | D90: DSP MUTUAL FUND | E90: BUY | F90: 500,001 | G90: 1322.1 | H90: NSE
A91: 2021-11-22 | B91: FINOPB | C91: Fino Payments Bank Ltd | D91: SOCIETE GENERALE | E91: SELL | F91: 462,468 | G91: 401.48 | H91: NSE
A92: 2021-11-22 | B92: INDTERRAIN | C92: Ind Terrain Fashions Ltd | D92: GRAVITON RESEARCH CAPITAL LLP | E92: SELL | F92: 255,490 | G92: 61.98 | H92: NSE
A93: 2021-11-22 | B93: LIBAS | C93: Libas Consu Products Ltd | D93: RITESH PROPERTIES AND INDUSTRIES LIMITED | E93: SELL | F93: 100,000 | G93: 35.15 | H93: NSE
A94: 2021-11-22 | B94: LIBAS | C94: Libas Consu Products Ltd | D94: ALPHA LEON ENTERPRISES LLP | E94: SELL | F94: 275,001 | G94: 33.55 | H94: NSE
A95: 2021-11-22 | B95: LIBAS | C95: Libas Consu Products Ltd | D95: AKSHAY RAJENDRABHAI OSWALS | E95: SELL | F95: 231,360 | G95: 34.03 | H95: NSE
A96: 2021-11-22 | B96: MOKSH | C96: Moksh Ornaments Limited | D96: TRIYAMB SECURITIES PRIVATE LTD | E96: SELL | F96: 424,192 | G96: 38 | H96: NSE
A97: 2021-11-22 | B97: SERVOTECH | C97: Servotech Power Sys Ltd. | D97: MALIK PANKAJ | E97: SELL | F97: 101,827 | G97: 23.82 | H97: NSE
A98: 2021-11-22 | B98: SHAHALLOYS | C98: Shah Alloys Limited | D98: SUMIT BINANI | E98: SELL | F98: 100,000 | G98: 36.1 | H98: NSE
A99: 2021-11-22 | B99: THANGAMAYL | C99: Thangamayil Jewellery Ltd | D99: NARAYANAN BALUSAMY KUMAR | E99: SELL | F99: 166,667 | G99: 1322.1 | H99: NSE
A100: 2021-11-22 | B100: THANGAMAYL | C100: Thangamayil Jewellery Ltd | D100: DAS BALARAMA GOVINDA | E100: SELL | F100: 166,667 | G100: 1322.1 | H100: NSE
A101: 2021-11-22 | B101: THANGAMAYL | C101: Thangamayil Jewellery Ltd | D101: BALUSAMY RAMESH | E101: SELL | F101: 166,667 | G101: 1322.1 | H101: NSE

Sheet Call Tracker (Equity & F&O)
M5: Back To Main Page
A6: Retail Research Technical Calls & Fundamental Performance Report for the month of Nov-2021
M7: =Main!B10 -> 2021-11-23
B8: Positional Call
A9: Sr.no | B9: Date | D9: Company | E9: Rec | F9: Rec Price | G9: Stop Loss*** | H9: Call Closed At | I9: Target | J9: Remark | K9: Profit / Loss per Share | L9: All charges | M9: Net Gain / Loss % | N9: Status | O9: Closed Date | P9: Market Closing Price
A10: 1 | B10: 2021-09-15 | D10: AKZOINDIA | E10: Buy | F10: 2195 | G10: 2080 | H10: 2,295.00 | I10: 2400-2500 | J10: Profit of Rs.50/- | K10: 50 | L10: =(F10*-0.7)/100 -> -15.37 | M10: =(K10+L10)/F10 -> 1.58% | N10: Successful | O10: 2021-11-22 | R10: H
A11: 2 | B11: 2021-09-21 | D11: GLAXO | E11: Buy | F11: 1510 | G11: 1395 | H11: 1,585.00 | I11: 1680-1720 | J11: Profit of Rs.75/- | K11: =H11-F11 -> 75 | L11: -10.57 | M11: 4.27% | N11: Successful | O11: 2021-11-01 | R11: H
A12: 3 | B12: 2021-10-05 | D12: HDFCLIFE | E12: Buy | F12: 715-725 | G12: 660 | I12: 820-850 | J12: Open | P12: =VLOOKUP(D12,'MidCap Intra'!B22:C524,2,0) -> 688.85 | R12: H
A13: 4 | B13: 2021-10-08 | D13: BRITANNIA | E13: Buy | F13: 3870 | G13: 3670 | H13: 3,670.00 | I13: 4200-4300 | J13: Loss of Rs.200/- | K13: =H13-F13 -> -200 | L13: =(F13*-0.7)/100 -> -27.09 | M13: =(K13+L13)/F13 -> -5.87% | N13: Unsuccessful | O13: 2021-11-03 | R13: H
A14: 5 | B14: 2021-10-11 | D14: ULTRACEMCO | E14: Buy | F14: 7330 | G14: 6980 | H14: 7,760.00 | I14: 7700-8000 | J14: Profit of Rs.430/- | K14: =H14-F14 -> 430 | L14: =(F14*-0.7)/100 -> -51.31 | M14: =(K14+L14)/F14 -> 5.17% | N14: Successful | O14: 2021-11-01 | R14: H
A15: 6 | B15: 2021-10-26 | D15: ICICIGI | E15: Buy | F15: 1480-1500 | G15: 1395 | I15: 1600-1700 | J15: Open | P15: =VLOOKUP(D15,'MidCap Intra'!B29:C522,2,0) -> 1462.35 | R15: H
A16: 7 | B16: 2021-10-27 | D16: WHIRLPOOL | E16: Buy | F16: 2245 | G16: 2080 | H16: 2,080.00 | I16: 2400-2500 | J16: Loss of Rs.165/- | K16: =H16-F16 -> -165 | L16: =(F16*-0.7)/100 -> -15.72 | M16: =(K16+L16)/F16 -> -8.05% | N16: Unsuccessful | O16: 2021-11-03 | R16: H
A17: 8 | B17: 2021-11-01 | D17: IGL | E17: Buy | F17: 474 | G17: 447 | H17: 501.00 | I17: 500-520 | J17: Profit of Rs.27/- | K17: 27 | L17: -3.32 | M17: 5.00% | N17: Successful | O17: 2021-11-11 | R17: H
A18: 9 | B18: 2021-11-01 | D18: MGL | E18: Buy | F18: 1010 | G18: 955 | H18: 955.00 | I18: 1070-1120 | J18: Loss of Rs.55/- | K18: =H18-F18 -> -55 | L18: =(F18*-0.7)/100 -> -7.07 | M18: =(K18+L18)/F18 -> -6.15% | N18: Unsuccessful | O18: 2021-11-22 | R18: N
A19: 10 | B19: 2021-11-02 | D19: BEL | E19: Buy | F19: 201 | G19: 188 | H19: 214.50 | I19: 215-225 | J19: Profit of Rs.13.5/- | K19: =H19-F19 -> 13.5 | L19: =(F19*-0.7)/100 -> -1.41 | M19: =(K19+L19)/F19 -> 6.02% | N19: Successful | O19: 2021-11-09 | R19: H
A20: 11 | B20: 2021-11-09 | D20: JBCHEPHARM | E20: Buy | F20: 1660 | G20: 1578 | H20: 1,745.00 | I20: 1740-1800 | J20: Profit of Rs.85/- | K20: =H20-F20 -> 85 | L20: =(F20*-0.7)/100 -> -11.62 | M20: =(K20+L20)/F20 -> 4.42% | N20: Successful | O20: 2021-11-10 | R20: H
A21: 12 | B21: 2021-11-11 | D21: VTL | E21: Buy | F21: 2030 | G21: 1940 | H21: 1,940.00 | I21: 2150-2200 | J21: Loss of Rs.90/- | K21: -90 | L21: -14.21 | M21: -5.13% | N21: Unsuccessful | O21: 2021-11-22 | R21: H
A25: CLBS = Closing Basis ***
A26: Dividend adjusted <> | F26: Reinitiated $
A27: Part book {} | F27: Revised stoploss #
B29: Momentum Call
A30: Sr.no | B30: Date | D30: Company | E30: Rec | F30: Rec Price | G30: Stop Loss | H30: Call Closed At | I30: Target | J30: Remark | K30: Profit / Loss per Share/Lot | L30: All charges | M30: Net Gain / Loss % | N30: Status | O30: Closed Date
A31: 1 | B31: 2021-10-22 | D31: HDFC | E31: Buy | F31: 2925 | G31: 2850 | H31: 2940 | I31: 3020-3050 | J31: Profit of Rs.15/- | K31: =H31-F31 -> 15 | L31: =(F31*-0.7)/100 -> -20.48 | M31: =(K31+L31)/F31 -> -0.19% | N31: Neutral | O31: 2021-11-01 | R31: H
A32: 2 | B32: 2021-10-26 | D32: TCS | E32: Buy | F32: 3487.5 | G32: 3390 | H32: 3565 | I32: 3600-3650 | J32: Profit of Rs.77.5/- | K32: 77.5 | L32: -24.41 | M32: 1.52% | N32: Successful | O32: 2021-11-15 | R32: H
A33: 3 | B33: 2021-10-28 | D33: BSOFT | E33: Buy | F33: 416 | G33: 403 | H33: 424 | I33: 432-445 | J33: Profit of Rs.8/- | K33: =H33-F33 -> 8 | L33: =(F33*-0.7)/100 -> -2.91 | M33: =(K33+L33)/F33 -> 1.22% | N33: Successful | O33: 2021-11-09 | R33: N
A34: 4 | B34: 2021-11-01 | D34: SBIN | E34: Buy | F34: 502 | G34: 487 | H34: 511 | I34: 520-530 | J34: Profit of Rs.9/- | K34: =H34-F34 -> 9 | L34: =(F34*-0.07)/100 -> -0.35 | M34: =(K34+L34)/F34 -> 1.72% | N34: Successful | O34: 2021-11-01 | R34: H
A35: 5 | B35: 2021-11-09 | D35: CAMS | E35: Buy | F35: 2995 | G35: 2900 | H35: 3120 | I35: 3100-3200 | J35: Profit of Rs.125/- | K35: 125 | L35: =(F35*-0.7)/100 -> -20.97 | M35: 3.47% | N35: Successful | O35: 2021-11-16 | R35: H
A36: 6 | B36: 2021-11-09 | D36: DEEPAKNTR | E36: Buy | F36: 2355 | G36: 2290 | H36: 2280 | I36: 2420-2480 | J36: Loss of Rs.75/- | K36: -75 | L36: -16.49 | M36: -3.88% | N36: Unsuccessful | O36: 2021-11-18 | R36: H
A37: 7 | B37: 2021-11-16 | D37: SBIN | E37: Buy | F37: 498.5 | G37: 484 | H37: 484 | I37: 515-530 | J37: Loss of Rs.14.5/- | K37: =H37-F37 -> -14.5 | L37: =(F37*-0.7)/100 -> -3.49 | M37: =(K37+L37)/F37 -> -3.61% | N37: Unsuccessful | O37: 2021-11-18 | R37: H
A38: 8 | B38: 2021-11-17 | D38: AXISBANK | E38: Buy | F38: 714.5 | G38: 696 | H38: 696 | I38: 740-750 | J38: Loss of Rs.18.5/- | K38: -18.5 | L38: -5.00 | M38: -3.29% | N38: Unsuccessful | O38: 2021-11-18 | R38: H
A39: 9 | B39: 2021-11-17 | D39: GREAVESCOT | E39: Buy | F39: 143.75 | G39: 139.5 | H39: 147.5 | I39: 149-151 | J39: Profit of Rs.3.75/- | K39: =H39-F39 -> 3.75 | L39: =(F39*-0.07)/100 -> -0.10 | M39: =(K39+L39)/F39 -> 2.54% | N39: Successful | O39: 2021-11-17 | R39: H
B40: 2021-11-22 | D40: ICICIBANK | E40: Buy | F40: 758-761 | G40: 738 | I40: 785-805 | J40: Open
B41: 2021-11-22 | D41: IEX | E41: Buy | F41: 765-769 | G41: 745 | I41: 800-810 | J41: Open
A46: CLBS = Closing Basis *** | H46: *
A47: Dividend adjusted <> | F47: Reinitiated $
F48: Revised stoploss #
A50: Master Trade High Risk
A51: Sr.no | B51: Date | D51: Company | E51: Rec | F51: Rec Price | G51: Stop Loss | H51: Call Closed At | I51: Target | J51: Remark | K51: Profit / Loss per share | L51: All charges | M51: Gain / Loss per Lot | N51: Lot | O51: Status | P51: Closed Date
A52: 1 | B52: 2021-11-01 | D52: HINDUNILVR NOV FUT | E52: Buy | F52: 2418 | G52: 2380 | H52: 2445 | I52: 2460-2480 | J52: Profit of Rs.27/- | K52: =H52-F52 -> 27 | L52: =(H52*N52)*0.07% -> 513.45 | M52: =(K52*N52)-L52 -> 7586.6 | N52: 300 | O52: Successful | P52: 2021-11-09 | R52: H
A53: 2 | B53: 2021-11-02 | D53: HDFC NOV FUT | E53: Buy | F53: 2887.5 | G53: 2848 | H53: 2918 | I53: 2940-2960 | J53: Profit of Rs.30.5/- | K53: =H53-F53 -> 30.5 | L53: =(H53*N53)*0.07% -> 612.78 | M53: =(K53*N53)-L53 -> 8537.2 | N53: 300 | O53: Successful | P53: 2021-11-03 | R53: H
A54: 3 | B54: 2021-11-02 | D54: COLPAL NOV FUT | E54: Buy | F54: 1528 | G54: 1490 | H54: 1551 | I54: 1580-1600 | J54: Profit of Rs.23/- | K54: 23 | L54: 434.28 | M54: 8765.7 | N54: 400 | O54: Successful | P54: 2021-11-09 | R54: N
A55: 4 | B55: 2021-11-03 | D55: HDFC NOV FUT | E55: Buy | F55: 2887.5 | G55: 2848 | H55: 2907.5 | I55: 2940-2960 | J55: Profit of Rs.20/- | K55: =H55-F55 -> 20 | L55: =(H55*N55)*0.07% -> 610.58 | M55: =(K55*N55)-L55 -> 5389.4 | N55: 300 | O55: Successful | P55: 2021-11-05 | R55: H
A56: 5 | B56: 2021-11-08 | D56: SIEMENS NOV FUT | E56: Buy | F56: 2330 | G56: 2290 | H56: 2362.5 | I56: 2375-2400 | J56: Profit of Rs.32.5/- | K56: =H56-F56 -> 32.5 | L56: =(H56*N56)*0.07% -> 454.78 | M56: =(K56*N56)-L56 -> 8482.7 | N56: 275 | O56: Successful | P56: 2021-11-08 | R56: N
A57: 6 | B57: 2021-11-08 | D57: NIFTY NOV FUT | E57: Sell | F57: 18050 | G57: 18160 | H57: 18005 | I57: 17900-17800 | J57: Profit of Rs.45/- | K57: =F57-H57 -> 45 | L57: =(H57*N57)*0.07% -> 630.18 | M57: =(K57*N57)-L57 -> 1619.8 | N57: 50 | O57: Successful | P57: 2021-11-09 | R57: H
A58: 7 | B58: 2021-11-09 | D58: HINDUNILVR NOV FUT | E58: Buy | F58: 2424 | G58: 2385 | H58: 2385 | I58: 2460-2480 | J58: Loss of Rs.39/- | K58: =H58-F58 -> -39 | L58: 500.85 | M58: -12200.9 | N58: 300 | O58: Unsuccessful | P58: 2021-11-11 | R58: H
A59: 8 | B59: 2021-11-09 | D59: ICICIBANK NOV FUT | E59: Buy | F59: 782 | G59: 773 | H59: 789 | I59: 794-804 | J59: Profit of Rs.7/- | K59: =H59-F59 -> 7 | L59: =(H59*N59)*0.07% -> 759.41 | M59: =(K59*N59)-L59 -> 8865.6 | N59: 1375 | O59: Successful | P59: 2021-11-09 | R59: N
A60: 9 | B60: 2021-11-10 | D60: NIFTY NOV FUT | E60: Sell | F60: 18000 | G60: 18130 | H60: 17915 | I60: 17850-17750 | J60: Profit of Rs.85/- | K60: =F60-H60 -> 85 | L60: 627.03 | M60: 3623.0 | N60: 50 | O60: Successful | P60: 2021-11-11 | R60: H
A61: 10 | B61: 2021-11-11 | D61: HDFCBANK NOV FUT | E61: Buy | F61: 1547.5 | G61: 1525 | H61: 1571 | I61: 1570-1590 | J61: Profit of Rs.23.5/- | K61: =H61-F61 -> 23.5 | L61: =(H61*N61)*0.07% -> 604.84 | M61: =(K61*N61)-L61 -> 12320.2 | N61: 550 | O61: Successful | P61: 2021-11-15 | R61: H
A62: 11 | B62: 2021-11-12 | D62: NIFTY NOV FUT | E62: Sell | F62: 18030 | G62: 18160 | H62: 18180 | I62: 17850-17750 | J62: Loss of Rs.150/- | K62: =F62-H62 -> -150 | L62: =(H62*N62)*0.07% -> 636.30 | M62: =(K62*N62)-L62 -> -8136.3 | N62: 50 | O62: Unsuccessful | P62: 2021-11-15 | R62: H
A63: 12 | B63: 2021-11-12 | D63: SIEMENS NOV FUT | E63: Buy | F63: 2402 | G63: 2355 | H63: 2370 | I63: 2450-2490 | J63: Loss of Rs.32/- | K63: =H63-F63 -> -32 | L63: 456.23 | M63: -9256.2 | N63: 275 | O63: Unsuccessful | P63: 2021-11-17 | R63: N
A64: 13 | B64: 2021-11-15 | D64: CONCOR NOV FUT | E64: Buy | F64: 687.5 | G64: 678 | H64: 678 | I64: 698-710 | J64: Loss of Rs.9.5/- | K64: =H64-F64 -> -9.5 | L64: =(H64*N64)*0.07% -> 741.80 | M64: =(K64*N64)-L64 -> -15590.3 | N64: 1563 | O64: Unsuccessful | P64: 2021-11-11 | R64: N
A65: 14 | B65: 2021-11-16 | D65: HDFCBANK NOV FUT | E65: Buy | F65: 1548 | G65: 1525 | H65: 1525 | I65: 1570-1590 | J65: Loss of Rs.23/- | K65: =H65-F65 -> -23 | L65: =(H65*N65)*0.07% -> 587.13 | M65: =(K65*N65)-L65 -> -13237.1 | N65: 550 | O65: Unsuccessful | P65: 2021-11-22 | R65: H
B66: 2021-11-22 | D66: AARTIIND NOV FUT | E66: Buy | F66: 932 | G66: 918 | H66: 918 | I66: 950-965 | J66: Loss of Rs.14/- | K66: =H66-F66 -> -14 | L66: =(H66*N66)*0.07% -> 546.21 | M66: =(K66*N66)-L66 -> -12446.2 | N66: 850 | O66: Unsuccessful | P66: 2021-11-22
A73: Master Trade Medium Risk
A74: Sr.no | B74: Date | D74: Company | E74: Rec | F74: Rec Price | G74: Stop Loss | H74: Call Closed At | I74: Target | J74: Remark | K74: Profit/ Loss per lot | L74: All charges | M74: Gain / Loss per Lot | N74: Lot | O74: Status | P74: Closed Date
A75: 1 | B75: 2021-11-01 | D75: NIFTY 17850 PE 3 NOV | E75: Buy | F75: 62 | G75: 30 | H75: 75 | I75: 120-140 | J75: Profit of Rs.13/- | K75: =H75-F75 -> 13.00 | L75: 100.00 | M75: =(K75*N75)-100 -> 550 | N75: 50 | O75: Successful | P75: 2021-11-02 | R75: N
A76: 2 | B76: 2021-11-02 | D76: NIFTY 17950 CE 3 NOV | E76: Buy | F76: 62 | G76: 30 | H76: 83 | I76: 120-140 | J76: Profit of Rs.21/- | K76: =H76-F76 -> 21.00 | L76: 100.00 | M76: =(K76*N76)-100 -> 950 | N76: 50 | O76: Successful | P76: 2021-11-02 | R76: N
A77: 3 | B77: 2021-11-02 | D77: BANKNIFTY 39800 CE 3 NOV | E77: Buy | F77: 200 | G77: 95 | H77: 275 | I77: 320-400 | J77: Profit of Rs.75/- | K77: 75.00 | L77: 100.00 | M77: 1775 | N77: 25 | O77: Successful | P77: 2021-11-02 | R77: H
A78: 4 | B78: 2021-11-02 | D78: NIFTY 17900 CE 3 NOV | E78: Buy | F78: 90 | G78: 60 | H78: 91 | I78: 120-150 | J78: Profit of Rs.1/- | K78: =H78-F78 -> 1.00 | L78: 100.00 | M78: =(K78*N78)-100 -> -50 | N78: 50 | O78: Neutral | P78: 2021-11-03 | R78: H
A79: 5 | B79: 2021-11-02 | D79: HDFC 2950 CE NOV | E79: Buy | F79: 50 | G79: 35 | H79: 59 | I79: 65-80 | J79: Profit of Rs.9/- | K79: =H79-F79 -> 9.00 | L79: 100.00 | M79: =(K79*N79)-100 -> 2600 | N79: 300 | O79: Successful | P79: 2021-11-03 | R79: N
A80: 6 | B80: 2021-11-02 | D80: BANKNIFTY 40000 CE 3 NOV | E80: Buy | F80: 155 | G80: 50 | H80: 205 | I80: 260-350 | J80: Profit of Rs.50/- | K80: =H80-F80 -> 50.00 | L80: 100.00 | M80: =(K80*N80)-100 -> 1150 | N80: 25 | O80: Successful | P80: 2021-11-02 | R80: N
A81: 7 | B81: 2021-11-03 | D81: HINDUNILVR 2460 CE NOV | E81: Buy | F81: 41 | G81: 25 | H81: 25 | I81: 55-70 | J81: Loss of Rs.16/- | K81: =H81-F81 -> -16.00 | L81: 100.00 | M81: =(K81*N81)-100 -> -4900 | N81: 300 | O81: Unsuccessful | P81: 2021-11-11 | R81: N
A82: 8 | B82: 2021-11-03 | D82: NIFTY 18000 PE 3 NOV | E82: Buy | F82: 54 | G82: 15 | H82: 74 | I82: 100-110 | J82: Profit of Rs.20/- | K82: =H82-F82 -> 20.00 | L82: 100.00 | M82: =(K82*N82)-100 -> 900 | N82: 50 | O82: Successful | P82: 2021-11-03 | R82: N
A83: 9 | B83: 2021-11-03 | D83: HDFC 2950 CE NOV | E83: Buy | F83: 50 | G83: 35 | H83: 59 | I83: 65-80 | J83: Profit of Rs.9/- | K83: 9.00 | L83: 100.00 | M83: 2600 | N83: 300 | O83: Successful | P83: 2021-11-08 | R83: H
A84: 10 | B84: 2021-11-03 | D84: NIFTY 17900 CE 3-NOV | E84: Buy | F84: 19 | H84: 0 | I84: 40-60 | J84: Loss of Rs.19/- | K84: -19.00 | L84: 100.00 | M84: -1050 | N84: 50 | O84: Unsuccessful | P84: 2021-11-03 | R84: N
A85: 11 | B85: 2021-11-08 | D85: NIFTY 17700 PE 25-NOV | E85: Buy | F85: 125.5 | G85: 97 | H85: 148 | I85: 160-180 | J85: Profit of Rs.22.5/- | K85: 22.50 | L85: 100.00 | M85: 1025 | N85: 50 | O85: Successful | P85: 2021-11-08 | R85: H
A86: 12 | B86: 2021-11-08 | D86: NIFTY 17700 PE 25-NOV | E86: Buy | F86: 124 | G86: 97 | H86: 97 | I86: 160-180 | J86: Loss of Rs.27/- | K86: -27.00 | L86: 100.00 | M86: -1450 | N86: 50 | O86: Unsuccessful | P86: 2021-11-08 | R86: H
A87: 13 | B87: 2021-11-09 | D87: HDFC 2950 CE NOV | E87: Buy | F87: 50 | G87: 35 | H87: 57.5 | I87: 65-80 | J87: Profit of Rs.7.5/- | K87: 7.50 | L87: 100.00 | M87: 2150 | N87: 300 | O87: Successful | P87: 2021-11-09 | R87: N
A88: 14 | B88: 2021-11-10 | D88: HDFC 2950 CE NOV | E88: Buy | F88: 37 | G88: 22 | H88: 54 | I88: 50-65 | J88: Profit of Rs.17/- | K88: =H88-F88 -> 17.00 | L88: 100.00 | M88: =(K88*N88)-100 -> 5000 | N88: 300 | O88: Successful | P88: 2021-11-10 | R88: N
A89: 15 | B89: 2021-11-10 | D89: NIFTY 17950 PE 11-NOV | E89: Buy | F89: 73.5 | G89: 39 | H89: 39 | I89: 105-120 | J89: Loss of Rs.34.5/- | K89: -34.50 | L89: 100.00 | M89: -1825 | N89: 50 | O89: Unsuccessful | P89: 2021-11-10 | R89: N
A90: 16 | B90: 2021-11-10 | D90: NIFTY 17900 PE 25-NOV | E90: Buy | F90: 190 | H90: 235 | J90: Profit of 42.5/- | K90: 45.00 | L90: 100.00 | M90: =(42.5*50)-200 -> 1925 | N90: 50 | O90: Successful | P90: 2021-11-18 | R90: H
D91: NIFTY 17700 PE 25-NOV | E91: Sell | F91: 120 | H91: 122.5 | K91: -2.50 | L91: 100.00 | R91: H
A92: 17 | B92: 2021-11-11 | D92: HDFC 2920 CE NOV | E92: Buy | F92: 47 | G92: 33 | H92: 58 | I92: 62-75 | J92: Profit of Rs.11/- | K92: =H92-F92 -> 11.00 | L92: 100.00 | M92: =(K92*N92)-100 -> 3200 | N92: 300 | O92: Successful | P92: 2021-11-12 | R92: N
A93: 18 | B93: 2021-11-11 | D93: NIFTY 17900 PE 11-NOV | E93: Buy | F93: 42 | G93: 8 | H93: 66 | I93: 70-100 | J93: Profit of Rs.24/- | K93: =H93-F93 -> 24.00 | L93: 100.00 | M93: =(K93*N93)-100 -> 1100 | N93: 50 | O93: Successful | P93: 2021-11-11 | R93: H
A94: 19 | B94: 2021-11-11 | D94: NIFTY 17900 PE 18-NOV | E94: Buy | F94: 81 | G94: 48 | H94: 106 | I94: 120-140 | J94: Profit of Rs.25/- | K94: =H94-F94 -> 25.00 | L94: 100.00 | M94: =(K94*N94)-100 -> 1150 | N94: 50 | O94: Successful | P94: 2021-11-12 | R94: H
A95: 20 | B95: 2021-11-11 | D95: NIFTY 17900 PE 18-NOV | E95: Buy | F95: 81 | G95: 48 | H95: 48 | I95: 120-140 | J95: Loss of Rs.33/- | K95: =H95-F95 -> -33.00 | L95: 100.00 | M95: -1750 | N95: 50 | O95: Unsuccessful | P95: 2021-11-12 | R95: H
A96: 21 | B96: 2021-11-12 | D96: HDFCBANK 1560 CE NOV | E96: Buy | F96: 25 | G96: 17 | H96: 30 | I96: 34-40 | J96: Profit of Rs.5/- | K96: 5.00 | L96: 100.00 | M96: 2650 | N96: 550 | O96: Successful | P96: 2021-11-15 | R96: N
A97: 22 | B97: 2021-11-15 | D97: NIFTY 18050 PE 18-NOV | E97: Buy | F97: 48 | G97: 17 | H97: 69 | I97: 80-100 | J97: Profit of Rs.21/- | K97: =H97-F97 -> 21.00 | L97: 100.00 | M97: =(K97*N97)-100 -> 950 | N97: 50 | O97: Successful | P97: 2021-11-15 | R97: H
A98: 23 | B98: 2021-11-15 | D98: NIFTY 18050 PE 18-NOV | E98: Buy | F98: 53.5 | G98: 17 | H98: 74 | I98: 80-100 | J98: Profit of Rs.20.50/- | K98: =H98-F98 -> 20.50 | L98: 100.00 | M98: =(K98*N98)-100 -> 925 | N98: 50 | O98: Successful | P98: 2021-11-15 | R98: H
A99: 24 | B99: 2021-11-16 | D99: BAJAJ-AUTO 3650 CE NOV | E99: Buy | F99: 50.5 | G99: 32 | H99: 33 | I99: 70-90 | J99: Loss of Rs.17.5/- | K99: =H99-F99 -> -17.50 | L99: 100.00 | M99: -4475 | N99: 250 | O99: Unsuccessful | P99: 2021-11-17 | R99: N
A100: 25 | B100: 2021-11-16 | D100: HDFCBANK 1560 CE NOV | E100: Buy | F100: 15.25 | G100: 8 | H100: 8 | I100: 30-40 | J100: Loss of Rs.7.25/- | K100: =H100-F100 -> -7.25 | L100: 100.00 | M100: =(K100*N100)-100 -> -4087.5 | N100: 550 | O100: Unsuccessful | P100: 2021-11-22 | R100: N
A101: 26 | B101: 2021-11-16 | D101: BANKNIFTY 38400 CE 18-NOV | E101: Buy | F101: 190 | G101: 130 | H101: 240 | I101: 250-300 | J101: Profit of Rs.50/- | K101: =H101-F101 -> 50.00 | L101: 100.00 | M101: =(K101*N101)-100 -> 1150 | N101: 25 | O101: Successful | P101: 2021-11-16 | R101: H
A102: 27 | B102: 2021-11-17 | D102: BANKNIFTY 38300 CE 18-NOV | E102: Buy | F102: 165 | G102: 100 | H102: 215 | I102: 240-300 | J102: Profit of Rs.50/- | K102: =H102-F102 -> 50.00 | L102: 100.00 | M102: =(K102*N102)-100 -> 1150 | N102: 25 | O102: Successful | P102: 2021-11-16 | R102: H
A103: 28 | B103: 2021-11-17 | D103: BANKNIFTY 38200 CE 18-NOV | E103: Buy | F103: 175 | G103: 118 | H103: 165 | I103: 240-300 | J103: Loss of Rs.10/- | K103: =H103-F103 -> -10.00 | L103: 100.00 | M103: =(K103*N103)-100 -> -350 | N103: 25 | O103: Unsuccessful | P103: 2021-11-18 | R103: H
A104: 29 | B104: 2021-11-18 | D104: HDFC 2940 CE NOV | E104: Buy | F104: 31 | G104: 17 | H104: 17 | I104: 45-60 | J104: Loss of Rs.14/- | K104: -14.00 | L104: 100.00 | M104: -4300 | N104: 300 | O104: Unsuccessful | P104: 2021-11-22 | R104: N
A105: 30 | B105: 2021-11-18 | D105: BANKNIFTY 38300 CE 25-NOV | E105: Buy | F105: 295 | G105: 150 | H105: 120 | I105: 500-550 | J105: Loss of Rs.120/- | K105: -175.00 | L105: 100.00 | M105: =(-120*25)-200 -> -3200 | N105: 25 | O105: Unsuccessful | P105: 2021-11-22 | R105: H
D106: BANKNIFTY 38300 CE 18-NOV | E106: Sell | F106: 55 | H106: 0 | K106: 55.00 | L106: 100.00 | R106: H
A107: 31 | B107: 2021-11-18 | D107: NIFTY 17750 CE 18-NOV | E107: Buy | F107: 23 | H107: 38 | I107: 60-80 | J107: Profit of Rs.15/- | K107: =H107-F107 -> 15.00 | L107: 100.00 | M107: =(K107*N107)-100 -> 650 | N107: 50 | O107: Successful | P107: 2021-11-18 | R107: H
B108: 2021-11-22 | D108: NIFTY 17500 CE 25-NOV | E108: Buy | F108: 86 | G108: 48 | H108: 92 | I108: 120-140 | J108: Profit of Rs.6/- | K108: =H108-F108 -> 6.00 | L108: 100.00 | M108: =(K108*N108)-100 -> 200 | N108: 50 | O108: Successful | P108: 2021-11-18
B109: 2021-11-22 | D109: BANKNIFTY 37600 25-NOV-1 | E109: Buy | F109: 205-215 | J109: Open
D110: BANKNIFTY 38000 25-NOV-2 | E110: Sell | F110: 110-120
A116: Techno -Funda (positional)
A117: Sr.no | B117: Date | D117: Company | E117: Rec | F117: Rec Price | G117: Stop Loss*** | H117: Call Closed At | I117: Target | J117: Remark | K117: Profit / Loss per Share/Lot | L117: All charges | M117: Net Gain / Loss % | N117: Status | O117: Closed Date | P117: Market Closing Price
A118: 1 | B118: 2021-08-12 | D118: SHARDACROP | E118: Buy | F118: 314 | G118: 284 | H118: 343.50 | I118: 380-390 | J118: Part profit of Rs.29.5/- | K118: =H118-F118 -> 29.5 | L118: =(F118*-0.7)/100 -> -2.20 | M118: =(K118+L118)/F118 -> 8.69% | N118: Successful | O118: 2021-09-16 | P118: =VLOOKUP(D118,'MidCap Intra'!B169:C666,2,0) -> 312.55 | R118: H
A119: 2 | B119: 2021-10-19 | D119: ITC | E119: Buy | F119: 230-251 | G119: 198 | I119: 320-340 | J119: Open | R119: H
A120: 3 | B120: 2021-10-21 | D120: OFSS | E120: Buy | F120: 4150-4550 | G120: 3700 | I120: 5400-6000 | J120: Open | R120: H
A122: CLBS = Closing Basis *** | F122: Reinitiated $
A123: Dividend adjusted <> | F123: Revised stoploss # | H123: .................
B125: Intrday Call
A126: Sr.no | B126: Date | D126: Company | E126: Rec | F126: Rec Price | G126: Stop Loss | H126: Call Closed At | I126: Target | J126: Remark | K126: Profit / Loss per Share/Lot | L126: Gain / Loss per Lot | M126: Lot | N126: All charges | O126: Net Gain / Loss % | P126: Status | Q126: Closed Date
B139: Investment Idea
A140: Sr.no | B140: Date | D140: Company | E140: Rec | F140: Rec Price | G140: Point of Review | H140: Close Rate | I140: Target | J140: Remark | K140: Profit / Loss per Share | L140: Gain / Loss % | M140: Status | N140: Closed Date
A141: 1 | B141: 2013-11-01 | D141: L&T Finance Holding | E141: Accu | F141: 82.00 | G141: - | H141: 100 | I141: 100.00 | J141: Target Achieved | K141: =H141-F141 -> 18.00 | L141: =K141/F141 -> 21.95% | M141: Successful | N141: 2016-10-14
A142: 2 | B142: 2014-06-04 | D142: Finolex Inds | E142: Buy | F142: 257.00 | G142: - | H142: 300 | I142: 300.00 | J142: Target Achieved | K142: 43.00 | L142: 16.73% | M142: Successful | N142: 2014-07-02
A143: 3 | B143: 2014-07-08 | D143: JK Cement | E143: Buy | F143: 393.00 | G143: - | H143: 468 | I143: 468.00 | J143: Target Achieved | K143: 75.00 | L143: 19.08% | M143: Successful | N143: 2014-08-12
A144: 4 | B144: 2014-08-06 | D144: Finolex Cables | E144: Buy | F144: 205.00 | G144: - | H144: 275 | I144: 250.00 | J144: Target Achieved | K144: 70.00 | L144: 34.15% | M144: Successful | N144: 2014-11-19
A145: 5 | B145: 2014-09-04 | D145: Exide Inds | E145: Buy | F145: 162.00 | G145: - | H145: 190 | I145: 190.00 | J145: Target Achieved | K145: 28.00 | L145: 17.28% | M145: Successful | N145: 2015-01-02
A146: 6 | B146: 2014-09-04 | D146: Deepak Nitrite | E146: Buy | F146: 75.00 | G146: - | H146: 91.5 | I146: 95-100 | J146: Profit of Rs.16.50/- | K146: 16.50 | L146: 22.00% | M146: Successful | N146: 2014-11-11
A147: 7 | B147: 2014-10-01 | D147: Mercks | E147: Buy | F147: 850.00 | G147: - | H147: 982.5 | I147: 1050.00 | J147: Profit of Rs.132.50/- | K147: 132.50 | L147: 15.59% | M147: Successful | N147: 2015-02-04
A148: 8 | B148: 2014-10-01 | D148: Grindwell Norton | E148: Buy | F148: 475.00 | G148: - | H148: 515 | I148: 600.00 | J148: Profit of Rs.40/- | K148: 40.00 | L148: 8.42% | M148: Successful | N148: 2014-10-27
A149: 9 | B149: 2014-10-01 | D149: Snowman Logistics | E149: Buy | F149: 86.00 | G149: - | H149: 99 | I149: 140.00 | J149: Profit of Rs.13.00/- | K149: 13.00 | L149: 15.12% | M149: Successful | N149: 2014-10-27
A150: 10 | B150: 2014-10-14 | D150: Birla Corp | E150: Buy | F150: 496.60 | G150: - | H150: 621 | I150: 580.00 | J150: Target Achieved | K150: 124.40 | L150: 25.05% | M150: Successful | N150: 2016-08-23
A151: 11 | B151: 2014-10-14 | D151: Ultratech Cem | E151: Buy | F151: 2481.90 | G151: - | H151: 2840 | I151: 2870.00 | J151: Profit of Rs.358.10/- | K151: 358.10 | L151: 14.43% | M151: Successful | N151: 2015-01-13
A152: 12 | B152: 2014-10-16 | D152: Sintex Inds | E152: Buy | F152: 84.50 | G152: - | H152: 93 | I152: 110.00 | J152: Profit of Rs.8.50/- | K152: 8.50 | L152: 10.06% | M152: Successful | N152: 2014-10-27
A153: 13 | B153: 2014-10-16 | D153: HSIL | E153: Buy | F153: 401.00 | G153: - | H153: 428 | I153: 450.00 | J153: Profit of Rs.27.00/- | K153: 27.00 | L153: 6.73% | M153: Successful | N153: 2015-01-16
A154: 14 | B154: 2014-10-16 | D154: Eveready Inds | E154: Buy | F154: 101.00 | G154: - | H154: 112 | I154: 120.00 | J154: Profit of Rs.11.00/- | K154: 11.00 | L154: 10.89% | M154: Successful | N154: 2014-10-27
A155: 15 | B155: 2014-11-11 | D155: Pennar Inds | E155: Buy | F155: 59.00 | G155: - | H155: 76 | I155: 76.00 | J155: Target Achieved | K155: 17.00 | L155: 28.81% | M155: Successful | N155: 2017-10-24
A156: 16 | B156: 2014-11-11 | D156: Snowman Logistics | E156: Buy | F156: 99.00 | G156: - | H156: 120 | I156: 120.00 | J156: Profit of Rs.21/- | K156: 21.00 | L156: 21.21% | M156: Successful | N156: 2014-11-17
A157: 17 | B157: 2014-11-13 | D157: Dharamsi Morarji Chem | E157: Buy | F157: 22.00 | G157: - | H157: 33.55 | I157: 32.00 | J157: Profit of Rs 11.55/- | K157: 11.55 | L157: 52.50% | M157: Successful | N157: 2015-07-03
A158: 18 | B158: 2014-12-03 | D158: Tatachem | E158: Buy | F158: 440.00 | G158: - | H158: 520 | I158: 520.00 | J158: Profit of Rs 80.00/- | K158: 80.00 | L158: 18.18% | M158: Successful | N158: 2015-07-23
A159: 19 | B159: 2014-12-03 | D159: Advanta | E159: Buy | F159: 360.00 | G159: - | H159: 427 | I159: 425.00 | J159: Profit of Rs.67.00/- | K159: 67.00 | L159: 18.61% | M159: Successful | N159: 2015-02-23
A160: 20 | B160: 2015-01-08 | D160: GDL | E160: Buy | F160: 360.00 | G160: - | H160: 455 | I160: 420.00 | J160: Profit of Rs.95.00/- | K160: 95.00 | L160: 26.39% | M160: Successful | N160: 2015-01-20
A161: 21 | B161: 2015-01-08 | D161: NRB Bearing | E161: Buy | F161: 130.00 | H161: 175.5 | I161: 165.00 | J161: Profit of Rs 45.50/- | K161: 45.50 | L161: 35.00% | M161: Successful | N161: 2017-12-19
A162: 22 | B162: 2015-02-05 | D162: GSFC | E162: Accu | F162: 98.00 | H162: 120 | I162: 120.00 | J162: Target Achieved | K162: 22.00 | L162: 22.45% | M162: Successful | N162: 2017-01-18
A163: 23 | B163: 2015-02-05 | D163: Sundrmfast | E163: Accu | F163: 196.00 | H163: 262 | I163: 255.00 | J163: Target Achieved | K163: 66.00 | L163: 33.67% | M163: Successful | N163: 2016-08-17
A164: 24 | B164: 2015-03-04 | D164: GPPL | E164: Accu | F164: 235 | H164: 77.00 | I164: 280-285 | J164: Loss of Rs.158/- | K164: -158.00 | L164: -67.23% | M164: Unsuccessful | N164: 2019-02-26
A165: 25 | B165: 2015-03-04 | D165: ORIENTCEM | E165: Accu | F165: 185.00 | H165: 224 | I165: 220-225 | J165: Target Achieved | K165: 39.00 | L165: 21.08% | M165: Successful | N165: 2016-10-04
A166: 26 | B166: 2015-03-27 | D166: PFS | E166: Accu | F166: 49.5 | H166: 15.85 | I166: 67.00 | J166: Loss of Rs.33.65/- | K166: -33.65 | L166: -68% | M166: Unsuccessful | N166: 2019-06-11
A167: 27 | B167: 2015-03-30 | D167: Walchandnagar Ind Ltd | E167: Accu | F167: 183.50 | H167: 219 | I167: 218.00 | J167: Profit of Rs.35.50/- | K167: 35.50 | L167: 19.35% | M167: Successful | N167: 2015-04-09
A168: 28 | B168: 2015-04-20 | D168: Kalpataru Power Transmission Ltd | E168: Accu | F168: =(227+237)/2 -> 232.00 | H168: 298 | I168: 298.00 | J168: Target Achieved | K168: 66.00 | L168: 28.45% | M168: Successful | N168: 2017-03-29
A169: 29 | B169: 2015-05-04 | D169: Mastek Ltd | E169: Buy | F169: 385.00 | H169: =212.5+331 -> 543.5 | I169: 510.00 | J169: Profit of Rs 158.50/- | K169: 158.50 | L169: 41.17% | M169: Successful | N169: 2015-08-19
A170: 30 | B170: 2015-05-04 | D170: Suprajit Eng | E170: Buy | F170: 115.50 | H170: 146 | I170: 142.00 | J170: Profit of Rs 30.50/- | K170: 30.50 | L170: 26.41% | M170: Successful | N170: 2015-07-17
A171: 31 | B171: 2015-05-27 | D171: TCI | E171: Buy | F171: 237.50 | H171: 279.5 | I171: 278.00 | J171: Target Achieved | K171: 42.00 | L171: 17.68% | M171: Successful | N171: 2015-08-06
A172: 32 | B172: 2015-06-19 | D172: HSIL | E172: Accu | F172: 340.00 | H172: 448 | I172: 448.00 | J172: Target Achieved | K172: 108.00 | L172: 31.76% | M172: Successful | N172: 2017-10-10
A173: 33 | B173: 2015-07-06 | D173: Capital First | E173: Accu | F173: 390.00 | H173: 460 | I173: 460.00 | J173: Target Achieved | K173: 70.00 | L173: 17.95% | M173: Successful | N173: 2016-04-18
A174: 34 | B174: 2015-07-10 | D174: Dolphin OffShore | E174: Accu | F174: 122.5 | H174: 61.00 | I174: 172.00 | J174: Loss of Rs.61.50/- | K174: -61.50 | L174: -50.20% | M174: Unsuccessful | N174: 2018-08-21
A175: 35 | B175: 2015-08-03 | D175: Allcargo logistics | E175: Accu | F175: 297.50 | H175: 350 | I175: 360.00 | J175: Profit of Rs 52.50/- | K175: 52.50 | L175: 17.65% | M175: Successful | N175: 2015-08-16
A176: 36 | B176: 2015-08-03 | D176: Camline Fine | E176: Accu | F176: 115.50 | H176: 149 | I176: 140.00 | J176: Profit of Rs 33.50/- | K176: 33.50 | L176: 29.00% | M176: Successful | N176: 2017-01-05
A177: 37 | B177: 2015-09-04 | D177: TCI | E177: Accu | F177: 226.00 | H177: 292 | I177: 292.00 | J177: Target Achieved | K177: 66.00 | L177: 29.20% | M177: Successful | N177: 2015-10-09
A178: 38 | B178: 2015-09-07 | D178: Kalpataru Power Transmission Ltd | E178: Accu | F178: 232.50 | H178: 312.5 | I178: 310.00 | J178: Target Achieved | K178: 80.00 | L178: 34.41% | M178: Successful | N178: 2017-03-29
A179: 39 | B179: 2015-09-21 | D179: LLOYD ELECTRIC & ENG LTD | E179: Accu | F179: 196.50 | H179: 238 | I179: 238.00 | J179: Target Achieved | K179: 41.50 | L179: 21.12% | M179: Successful | N179: 2015-10-14
A180: 40 | B180: 2015-09-24 | D180: L&T Finance Holding | E180: Accu | F180: 65.00 | H180: 82 | I180: 82.00 | J180: Target Achieved | K180: 17.00 | L180: 26.15% | M180: Successful | N180: 2016-07-27
A181: 41 | B181: 2015-10-14 | D181: KEC International ltd | E181: Accu | F181: 144.00 | H181: 182.5 | I181: 181.00 | J181: Target Achieved | K181: 38.50 | L181: 26.74% | M181: Successful | N181: 2017-03-23
A182: 42 | B182: 2015-10-14 | D182: Gruh Finance | E182: Accu | F182: 264.00 | H182: 311 | I182: 311.00 | J182: Target Achieved | K182: 47.00 | L182: 17.80% | M182: Successful | N182: 2016-08-22
A183: 43 | B183: 2015-11-10 | D183: Pidilitind | E183: Buy | F183: 549.50 | H183: 630 | I183: 630.00 | J183: Target Achieved | K183: 80.50 | L183: 14.65% | M183: Successful | N183: 2016-02-19
A184: 44 | B184: 2015-12-04 | D184: Zensar Technology | E184: Accu | F184: 1027.50 | H184: 1315 | I184: 1250.00 | J184: Target Achieved | K184: 287.50 | L184: 27.98% | M184: Successful | N184: 2018-05-24
A185: 45 | B185: 2015-12-29 | D185: Vinati Organics Ltd | E185: Accu | F185: 465.00 | H185: 540 | I185: 540.00 | J185: Target Achieved | K185: 75.00 | L185: 16.13% | M185: Successful | N185: 2016-06-09
A186: 46 | B186: 2016-01-11 | D186: GSFC | E186: Buy | F186: 81.00 | H186: 110 | I186: 110.00 | J186: Target Achieved | K186: 29.00 | L186: 35.80% | M186: Successful | N186: 2017-01-10
A187: 47 | B187: 2016-01-13 | D187: SSWL | E187: Buy | F187: 417.50 | H187: 547 | I187: 535.00 | J187: Target Achieved | K187: 129.50 | L187: 31.02% | M187: Successful | N187: 2016-07-27
A188: 48 | B188: 2016-02-08 | D188: Persistent System Ltd | E188: Accu | F188: 650.00 | H188: 800 | I188: 800.00 | J188: Target Achieved | K188: 150.00 | L188: 23.08% | M188: Successful | N188: 2018-02-23
A189: 49 | B189: 2016-03-04 | D189: UPL | E189: Accu | F189: 437.50 | H189: 504.5 | I189: 522.00 | J189: Profit of Rs.67/- | K189: 67.00 | L189: 15.31% | M189: Successful | N189: 2016-04-20
A190: 50 | B190: 2016-03-09 | D190: Ashoka Buildcon Ltd | E190: Accu | F190: 189.50 | H190: 218 | I190: 218.00 | J190: Target Achieved | K190: 28.50 | L190: 15.04% | M190: Successful | N190: 2017-10-26
A191: 51 | B191: 2016-04-11 | D191: PTC INDIA FIN SERV LTD | E191: Accu | F191: 36.5 | H191: 15.85 | I191: 60.00 | J191: Loss of Rs.20.65/- | K191: -20.65 | L191: -56.58% | M191: Unsuccessful | N191: 2019-06-11
A192: 52 | B192: 2016-04-12 | D192: CAMLINFINE $ | E192: Accu | F192: 93.00 | H192: 149 | I192: 140.00 | J192: Profit of Rs 56/- | K192: 56.00 | L192: 60.22% | M192: Successful | N192: 2017-01-05
A193: 53 | B193: 2016-04-12 | D193: Greaves Cotton Ltd. | E193: Accu | F193: 130.00 | H193: 150 | I193: 150-155 | J193: Target Achieved | K193: 20.00 | L193: 15.38% | M193: Successful | N193: 2016-07-13
A194: 54 | B194: 2016-04-13 | D194: DHFL | E194: Accu | F194: 196.00 | H194: 299 | I194: 299.00 | J194: Target Achieved | K194: 103.00 | L194: 52.55% | M194: Successful | N194: 2016-09-07
A195: 55 | B195: 2016-04-13 | D195: Magma | E195: Accu | F195: 88.00 | H195: 103 | I195: 103.00 | J195: Target Achieved | K195: 15.00 | L195: 17.05% | M195: Successful | N195: 2016-06-09
A196: 56 | B196: 2016-05-02 | D196: KEC International ltd $ | E196: Accu | F196: 127.50 | H196: 148 | I196: 148-150 | J196: Target Achieved | K196: =H196-F196 -> 20.50 | L196: =K196/F196 -> 16.08% | M196: Successful | N196: 2016-07-13
A197: 57 | B197: 2016-05-03 | D197: Mindtree | E197: Accu | F197: 675.00 | H197: 815 | I197: 790-800 | J197: Target Achieved | K197: 140.00 | L197: 20.74% | M197: Successful | N197: 2018-02-23
A198: 58 | B198: 2016-06-01 | D198: Atulauto | E198: Accu | F198: 500 | H198: 232.50 | I198: 565-570 | J198: Loss of Rs.267.50 /- | K198: -267.50 | L198: -53.50% | M198: Unsuccessful | N198: 2019-09-27
A199: 59 | B199: 2016-06-06 | D199: TRITURBINE | E199: Accu | F199: 110.00 | H199: 126.5 | I199: 125.00 | J199: Profit of Rs.16.50/- | K199: 16.50 | L199: 15.00% | M199: Successful | N199: 2016-07-01
A200: 60 | B200: 2016-06-17 | D200: Pennar Industries Ltd | E200: Accu | F200: 44.00 | H200: 69.5 | I200: 69.50 | J200: Profit of Rs.25.50/- | K200: 25.50 | L200: 57.95% | M200: Successful | N200: 2017-08-30
A201: 61 | B201: 2016-06-28 | D201: EVEREADY | E201: Accu | F201: 262.50 | H201: 340 | I201: 333.00 | J201: Profit of Rs.77.50/- | K201: 77.50 | L201: 29.52% | M201: Successful | N201: 2017-10-09
A202: 62 | B202: 2016-06-28 | D202: FIEMIND | E202: Accu | F202: 840.00 | H202: 1230 | I202: 1230.00 | J202: Target Achieved | K202: 390.00 | L202: 46.43% | M202: Successful | N202: 2016-10-06
A203: 63 | B203: 2016-07-05 | D203: Bajaj Corp Ltd | E203: Accu | F203: 395 | H203: =(468.5+342.5)/2 -> 405.50 | I203: 510.00 | J203: Profit of Rs.10.50/- | K203: =H203-F203 -> 10.50 | L203: =K203/F203 -> 3% | M203: Neutral | N203: 2019-05-21
A204: 64 | B204: 2016-08-02 | D204: GPPL $ | E204: Buy | F204: =169.5-12.8 -> 156.7 | H204: 77.00 | I204: 198-200 | J204: Loss of Rs.79.7/- | K204: -79.70 | L204: -50.86% | M204: Unsuccessful | N204: 2019-02-26
A205: 65 | B205: 2016-08-04 | D205: WONDERLA HOLIDAYS LTD | E205: Accu | F205: 400 | H205: 305.00 | I205: 475.00 | J205: Loss of Rs.95/- | K205: -95.00 | L205: -23.75% | M205: Unsuccessful | N205: 2019-05-21
A206: 66 | B206: 2016-08-11 | D206: CAMLINFINE | E206: Accu | F206: 86.50 | H206: 130 | I206: 130.00 | J206: Profit of Rs.43.50/- | K206: 43.50 | L206: 50.29% | M206: Successful | N206: 2017-12-22
A207: 67 | B207: 2016-08-18 | D207: GRANULES | E207: Accu | F207: 133.5 | H207: 126.50 | I207: 178.00 | J207: Exit | K207: -7.00 | L207: -5.24% | M207: Unsuccessful | N207: 2016-09-02
A208: 68 | B208: 2016-08-31 | D208: VA TECH WABAG | E208: Accu | F208: 560.00 | H208: 725 | I208: 725.00 | J208: Target Achieved | K208: 165.00 | L208: 29.46% | M208: Successful | N208: 2016-03-27
A209: 69 | B209: 2016-09-01 | D209: SKIPPER LIMITED | E209: Accu | F209: 160.50 | H209: 210 | I209: 210.00 | J209: Target Achieved | K209: 49.50 | L209: 30.84% | M209: Successful | N209: 2017-05-16
A210: 70 | B210: 2016-10-03 | D210: IFBIND | E210: Accu | F210: 430.00 | H210: 596 | I210: 575.00 | J210: Profit of Rs.166/- | K210: 166.00 | L210: 38.60% | M210: Successful | N210: 2017-02-03
A211: 71 | B211: 2016-10-14 | D211: ASIANTILES | E211: Accu | F211: 280.00 | H211: 345 | I211: 345.00 | J211: Target Achieved | K211: =H211-F211 -> 65.00 | L211: =K211/F211 -> 23.21% | M211: Successful | N211: 2017-03-20
A212: 72 | B212: 2016-10-14 | D212: DEEPIND | E212: Accu | F212: 245.00 | H212: 325.5 | I212: 330.00 | J212: Profit of Rs.80.5/- | K212: 80.50 | L212: 32.86% | M212: Successful | N212: 2017-02-03
A213: 73 | B213: 2016-10-17 | D213: DCBBANK | E213: Accu | F213: 125.00 | H213: 160 | I213: 160.00 | J213: Target Achieved | K213: 35.00 | L213: 28.00% | M213: Successful | N213: 2017-03-09
A214: 74 | B214: 2016-10-17 | D214: ORIENTREF | E214: Accu | F214: 114.00 | H214: 145 | I214: 145.00 | J214: Target Achieved | K214: 31.00 | L214: =K214/F214 -> 27.19% | M214: Successful | N214: 2017-05-04
A215: 75 | B215: 2016-10-17 | D215: GANECOS | E215: Accu | F215: 212.00 | H215: 280 | I215: 276.00 | J215: Profit of Rs.68/- | K215: 68.00 | L215: 32.08% | M215: Successful | N215: 2017-05-03
A216: 76 | B216: 2016-11-04 | D216: NBCC | E216: Accu | F216: 155.00 | H216: 210 | I216: 210.00 | J216: Profit of Rs.55/- | K216: 55.00 | L216: 35.48% | M216: Successful | N216: 2017-07-28
A217: 77 | B217: 2016-12-06 | D217: PRECAM | E217: Accu | F217: 150.5 | H217: 72.50 | I217: 174.00 | J217: Loss of Rs.78/- | K217: -78.00 | L217: -51.83% | M217: Unsuccessful | N217: 2018-08-21
A218: 78 | B218: 2016-12-08 | D218: INFRATEL | E218: Accu | F218: 380.00 | H218: 478 | I218: 468.00 | J218: Target Achieved | K218: =H218-F218 -> 98.00 | L218: =K218/F218 -> 25.79% | M218: Successful | N218: 2017-10-17
A219: 79 | B219: 2016-12-30 | D219: GODREJPROP | E219: Accu | F219: 305.00 | H219: 375 | I219: 375.00 | J219: Target Achieved | K219: 70.00 | L219: 22.95% | M219: Successful | N219: 2017-02-02
A220: 80 | B220: 2017-01-04 | D220: DEEPAKNTR | E220: Accu | F220: 99.50 | H220: 158 | I220: 158.00 | J220: Target Achieved | K220: 58.50 | L220: 58.79% | M220: Successful | N220: 2017-06-12
A221: 81 | B221: 2017-01-04 | D221: DEEPAKNTR | E221: Accu | F221: 99.50 | H221: 158 | I221: 158.00 | J221: Target Achieved | K221: 58.50 | L221: 58.79% | M221: Successful | N221: 2017-06-12
A222: 82 | B222: 2017-02-20 | D222: RECLTD | E222: Accu | F222: 140.50 | H222: 220 | I222: 220.00 | J222: Target Achieved | K222: =H222-F222 -> 79.50 | L222: =K222/F222 -> 56.58% | M222: Successful | N222: 2017-05-09
A223: 83 | B223: 2017-02-20 | D223: SUBROS | E223: Accu | F223: 202.50 | H223: 234 | I223: 234.00 | J223: Target Achieved | K223: 31.50 | L223: 15.56% | M223: Successful | N223: 2017-04-11
A224: 84 | B224: 2017-03-24 | D224: VRLLOG | E224: Accu | F224: 300.50 | H224: 417.5 | I224: 420.00 | J224: Profit of Rs.117/- | K224: =H224-F224 -> 117.00 | L224: =K224/F224 -> 38.94% | M224: Successful | N224: 2017-12-01
A225: 85 | B225: 2017-03-24 | D225: FIEMIND | E225: Accu | F225: 850.00 | H225: 1042.5 | I225: 1023.00 | J225: Profit of Rs 192.50/- | K225: 192.50 | L225: 22.65% | M225: Successful | N225: 2017-04-05
A226: 86 | B226: 2017-04-05 | D226: RATNAMANI | E226: Accu | F226: 785.00 | H226: 930 | I226: 920.00 | J226: Profit of Rs.145/- | K226: =H226-F226 -> 145.00 | L226: =K226/F226 -> 18.47% | M226: Successful | N226: 2017-08-29
A227: 87 | B227: 2017-04-06 | D227: ZEEMEDIA | E227: Accu | F227: 40 | H227: 13.10 | I227: 60.00 | J227: Loss of Rs.26.9/- | K227: -26.90 | L227: -67.25% | M227: Unsuccessful | N227: 2018-02-07
A228: 88 | B228: 2017-04-12 | D228: DABUR | E228: Accu | F228: 289.50 | H228: 354 | I228: 360.00 | J228: Profit of Rs.64.5/- | K228: =H228-F228 -> 64.50 | L228: =K228/F228 -> 22.28% | M228: Successful | N228: 2017-11-01
A229: 89 | B229: 2017-04-20 | D229: KPRMILL | E229: Accu | F229: 700.00 | H229: 840 | I229: 840.00 | J229: Profit of Rs.140/- | K229: 140.00 | L229: 20.00% | M229: Successful | N229: 2017-06-07
A230: 90 | B230: 2017-06-01 | D230: ESSELPACK | E230: Accu | F230: 130.00 | H230: 144.25 | I230: 170.00 | J230: Profit of Rs.14.25/- | K230: 14.25 | L230: 10.96% | M230: Successful | N230: 2019-07-29
A231: 91 | B231: 2017-06-15 | D231: KEI | E231: Accu | F231: 214.50 | H231: 262 | I231: 262.00 | J231: Profit of Rs.47.5/- | K231: 47.50 | L231: 22.14% | M231: Successful | N231: 2017-08-30
A232: 92 | B232: 2017-07-17 | D232: MAYURUNIQ | E232: Accu | F232: 370.00 | H232: 447.5 | I232: 450.00 | J232: Target Achieved | K232: 77.50 | L232: 20.95% | M232: Successful | N232: 2017-10-27
A233: 93 | B233: 2017-07-27 | D233: RAMCOCEM | E233: Accu | F233: 657.50 | H233: 825 | I233: 820.00 | J233: Target Achieved | K233: 167.50 | L233: 25.48% | M233: Successful | N233: 2017-12-21
A234: 94 | B234: 2017-08-17 | D234: FINPIPE | E234: Accu | F234: 605.00 | H234: 750 | I234: 750.00 | J234: Profit of Rs.145/- | K234: 145.00 | L234: 23.97% | M234: Successful | N234: 2017-10-19
A235: 95 | B235: 2017-09-01 | D235: SHK | E235: Accu | F235: 255 | H235: 217.25 | I235: 320.00 | J235: Loss of Rs.37.75/- | K235: -37.75 | L235: -15% | M235: Unsuccessful | N235: 2019-07-15
A236: 96 | B236: 2017-09-19 | D236: SKIPPER | E236: Accu | F236: 215.00 | H236: 258 | I236: 258.00 | J236: Target Achieved | K236: 43.00 | L236: 20.00% | M236: Successful | N236: 2017-11-01
A237: 97 | B237: 2017-09-19 | D237: SKIPPER | E237: Accu | F237: 215.00 | H237: 258 | I237: 258.00 | J237: Target Achieved | K237: 43.00 | L237: 20.00% | M237: Successful | N237: 2017-11-01
A238: 98 | B238: 2017-09-20 | D238: CAMLINFINE$ | E238: Accu | F238: 75.00 | H238: 90 | I238: 90.00 | J238: Profit of Rs.15.00/- | K238: =H238-F238 -> 15.00 | L238: =K238/F238 -> 20.00% | M238: Successful | N238: 2017-10-11
... 75 more rows
